{"text_format":"1","workbook":"xlsx","n_sheets":2,"sheets":["TARIF COMPLET TOUT PRODUIT","BAREME DE REMISE"],"not_rendered":{"charts":0,"images":11,"macros":1,"external_links":0,"defined_names":4,"comments":0,"pivot_tables":0},"unopened":[],"bounds":{"document_bytes":16777216,"sheet_cells":100000,"rows_first":2000,"rows_last":500,"rows_between":2000,"halvings":0,"cell_chars":16384,"cell_head_chars":4096},"cells_cut":0,"cells_raw":0,"read":"whole","date_system":"1900"}

{"sheet":"TARIF COMPLET TOUT PRODUIT","index":0,"n_rows":637,"n_cols":21,"rows_kept":637,"cut":false,"hidden":false,"merged":[[4,0,4,1]]}
[]
[]
[]
[]
[]
["Référence","Désignation","Code famille","Famille","Unité de vente","Prix de vente\n 2019","Remise","Prix NET 2019 (HORS TARIFS EXCEPTIONS)","\nCatalogue Fabrication"]
["023030","MC 314 Ø 080 MANCHETTE SOUPLE M0","2290","ACCESSOIRES POSE CAISSON VENTIL","Pièce",18.501000000000001,{"$f":"IF(C7=\"9999\",0,IF(IF(ISERROR(VLOOKUP(C7,Grille1,3,FALSE)),VLOOKUP(C7,Grille2,3,FALSE),VLOOKUP(C7,Grille1,3,FALSE))=\"\",\"\",IF(ISERROR(VLOOKUP(C7,Grille1,3,FALSE)),VLOOKUP(C7,Grille2,3,FALSE),VLOOKUP(C7,Grille1,3,FALSE))))","v":""},{"$f":"IF(ISERR(U7)=TRUE,,(F7*(1-G7/100)))","v":0},"OUI",null,null,null,null,null,null,null,null,null,null,null,{"$f":"Tableau1[[#This Row],[Prix de vente\n 2019]]*(1-(Tableau1[[#This Row],[Remise]]/100))","v":{"$error":"#VALUE!"}}]
["023032","MC 314 Ø 100 MANCHETTE SOUPLE M0","2290","ACCESSOIRES POSE CAISSON VENTIL","Pièce",18.501000000000001,"",{"$f":"IF(ISERR(U8)=TRUE,,(F8*(1-G8/100)))","v":0},"OUI",null,null,null,null,null,null,null,null,null,null,null,{"$f":"Tableau1[[#This Row],[Prix de vente\n 2019]]*(1-(Tableau1[[#This Row],[Remise]]/100))","v":{"$error":"#VALUE!"}}]
["023034","MC 314 Ø 125 MANCHETTE SOUPLE M0","2290","ACCESSOIRES POSE CAISSON VENTIL","Pièce",20.044499999999999,"",{"$f":"IF(ISERR(U9)=TRUE,,(F9*(1-G9/100)))","v":0},"OUI",null,null,null,null,null,null,null,null,null,null,null,{"$f":"Tableau1[[#This Row],[Prix de vente\n 2019]]*(1-(Tableau1[[#This Row],[Remise]]/100))","v":{"$error":"#VALUE!"}}]
["023036","MC 314 Ø 160 MANCHETTE SOUPLE M0","2290","ACCESSOIRES POSE CAISSON VENTIL","Pièce",22.354500000000002,"",{"$f":"IF(ISERR(U10)=TRUE,,(F10*(1-G10/100)))","v":0},"OUI",null,null,null,null,null,null,null,null,null,null,null,{"$f":"Tableau1[[#This Row],[Prix de vente\n 2019]]*(1-(Tableau1[[#This Row],[Remise]]/100))","v":{"$error":"#VALUE!"}}]
["023038","MC 314 Ø 200 MANCHETTE SOUPLE M0","2290","ACCESSOIRES POSE CAISSON VENTIL","Pièce",24.675000000000001,"",{"$f":"IF(ISERR(U11)=TRUE,,(F11*(1-G11/100)))","v":0},"OUI",null,null,null,null,null,null,null,null,null,null,null,{"$f":"Tableau1[[#This Row],[Prix de vente\n 2019]]*(1-(Tableau1[[#This Row],[Remise]]/100))","v":{"$error":"#VALUE!"}}]
["023040","MC 314 Ø 250 MANCHETTE SOUPLE M0","2290","ACCESSOIRES POSE CAISSON VENTIL","Pièce",26.208000000000002,"",{"$f":"IF(ISERR(U12)=TRUE,,(F12*(1-G12/100)))","v":0},"OUI",null,null,null,null,null,null,null,null,null,null,null,{"$f":"Tableau1[[#This Row],[Prix de vente\n 2019]]*(1-(Tableau1[[#This Row],[Remise]]/100))","v":{"$error":"#VALUE!"}}]
["023044","MC 314 Ø 315 MANCHETTE SOUPLE M0","2290","ACCESSOIRES POSE CAISSON VENTIL","Pièce",29.294999999999998,"",{"$f":"IF(ISERR(U13)=TRUE,,(F13*(1-G13/100)))","v":0},"OUI",null,null,null,null,null,null,null,null,null,null,null,{"$f":"Tableau1[[#This Row],[Prix de vente\n 2019]]*(1-(Tableau1[[#This Row],[Remise]]/100))","v":{"$error":"#VALUE!"}}]
["023046","MC 314 Ø 355 MANCHETTE SOUPLE M0","2290","ACCESSOIRES POSE CAISSON VENTIL","Pièce",48.573,"",{"$f":"IF(ISERR(U14)=TRUE,,(F14*(1-G14/100)))","v":0},"OUI",null,null,null,null,null,null,null,null,null,null,null,{"$f":"Tableau1[[#This Row],[Prix de vente\n 2019]]*(1-(Tableau1[[#This Row],[Remise]]/100))","v":{"$error":"#VALUE!"}}]
["023048","MC 314 Ø 400 MANCHETTE SOUPLE M0","2290","ACCESSOIRES POSE CAISSON VENTIL","Pièce",53.203500000000005,"",{"$f":"IF(ISERR(U15)=TRUE,,(F15*(1-G15/100)))","v":0},"OUI",null,null,null,null,null,null,null,null,null,null,null,{"$f":"Tableau1[[#This Row],[Prix de vente\n 2019]]*(1-(Tableau1[[#This Row],[Remise]]/100))","v":{"$error":"#VALUE!"}}]
["023050","MC 314 Ø 450 MANCHETTE SOUPLE M0","2290","ACCESSOIRES POSE CAISSON VENTIL","Pièce",57.792000000000002,"",{"$f":"IF(ISERR(U16)=TRUE,,(F16*(1-G16/100)))","v":0},"OUI",null,null,null,null,null,null,null,null,null,null,null,{"$f":"Tableau1[[#This Row],[Prix de vente\n 2019]]*(1-(Tableau1[[#This Row],[Remise]]/100))","v":{"$error":"#VALUE!"}}]
["023052","MC 314 Ø 500 MANCHETTE SOUPLE M0","2290","ACCESSOIRES POSE CAISSON VENTIL","Pièce",62.422500000000007,"",{"$f":"IF(ISERR(U17)=TRUE,,(F17*(1-G17/100)))","v":0},"OUI",null,null,null,null,null,null,null,null,null,null,null,{"$f":"Tableau1[[#This Row],[Prix de vente\n 2019]]*(1-(Tableau1[[#This Row],[Remise]]/100))","v":{"$error":"#VALUE!"}}]
["023054","MC 314 Ø 560 MANCHETTE SOUPLE M0","2290","ACCESSOIRES POSE CAISSON VENTIL","Pièce",67.052999999999997,"",{"$f":"IF(ISERR(U18)=TRUE,,(F18*(1-G18/100)))","v":0},"OUI",null,null,null,null,null,null,null,null,null,null,null,{"$f":"Tableau1[[#This Row],[Prix de vente\n 2019]]*(1-(Tableau1[[#This Row],[Remise]]/100))","v":{"$error":"#VALUE!"}}]
["023056","MC 314 Ø 630 MANCHETTE SOUPLE M0","2290","ACCESSOIRES POSE CAISSON VENTIL","Pièce",71.683499999999995,"",{"$f":"IF(ISERR(U19)=TRUE,,(F19*(1-G19/100)))","v":0},"OUI",null,null,null,null,null,null,null,null,null,null,null,{"$f":"Tableau1[[#This Row],[Prix de vente\n 2019]]*(1-(Tableau1[[#This Row],[Remise]]/100))","v":{"$error":"#VALUE!"}}]
["023058","MC 314 Ø 710 MANCHETTE SOUPLE M0","2290","ACCESSOIRES POSE CAISSON VENTIL","Pièce",92.064000000000007,"",{"$f":"IF(ISERR(U20)=TRUE,,(F20*(1-G20/100)))","v":0},"OUI",null,null,null,null,null,null,null,null,null,null,null,{"$f":"Tableau1[[#This Row],[Prix de vente\n 2019]]*(1-(Tableau1[[#This Row],[Remise]]/100))","v":{"$error":"#VALUE!"}}]
["023134","KIT MANCHETTE 314 Ø 125 MANCHETTE SOUPLE M0","2290","ACCESSOIRES POSE CAISSON VENTIL","Pièce",10.773,"",{"$f":"IF(ISERR(U21)=TRUE,,(F21*(1-G21/100)))","v":0},"OUI",null,null,null,null,null,null,null,null,null,null,null,{"$f":"Tableau1[[#This Row],[Prix de vente\n 2019]]*(1-(Tableau1[[#This Row],[Remise]]/100))","v":{"$error":"#VALUE!"}}]
["023136","KIT MANCHETTE 314 Ø 160 MANCHETTE SOUPLE M0","2290","ACCESSOIRES POSE CAISSON VENTIL","Pièce",11.843999999999999,"",{"$f":"IF(ISERR(U22)=TRUE,,(F22*(1-G22/100)))","v":0},"OUI",null,null,null,null,null,null,null,null,null,null,null,{"$f":"Tableau1[[#This Row],[Prix de vente\n 2019]]*(1-(Tableau1[[#This Row],[Remise]]/100))","v":{"$error":"#VALUE!"}}]
["023138","KIT MANCHETTE 314 Ø 200 MANCHETTE SOUPLE M0","2290","ACCESSOIRES POSE CAISSON VENTIL","Pièce",12.39,"",{"$f":"IF(ISERR(U23)=TRUE,,(F23*(1-G23/100)))","v":0},"OUI",null,null,null,null,null,null,null,null,null,null,null,{"$f":"Tableau1[[#This Row],[Prix de vente\n 2019]]*(1-(Tableau1[[#This Row],[Remise]]/100))","v":{"$error":"#VALUE!"}}]
["023140","KIT MANCHETTE 314 Ø 250 MANCHETTE SOUPLE M0","2290","ACCESSOIRES POSE CAISSON VENTIL","Pièce",13.209000000000001,"",{"$f":"IF(ISERR(U24)=TRUE,,(F24*(1-G24/100)))","v":0},"OUI",null,null,null,null,null,null,null,null,null,null,null,{"$f":"Tableau1[[#This Row],[Prix de vente\n 2019]]*(1-(Tableau1[[#This Row],[Remise]]/100))","v":{"$error":"#VALUE!"}}]
["023142","KIT MANCHETTE 314 Ø 315 MANCHETTE SOUPLE M0","2290","ACCESSOIRES POSE CAISSON VENTIL","Pièce",14.983499999999999,"",{"$f":"IF(ISERR(U25)=TRUE,,(F25*(1-G25/100)))","v":0},"OUI",null,null,null,null,null,null,null,null,null,null,null,{"$f":"Tableau1[[#This Row],[Prix de vente\n 2019]]*(1-(Tableau1[[#This Row],[Remise]]/100))","v":{"$error":"#VALUE!"}}]
["023144","KIT MANCHETTE 314 Ø 355 MANCHETTE SOUPLE M0","2290","ACCESSOIRES POSE CAISSON VENTIL","Pièce",15.5085,"",{"$f":"IF(ISERR(U26)=TRUE,,(F26*(1-G26/100)))","v":0},"OUI",null,null,null,null,null,null,null,null,null,null,null,{"$f":"Tableau1[[#This Row],[Prix de vente\n 2019]]*(1-(Tableau1[[#This Row],[Remise]]/100))","v":{"$error":"#VALUE!"}}]
["023146","KIT MANCHETTE 314 Ø 400 MANCHETTE SOUPLE M0","2290","ACCESSOIRES POSE CAISSON VENTIL","Pièce",16.810500000000001,"",{"$f":"IF(ISERR(U27)=TRUE,,(F27*(1-G27/100)))","v":0},"OUI",null,null,null,null,null,null,null,null,null,null,null,{"$f":"Tableau1[[#This Row],[Prix de vente\n 2019]]*(1-(Tableau1[[#This Row],[Remise]]/100))","v":{"$error":"#VALUE!"}}]
["023148","KIT MANCHETTE 314 Ø 450 MANCHETTE SOUPLE M0","2290","ACCESSOIRES POSE CAISSON VENTIL","Pièce",17.808000000000003,"",{"$f":"IF(ISERR(U28)=TRUE,,(F28*(1-G28/100)))","v":0},"OUI",null,null,null,null,null,null,null,null,null,null,null,{"$f":"Tableau1[[#This Row],[Prix de vente\n 2019]]*(1-(Tableau1[[#This Row],[Remise]]/100))","v":{"$error":"#VALUE!"}}]
["023150","KIT MANCHETTE 314 Ø 500 MANCHETTE SOUPLE M0","2290","ACCESSOIRES POSE CAISSON VENTIL","Pièce",19.183499999999999,"",{"$f":"IF(ISERR(U29)=TRUE,,(F29*(1-G29/100)))","v":0},"OUI",null,null,null,null,null,null,null,null,null,null,null,{"$f":"Tableau1[[#This Row],[Prix de vente\n 2019]]*(1-(Tableau1[[#This Row],[Remise]]/100))","v":{"$error":"#VALUE!"}}]
["023152","KIT MANCHETTE 314 Ø 560 MANCHETTE SOUPLE M0","2290","ACCESSOIRES POSE CAISSON VENTIL","Pièce",20.244000000000003,"",{"$f":"IF(ISERR(U30)=TRUE,,(F30*(1-G30/100)))","v":0},"OUI",null,null,null,null,null,null,null,null,null,null,null,{"$f":"Tableau1[[#This Row],[Prix de vente\n 2019]]*(1-(Tableau1[[#This Row],[Remise]]/100))","v":{"$error":"#VALUE!"}}]
["023154","KIT MANCHETTE 314 Ø 630 MANCHETTE SOUPLE M0","2290","ACCESSOIRES POSE CAISSON VENTIL","Pièce",21.777000000000001,"",{"$f":"IF(ISERR(U31)=TRUE,,(F31*(1-G31/100)))","v":0},"OUI",null,null,null,null,null,null,null,null,null,null,null,{"$f":"Tableau1[[#This Row],[Prix de vente\n 2019]]*(1-(Tableau1[[#This Row],[Remise]]/100))","v":{"$error":"#VALUE!"}}]
["023156","KIT MANCHETTE 314 Ø 710 MANCHETTE SOUPLE M0","2290","ACCESSOIRES POSE CAISSON VENTIL","Pièce",24.454499999999999,"",{"$f":"IF(ISERR(U32)=TRUE,,(F32*(1-G32/100)))","v":0},"OUI",null,null,null,null,null,null,null,null,null,null,null,{"$f":"Tableau1[[#This Row],[Prix de vente\n 2019]]*(1-(Tableau1[[#This Row],[Remise]]/100))","v":{"$error":"#VALUE!"}}]
["150500","CDC 100 CLE DE COMMANDE POUR KVZ 100","1301","REGISTRES GAINE KVZ","Pièce",19.782,{"$f":"IF(C33=\"9999\",0,IF(IF(ISERROR(VLOOKUP(C33,Grille1,3,FALSE)),VLOOKUP(C33,Grille2,3,FALSE),VLOOKUP(C33,Grille1,3,FALSE))=\"\",\"\",IF(ISERROR(VLOOKUP(C33,Grille1,3,FALSE)),VLOOKUP(C33,Grille2,3,FALSE),VLOOKUP(C33,Grille1,3,FALSE))))","v":""},{"$f":"IF(ISERR(U33)=TRUE,,(F33*(1-G33/100)))","v":0},"OUI",null,null,null,null,null,null,null,null,null,null,null,{"$f":"Tableau1[[#This Row],[Prix de vente\n 2019]]*(1-(Tableau1[[#This Row],[Remise]]/100))","v":{"$error":"#VALUE!"}}]
["199990","GRILLAGE POUR KGZ KGA50 12x12 EP:0.8mm (RL DE 1x 50ml)","5301","ACC MONTAGE/VISSERIES-BOULONNERIES","M2",10.836,{"$f":"IF(C34=\"9999\",0,IF(IF(ISERROR(VLOOKUP(C34,Grille1,3,FALSE)),VLOOKUP(C34,Grille2,3,FALSE),VLOOKUP(C34,Grille1,3,FALSE))=\"\",\"\",IF(ISERROR(VLOOKUP(C34,Grille1,3,FALSE)),VLOOKUP(C34,Grille2,3,FALSE),VLOOKUP(C34,Grille1,3,FALSE))))","v":""},{"$f":"IF(ISERR(U34)=TRUE,,(F34*(1-G34/100)))","v":0},"OUI",null,null,null,null,null,null,null,null,null,null,null,{"$f":"Tableau1[[#This Row],[Prix de vente\n 2019]]*(1-(Tableau1[[#This Row],[Remise]]/100))","v":{"$error":"#VALUE!"}}]
["260301","CRI/D-080 COLLIERS AVEC CAOUTCHOUC","2101","COLLIERS DE SUSPENSION","Pièce",3.2654999999999998,{"$f":"IF(C35=\"9999\",0,IF(IF(ISERROR(VLOOKUP(C35,Grille1,3,FALSE)),VLOOKUP(C35,Grille2,3,FALSE),VLOOKUP(C35,Grille1,3,FALSE))=\"\",\"\",IF(ISERROR(VLOOKUP(C35,Grille1,3,FALSE)),VLOOKUP(C35,Grille2,3,FALSE),VLOOKUP(C35,Grille1,3,FALSE))))","v":""},{"$f":"IF(ISERR(U35)=TRUE,,(F35*(1-G35/100)))","v":0},"OUI",null,null,null,null,null,null,null,null,null,null,null,{"$f":"Tableau1[[#This Row],[Prix de vente\n 2019]]*(1-(Tableau1[[#This Row],[Remise]]/100))","v":{"$error":"#VALUE!"}}]
["260302","CRI/D-100 COLLIERS AVEC CAOUTCHOUC","2101","COLLIERS DE SUSPENSION","Pièce",3.2654999999999998,"",{"$f":"IF(ISERR(U36)=TRUE,,(F36*(1-G36/100)))","v":0},"OUI",null,null,null,null,null,null,null,null,null,null,null,{"$f":"Tableau1[[#This Row],[Prix de vente\n 2019]]*(1-(Tableau1[[#This Row],[Remise]]/100))","v":{"$error":"#VALUE!"}}]
["260303","CRI/D-125 COLLIERS AVEC CAOUTCHOUC","2101","COLLIERS DE SUSPENSION","Pièce",3.6645000000000003,"",{"$f":"IF(ISERR(U37)=TRUE,,(F37*(1-G37/100)))","v":0},"OUI",null,null,null,null,null,null,null,null,null,null,null,{"$f":"Tableau1[[#This Row],[Prix de vente\n 2019]]*(1-(Tableau1[[#This Row],[Remise]]/100))","v":{"$error":"#VALUE!"}}]
["260304","CRI/D-160 COLLIERS AVEC CAOUTCHOUC","2101","COLLIERS DE SUSPENSION","Pièce",4.6514999999999995,"",{"$f":"IF(ISERR(U38)=TRUE,,(F38*(1-G38/100)))","v":0},"OUI",null,null,null,null,null,null,null,null,null,null,null,{"$f":"Tableau1[[#This Row],[Prix de vente\n 2019]]*(1-(Tableau1[[#This Row],[Remise]]/100))","v":{"$error":"#VALUE!"}}]
["260305","CRI/D-200 COLLIERS AVEC CAOUTCHOUC","2101","COLLIERS DE SUSPENSION","Pièce",5.628000000000001,"",{"$f":"IF(ISERR(U39)=TRUE,,(F39*(1-G39/100)))","v":0},"OUI",null,null,null,null,null,null,null,null,null,null,null,{"$f":"Tableau1[[#This Row],[Prix de vente\n 2019]]*(1-(Tableau1[[#This Row],[Remise]]/100))","v":{"$error":"#VALUE!"}}]
["260306","CRI/D-250 COLLIERS AVEC CAOUTCHOUC","2101","COLLIERS DE SUSPENSION","Pièce",6.5625,"",{"$f":"IF(ISERR(U40)=TRUE,,(F40*(1-G40/100)))","v":0},"OUI",null,null,null,null,null,null,null,null,null,null,null,{"$f":"Tableau1[[#This Row],[Prix de vente\n 2019]]*(1-(Tableau1[[#This Row],[Remise]]/100))","v":{"$error":"#VALUE!"}}]
["260307","CRI/D-315 COLLIERS AVEC CAOUTCHOUC","2101","COLLIERS DE SUSPENSION","Pièce",8.1690000000000005,"",{"$f":"IF(ISERR(U41)=TRUE,,(F41*(1-G41/100)))","v":0},"OUI",null,null,null,null,null,null,null,null,null,null,null,{"$f":"Tableau1[[#This Row],[Prix de vente\n 2019]]*(1-(Tableau1[[#This Row],[Remise]]/100))","v":{"$error":"#VALUE!"}}]
["260308","CRI/D-355 COLLIERS AVEC CAOUTCHOUC","2101","COLLIERS DE SUSPENSION","Pièce",9.2714999999999996,"",{"$f":"IF(ISERR(U42)=TRUE,,(F42*(1-G42/100)))","v":0},"OUI",null,null,null,null,null,null,null,null,null,null,null,{"$f":"Tableau1[[#This Row],[Prix de vente\n 2019]]*(1-(Tableau1[[#This Row],[Remise]]/100))","v":{"$error":"#VALUE!"}}]
["260309","CRI/D-400 COLLIERS AVEC CAOUTCHOUC","2101","COLLIERS DE SUSPENSION","Pièce",10.962,"",{"$f":"IF(ISERR(U43)=TRUE,,(F43*(1-G43/100)))","v":0},"OUI",null,null,null,null,null,null,null,null,null,null,null,{"$f":"Tableau1[[#This Row],[Prix de vente\n 2019]]*(1-(Tableau1[[#This Row],[Remise]]/100))","v":{"$error":"#VALUE!"}}]
["260310","CRI/D-450 COLLIERS AVEC CAOUTCHOUC","2101","COLLIERS DE SUSPENSION","Pièce",16.201499999999999,"",{"$f":"IF(ISERR(U44)=TRUE,,(F44*(1-G44/100)))","v":0},"OUI",null,null,null,null,null,null,null,null,null,null,null,{"$f":"Tableau1[[#This Row],[Prix de vente\n 2019]]*(1-(Tableau1[[#This Row],[Remise]]/100))","v":{"$error":"#VALUE!"}}]
["260311","CRI/D-500 COLLIERS AVEC CAOUTCHOUC","2101","COLLIERS DE SUSPENSION","Pièce",18.0075,"",{"$f":"IF(ISERR(U45)=TRUE,,(F45*(1-G45/100)))","v":0},"OUI",null,null,null,null,null,null,null,null,null,null,null,{"$f":"Tableau1[[#This Row],[Prix de vente\n 2019]]*(1-(Tableau1[[#This Row],[Remise]]/100))","v":{"$error":"#VALUE!"}}]
["260312","CRI/D-560 COLLIERS AVEC CAOUTCHOUC","2101","COLLIERS DE SUSPENSION","Pièce",20.212500000000002,"",{"$f":"IF(ISERR(U46)=TRUE,,(F46*(1-G46/100)))","v":0},"OUI",null,null,null,null,null,null,null,null,null,null,null,{"$f":"Tableau1[[#This Row],[Prix de vente\n 2019]]*(1-(Tableau1[[#This Row],[Remise]]/100))","v":{"$error":"#VALUE!"}}]
["260313","CRI/D-630 COLLIERS AVEC CAOUTCHOUC","2101","COLLIERS DE SUSPENSION","Pièce",22.0185,"",{"$f":"IF(ISERR(U47)=TRUE,,(F47*(1-G47/100)))","v":0},"OUI",null,null,null,null,null,null,null,null,null,null,null,{"$f":"Tableau1[[#This Row],[Prix de vente\n 2019]]*(1-(Tableau1[[#This Row],[Remise]]/100))","v":{"$error":"#VALUE!"}}]
["260314","CRI/D-710 COLLIERS AVEC CAOUTCHOUC","2101","COLLIERS DE SUSPENSION","Pièce",24.78,"",{"$f":"IF(ISERR(U48)=TRUE,,(F48*(1-G48/100)))","v":0},"OUI",null,null,null,null,null,null,null,null,null,null,null,{"$f":"Tableau1[[#This Row],[Prix de vente\n 2019]]*(1-(Tableau1[[#This Row],[Remise]]/100))","v":{"$error":"#VALUE!"}}]
["260315","CRI/D-800 COLLIERS AVEC CAOUTCHOUC","2101","COLLIERS DE SUSPENSION","Pièce",30.460500000000003,"",{"$f":"IF(ISERR(U49)=TRUE,,(F49*(1-G49/100)))","v":0},"OUI",null,null,null,null,null,null,null,null,null,null,null,{"$f":"Tableau1[[#This Row],[Prix de vente\n 2019]]*(1-(Tableau1[[#This Row],[Remise]]/100))","v":{"$error":"#VALUE!"}}]
["260316","CRI/D-900 COLLIERS AVEC CAOUTCHOUC","2101","COLLIERS DE SUSPENSION","Pièce",44.142000000000003,"",{"$f":"IF(ISERR(U50)=TRUE,,(F50*(1-G50/100)))","v":0},"OUI",null,null,null,null,null,null,null,null,null,null,null,{"$f":"Tableau1[[#This Row],[Prix de vente\n 2019]]*(1-(Tableau1[[#This Row],[Remise]]/100))","v":{"$error":"#VALUE!"}}]
["260317","CRI/D-1000 COLLIERS AVEC CAOUTCHOUC","2101","COLLIERS DE SUSPENSION","Pièce",47.2605,"",{"$f":"IF(ISERR(U51)=TRUE,,(F51*(1-G51/100)))","v":0},"OUI",null,null,null,null,null,null,null,null,null,null,null,{"$f":"Tableau1[[#This Row],[Prix de vente\n 2019]]*(1-(Tableau1[[#This Row],[Remise]]/100))","v":{"$error":"#VALUE!"}}]
["260318","CRI/D-1120 COLLIERS AVEC CAOUTCHOUC","2101","COLLIERS DE SUSPENSION","Pièce",63.682500000000005,"",{"$f":"IF(ISERR(U52)=TRUE,,(F52*(1-G52/100)))","v":0},"OUI",null,null,null,null,null,null,null,null,null,null,null,{"$f":"Tableau1[[#This Row],[Prix de vente\n 2019]]*(1-(Tableau1[[#This Row],[Remise]]/100))","v":{"$error":"#VALUE!"}}]
["260319","CRI/D-1250 COLLIERS AVEC CAOUTCHOUC","2101","COLLIERS DE SUSPENSION","Pièce",74.760000000000005,"",{"$f":"IF(ISERR(U53)=TRUE,,(F53*(1-G53/100)))","v":0},"OUI",null,null,null,null,null,null,null,null,null,null,null,{"$f":"Tableau1[[#This Row],[Prix de vente\n 2019]]*(1-(Tableau1[[#This Row],[Remise]]/100))","v":{"$error":"#VALUE!"}}]
["300010","PANNEAU LDV - PRIMITIF M0 25mm (3ml x1.2ml=3.60m²)","3011","ISOLATION LDV / LDR","M2",24.223500000000001,{"$f":"IF(C54=\"9999\",0,IF(IF(ISERROR(VLOOKUP(C54,Grille1,3,FALSE)),VLOOKUP(C54,Grille2,3,FALSE),VLOOKUP(C54,Grille1,3,FALSE))=\"\",\"\",IF(ISERROR(VLOOKUP(C54,Grille1,3,FALSE)),VLOOKUP(C54,Grille2,3,FALSE),VLOOKUP(C54,Grille1,3,FALSE))))","v":""},{"$f":"IF(ISERR(U54)=TRUE,,(F54*(1-G54/100)))","v":0},"OUI",null,null,null,null,null,null,null,null,null,null,null,{"$f":"Tableau1[[#This Row],[Prix de vente\n 2019]]*(1-(Tableau1[[#This Row],[Remise]]/100))","v":{"$error":"#VALUE!"}}]
["300011","PANNEAU LDV - PRIMITIF M0 40mm (3ml x1.2ml=3.60m²)","3011","ISOLATION LDV / LDR","M2",37.831500000000005,"",{"$f":"IF(ISERR(U55)=TRUE,,(F55*(1-G55/100)))","v":0},"OUI",null,null,null,null,null,null,null,null,null,null,null,{"$f":"Tableau1[[#This Row],[Prix de vente\n 2019]]*(1-(Tableau1[[#This Row],[Remise]]/100))","v":{"$error":"#VALUE!"}}]
["300012","PANNEAU LDV - PRIMITIF M0 50mm (3ml x1.2ml=3.60m²)","3011","ISOLATION LDV / LDR","M2",42.787500000000001,"",{"$f":"IF(ISERR(U56)=TRUE,,(F56*(1-G56/100)))","v":0},"OUI",null,null,null,null,null,null,null,null,null,null,null,{"$f":"Tableau1[[#This Row],[Prix de vente\n 2019]]*(1-(Tableau1[[#This Row],[Remise]]/100))","v":{"$error":"#VALUE!"}}]
["300013","PANNEAU LDV - PRIMITIF M0 75mm (3ml x1.2ml=3.60m²)","3011","ISOLATION LDV / LDR","M2",61.036500000000004,"",{"$f":"IF(ISERR(U57)=TRUE,,(F57*(1-G57/100)))","v":0},"OUI",null,null,null,null,null,null,null,null,null,null,null,{"$f":"Tableau1[[#This Row],[Prix de vente\n 2019]]*(1-(Tableau1[[#This Row],[Remise]]/100))","v":{"$error":"#VALUE!"}}]
["300014","PANNEAU LDV - PRIMITIF M0 100mm (3ml x1.2ml=3.60m²)","3011","ISOLATION LDV / LDR","M2",80.33550000000001,"",{"$f":"IF(ISERR(U58)=TRUE,,(F58*(1-G58/100)))","v":0},"OUI",null,null,null,null,null,null,null,null,null,null,null,{"$f":"Tableau1[[#This Row],[Prix de vente\n 2019]]*(1-(Tableau1[[#This Row],[Remise]]/100))","v":{"$error":"#VALUE!"}}]
["300020","CLIMAVER 284 - PANNEAUX AUTOPORTEURS M0 25mm (2.90mlx 1.22ml=3.54m2)","3011","ISOLATION LDV / LDR","M2",42.850500000000004,"",{"$f":"IF(ISERR(U59)=TRUE,,(F59*(1-G59/100)))","v":0},"OUI",null,null,null,null,null,null,null,null,null,null,null,{"$f":"Tableau1[[#This Row],[Prix de vente\n 2019]]*(1-(Tableau1[[#This Row],[Remise]]/100))","v":{"$error":"#VALUE!"}}]
["300141","LDV 25-1 -Ep:25mm (RL:21.6m²) FEUTRE EXTERIEUR DE GAINES A1","3011","ISOLATION LDV / LDR","M2",8.7990000000000013,"",{"$f":"IF(ISERR(U60)=TRUE,,(F60*(1-G60/100)))","v":0},"OUI",null,null,null,null,null,null,null,null,null,null,null,{"$f":"Tableau1[[#This Row],[Prix de vente\n 2019]]*(1-(Tableau1[[#This Row],[Remise]]/100))","v":{"$error":"#VALUE!"}}]
["300142","LDV A2 24-025mm (RL:16.2m²) FEUTRE EXTERIEUR DE GAINES A2","3011","ISOLATION LDV / LDR","M2",7.5285000000000002,"",{"$f":"IF(ISERR(U61)=TRUE,,(F61*(1-G61/100)))","v":0},"OUI",null,null,null,null,null,null,null,null,null,null,null,{"$f":"Tableau1[[#This Row],[Prix de vente\n 2019]]*(1-(Tableau1[[#This Row],[Remise]]/100))","v":{"$error":"#VALUE!"}}]
["300162","LDV 50-1 -Ep:50mm(RL:12m²) FEUTRE EXTERIEUR DE GAINES A1","3011","ISOLATION LDV / LDR","M2",15.928500000000001,"",{"$f":"IF(ISERR(U62)=TRUE,,(F62*(1-G62/100)))","v":0},"OUI",null,null,null,null,null,null,null,null,null,null,null,{"$f":"Tableau1[[#This Row],[Prix de vente\n 2019]]*(1-(Tableau1[[#This Row],[Remise]]/100))","v":{"$error":"#VALUE!"}}]
["300163","LDV A2 16-050mm (RL:15.6m²) FEUTRE EXTERIEUR DE GAINES A2","3011","ISOLATION LDV / LDR","M2",9.0195000000000007,"",{"$f":"IF(ISERR(U63)=TRUE,,(F63*(1-G63/100)))","v":0},"OUI",null,null,null,null,null,null,null,null,null,null,null,{"$f":"Tableau1[[#This Row],[Prix de vente\n 2019]]*(1-(Tableau1[[#This Row],[Remise]]/100))","v":{"$error":"#VALUE!"}}]
["300181","LDR 20-1 -Ep:20mm(RL:10m²) FEUTRE LAINE DE ROCHE EXT DE GAINES A1","3011","ISOLATION LDV / LDR","M2",11.487,"",{"$f":"IF(ISERR(U64)=TRUE,,(F64*(1-G64/100)))","v":0},"OUI",null,null,null,null,null,null,null,null,null,null,null,{"$f":"Tableau1[[#This Row],[Prix de vente\n 2019]]*(1-(Tableau1[[#This Row],[Remise]]/100))","v":{"$error":"#VALUE!"}}]
["300185","LDR 30-1 -Ep:30mm(RL:8m²) FEUTRE LAINE DE ROCHE EXT DE GAINES A1","3011","ISOLATION LDV / LDR","M2",12.348000000000001,"",{"$f":"IF(ISERR(U65)=TRUE,,(F65*(1-G65/100)))","v":0},"OUI",null,null,null,null,null,null,null,null,null,null,null,{"$f":"Tableau1[[#This Row],[Prix de vente\n 2019]]*(1-(Tableau1[[#This Row],[Remise]]/100))","v":{"$error":"#VALUE!"}}]
["300187","LDR 40-1 -Ep:40mm(RL:6m²) FEUTRE LAINE DE ROCHE EXT DE GAINES A1","3011","ISOLATION LDV / LDR","M2",15.875999999999999,"",{"$f":"IF(ISERR(U66)=TRUE,,(F66*(1-G66/100)))","v":0},"OUI",null,null,null,null,null,null,null,null,null,null,null,{"$f":"Tableau1[[#This Row],[Prix de vente\n 2019]]*(1-(Tableau1[[#This Row],[Remise]]/100))","v":{"$error":"#VALUE!"}}]
["300189","LDR 50-1 -Ep:50mm(RL:5m²) FEUTRE LAINE DE ROCHE EXT DE GAINES A1","3011","ISOLATION LDV / LDR","M2",17.503500000000003,"",{"$f":"IF(ISERR(U67)=TRUE,,(F67*(1-G67/100)))","v":0},"OUI",null,null,null,null,null,null,null,null,null,null,null,{"$f":"Tableau1[[#This Row],[Prix de vente\n 2019]]*(1-(Tableau1[[#This Row],[Remise]]/100))","v":{"$error":"#VALUE!"}}]
["300203","COLLE POUR ISOLANT LDV/LDR - BOMBE 500ml","3121","ACCESSOIRES LDV (CLIPS,OUTILS)","Pièce",13.167,"",{"$f":"IF(ISERR(U68)=TRUE,,(F68*(1-G68/100)))","v":0},"OUI",null,null,null,null,null,null,null,null,null,null,null,{"$f":"Tableau1[[#This Row],[Prix de vente\n 2019]]*(1-(Tableau1[[#This Row],[Remise]]/100))","v":{"$error":"#VALUE!"}}]
["300204","ENDUIT DE PROTECTION EXTERIEUR BLANC M1 25 KG","5101","MASTIC D'ETANCHEITE","Pot",561.90750000000003,"",{"$f":"IF(ISERR(U69)=TRUE,,(F69*(1-G69/100)))","v":0},"OUI",null,null,null,null,null,null,null,null,null,null,null,{"$f":"Tableau1[[#This Row],[Prix de vente\n 2019]]*(1-(Tableau1[[#This Row],[Remise]]/100))","v":{"$error":"#VALUE!"}}]
["300206","COLLE POUR ISOLANT LDV/LDR - BIDON 5l","3121","ACCESSOIRES LDV (CLIPS,OUTILS)","Pièce",84.304500000000004,"",{"$f":"IF(ISERR(U70)=TRUE,,(F70*(1-G70/100)))","v":0},"OUI",null,null,null,null,null,null,null,null,null,null,null,{"$f":"Tableau1[[#This Row],[Prix de vente\n 2019]]*(1-(Tableau1[[#This Row],[Remise]]/100))","v":{"$error":"#VALUE!"}}]
["300221","AGRAFES POUR PANNEAUX LDV (Boîte 5000 pces)","3121","ACCESSOIRES LDV (CLIPS,OUTILS)","Boite",109.7985,"",{"$f":"IF(ISERR(U71)=TRUE,,(F71*(1-G71/100)))","v":0},"OUI",null,null,null,null,null,null,null,null,null,null,null,{"$f":"Tableau1[[#This Row],[Prix de vente\n 2019]]*(1-(Tableau1[[#This Row],[Remise]]/100))","v":{"$error":"#VALUE!"}}]
["300301","SC 19 Bte 500 POINTES AUTO ADHESIVES","3121","ACCESSOIRES LDV (CLIPS,OUTILS)","Boite",153.31049999999999,"",{"$f":"IF(ISERR(U72)=TRUE,,(F72*(1-G72/100)))","v":0},"OUI",null,null,null,null,null,null,null,null,null,null,null,{"$f":"Tableau1[[#This Row],[Prix de vente\n 2019]]*(1-(Tableau1[[#This Row],[Remise]]/100))","v":{"$error":"#VALUE!"}}]
["300302","SC 25 Bte 500 POINTES AUTO ADHESIVES","3121","ACCESSOIRES LDV (CLIPS,OUTILS)","Pièce",157.3425,"",{"$f":"IF(ISERR(U73)=TRUE,,(F73*(1-G73/100)))","v":0},"OUI",null,null,null,null,null,null,null,null,null,null,null,{"$f":"Tableau1[[#This Row],[Prix de vente\n 2019]]*(1-(Tableau1[[#This Row],[Remise]]/100))","v":{"$error":"#VALUE!"}}]
["300303","SC 32 Bte 500 POINTES + RONDELLES AUTO ADHESIVES","3121","ACCESSOIRES LDV (CLIPS,OUTILS)","Boite",160.49250000000001,"",{"$f":"IF(ISERR(U74)=TRUE,,(F74*(1-G74/100)))","v":0},"OUI",null,null,null,null,null,null,null,null,null,null,null,{"$f":"Tableau1[[#This Row],[Prix de vente\n 2019]]*(1-(Tableau1[[#This Row],[Remise]]/100))","v":{"$error":"#VALUE!"}}]
["300304","SC 42 Bte 500 POINTES AUTO ADHESIVES","3121","ACCESSOIRES LDV (CLIPS,OUTILS)","Pièce",166.66649999999998,"",{"$f":"IF(ISERR(U75)=TRUE,,(F75*(1-G75/100)))","v":0},"OUI",null,null,null,null,null,null,null,null,null,null,null,{"$f":"Tableau1[[#This Row],[Prix de vente\n 2019]]*(1-(Tableau1[[#This Row],[Remise]]/100))","v":{"$error":"#VALUE!"}}]
["300305","SC 51 Bte 500 POINTES AUTO ADHESIVES","3121","ACCESSOIRES LDV (CLIPS,OUTILS)","Pièce",173.43900000000002,"",{"$f":"IF(ISERR(U76)=TRUE,,(F76*(1-G76/100)))","v":0},"OUI",null,null,null,null,null,null,null,null,null,null,null,{"$f":"Tableau1[[#This Row],[Prix de vente\n 2019]]*(1-(Tableau1[[#This Row],[Remise]]/100))","v":{"$error":"#VALUE!"}}]
["300306","SC 63 Bte 500 POINTES AUTO ADHESIVES","3121","ACCESSOIRES LDV (CLIPS,OUTILS)","Boite",180.89400000000001,"",{"$f":"IF(ISERR(U77)=TRUE,,(F77*(1-G77/100)))","v":0},"OUI",null,null,null,null,null,null,null,null,null,null,null,{"$f":"Tableau1[[#This Row],[Prix de vente\n 2019]]*(1-(Tableau1[[#This Row],[Remise]]/100))","v":{"$error":"#VALUE!"}}]
["300330","CL2 RONDELLE POUR POINTES SC - Bte 1000 Pces","3121","ACCESSOIRES LDV (CLIPS,OUTILS)","Pièce",64.869,"",{"$f":"IF(ISERR(U78)=TRUE,,(F78*(1-G78/100)))","v":0},"OUI",null,null,null,null,null,null,null,null,null,null,null,{"$f":"Tableau1[[#This Row],[Prix de vente\n 2019]]*(1-(Tableau1[[#This Row],[Remise]]/100))","v":{"$error":"#VALUE!"}}]
["300340","NSC-2 CAPUCHONS (1000)","3121","ACCESSOIRES LDV (CLIPS,OUTILS)","Boite",67.473000000000013,"",{"$f":"IF(ISERR(U79)=TRUE,,(F79*(1-G79/100)))","v":0},"OUI",null,null,null,null,null,null,null,null,null,null,null,{"$f":"Tableau1[[#This Row],[Prix de vente\n 2019]]*(1-(Tableau1[[#This Row],[Remise]]/100))","v":{"$error":"#VALUE!"}}]
["300341","NSC-27 CAPUCHONS (1000)","3121","ACCESSOIRES LDV (CLIPS,OUTILS)","Boite",67.473000000000013,"",{"$f":"IF(ISERR(U80)=TRUE,,(F80*(1-G80/100)))","v":0},"OUI",null,null,null,null,null,null,null,null,null,null,null,{"$f":"Tableau1[[#This Row],[Prix de vente\n 2019]]*(1-(Tableau1[[#This Row],[Remise]]/100))","v":{"$error":"#VALUE!"}}]
["300351","SP2-TC 19 POINTES A SOUDER H.19mm Boite: 1000 pces","3121","ACCESSOIRES LDV (CLIPS,OUTILS)","Boite",17.881500000000003,"",{"$f":"IF(ISERR(U81)=TRUE,,(F81*(1-G81/100)))","v":0},"OUI",null,null,null,null,null,null,null,null,null,null,null,{"$f":"Tableau1[[#This Row],[Prix de vente\n 2019]]*(1-(Tableau1[[#This Row],[Remise]]/100))","v":{"$error":"#VALUE!"}}]
["300352","SP2-TC-25 POINTES A SOUDER H:25mm Boite: 1000 pces","3121","ACCESSOIRES LDV (CLIPS,OUTILS)","Boite",21.136500000000002,"",{"$f":"IF(ISERR(U82)=TRUE,,(F82*(1-G82/100)))","v":0},"OUI",null,null,null,null,null,null,null,null,null,null,null,{"$f":"Tableau1[[#This Row],[Prix de vente\n 2019]]*(1-(Tableau1[[#This Row],[Remise]]/100))","v":{"$error":"#VALUE!"}}]
["300353","SP2-TC-32 POINTES A SOUDER H:32mm Boite: 1000 pces","3121","ACCESSOIRES LDV (CLIPS,OUTILS)","Boite",23.383500000000002,"",{"$f":"IF(ISERR(U83)=TRUE,,(F83*(1-G83/100)))","v":0},"OUI",null,null,null,null,null,null,null,null,null,null,null,{"$f":"Tableau1[[#This Row],[Prix de vente\n 2019]]*(1-(Tableau1[[#This Row],[Remise]]/100))","v":{"$error":"#VALUE!"}}]
["300354","SP2-TC-42 POINTES A SOUDER H:42mm Boite: 1000 pces","3121","ACCESSOIRES LDV (CLIPS,OUTILS)","Pièce",29.589000000000002,"",{"$f":"IF(ISERR(U84)=TRUE,,(F84*(1-G84/100)))","v":0},"OUI",null,null,null,null,null,null,null,null,null,null,null,{"$f":"Tableau1[[#This Row],[Prix de vente\n 2019]]*(1-(Tableau1[[#This Row],[Remise]]/100))","v":{"$error":"#VALUE!"}}]
["300355","SP2-TC-51 POINTES A SOUDER H:51mm Boite: 1000 pces","3121","ACCESSOIRES LDV (CLIPS,OUTILS)","Pièce",34.397999999999996,"",{"$f":"IF(ISERR(U85)=TRUE,,(F85*(1-G85/100)))","v":0},"OUI",null,null,null,null,null,null,null,null,null,null,null,{"$f":"Tableau1[[#This Row],[Prix de vente\n 2019]]*(1-(Tableau1[[#This Row],[Remise]]/100))","v":{"$error":"#VALUE!"}}]
["300356","SP2-TC-63 POINTES A SOUDER H:63mm Boite: 1000 pces","3121","ACCESSOIRES LDV (CLIPS,OUTILS)","Pièce",42.283500000000004,"",{"$f":"IF(ISERR(U86)=TRUE,,(F86*(1-G86/100)))","v":0},"OUI",null,null,null,null,null,null,null,null,null,null,null,{"$f":"Tableau1[[#This Row],[Prix de vente\n 2019]]*(1-(Tableau1[[#This Row],[Remise]]/100))","v":{"$error":"#VALUE!"}}]
["300357","SP2-TC-76 POINTES A SOUDER H:76mm Boite: 1000 pces","3121","ACCESSOIRES LDV (CLIPS,OUTILS)","Pièce",50.137500000000003,"",{"$f":"IF(ISERR(U87)=TRUE,,(F87*(1-G87/100)))","v":0},"OUI",null,null,null,null,null,null,null,null,null,null,null,{"$f":"Tableau1[[#This Row],[Prix de vente\n 2019]]*(1-(Tableau1[[#This Row],[Remise]]/100))","v":{"$error":"#VALUE!"}}]
["300371","CL0 - 30 RONDELLES D.30 mm Boite: 1000 pces","3121","ACCESSOIRES LDV (CLIPS,OUTILS)","Boite",64.869,"",{"$f":"IF(ISERR(U88)=TRUE,,(F88*(1-G88/100)))","v":0},"OUI",null,null,null,null,null,null,null,null,null,null,null,{"$f":"Tableau1[[#This Row],[Prix de vente\n 2019]]*(1-(Tableau1[[#This Row],[Remise]]/100))","v":{"$error":"#VALUE!"}}]
["300380","PW33 PISTOLET A SOUDER POUR POINTE SP 230 V.","3121","ACCESSOIRES LDV (CLIPS,OUTILS)","Pièce",2589.4470000000001,"",{"$f":"IF(ISERR(U89)=TRUE,,(F89*(1-G89/100)))","v":0},"OUI",null,null,null,null,null,null,null,null,null,null,null,{"$f":"Tableau1[[#This Row],[Prix de vente\n 2019]]*(1-(Tableau1[[#This Row],[Remise]]/100))","v":{"$error":"#VALUE!"}}]
["300402","CDF3-19 POINTES A SOUDER NON ISOLEE H.19mm Boite: 1000 pces","3121","ACCESSOIRES LDV (CLIPS,OUTILS)","Boite",144.20700000000002,"",{"$f":"IF(ISERR(U90)=TRUE,,(F90*(1-G90/100)))","v":0},"OUI",null,null,null,null,null,null,null,null,null,null,null,{"$f":"Tableau1[[#This Row],[Prix de vente\n 2019]]*(1-(Tableau1[[#This Row],[Remise]]/100))","v":{"$error":"#VALUE!"}}]
["300404","CDF3-25 POINTES A SOUDER NON ISOLEE H.25mm Boite: 1000 pces","3121","ACCESSOIRES LDV (CLIPS,OUTILS)","Boite",147.798,"",{"$f":"IF(ISERR(U91)=TRUE,,(F91*(1-G91/100)))","v":0},"OUI",null,null,null,null,null,null,null,null,null,null,null,{"$f":"Tableau1[[#This Row],[Prix de vente\n 2019]]*(1-(Tableau1[[#This Row],[Remise]]/100))","v":{"$error":"#VALUE!"}}]
["300406","CDF3-32 POINTES A SOUDER NON ISOLEE H.32mm Boite: 1000 pces","3121","ACCESSOIRES LDV (CLIPS,OUTILS)","Boite",158.86500000000001,"",{"$f":"IF(ISERR(U92)=TRUE,,(F92*(1-G92/100)))","v":0},"OUI",null,null,null,null,null,null,null,null,null,null,null,{"$f":"Tableau1[[#This Row],[Prix de vente\n 2019]]*(1-(Tableau1[[#This Row],[Remise]]/100))","v":{"$error":"#VALUE!"}}]
["300408","CDF3-42 POINTES A SOUDER NON ISOLEE H.42mm Boite: 1000 pces","3121","ACCESSOIRES LDV (CLIPS,OUTILS)","Boite",168.01050000000001,"",{"$f":"IF(ISERR(U93)=TRUE,,(F93*(1-G93/100)))","v":0},"OUI",null,null,null,null,null,null,null,null,null,null,null,{"$f":"Tableau1[[#This Row],[Prix de vente\n 2019]]*(1-(Tableau1[[#This Row],[Remise]]/100))","v":{"$error":"#VALUE!"}}]
["300410","CDF3-52 POINTES A SOUDER NON ISOLEE H.52mm Boite: 1000 pces","3121","ACCESSOIRES LDV (CLIPS,OUTILS)","Boite",181.5975,"",{"$f":"IF(ISERR(U94)=TRUE,,(F94*(1-G94/100)))","v":0},"OUI",null,null,null,null,null,null,null,null,null,null,null,{"$f":"Tableau1[[#This Row],[Prix de vente\n 2019]]*(1-(Tableau1[[#This Row],[Remise]]/100))","v":{"$error":"#VALUE!"}}]
["300412","CDF3-62 POINTES A SOUDER NON ISOLEE H.62mm Boite: 1000 pces","3121","ACCESSOIRES LDV (CLIPS,OUTILS)","Boite",198.84899999999999,"",{"$f":"IF(ISERR(U95)=TRUE,,(F95*(1-G95/100)))","v":0},"OUI",null,null,null,null,null,null,null,null,null,null,null,{"$f":"Tableau1[[#This Row],[Prix de vente\n 2019]]*(1-(Tableau1[[#This Row],[Remise]]/100))","v":{"$error":"#VALUE!"}}]
["300417","CDF3-100 POINTES A SOUDER NON ISOLEE H.100mm Boite: 1000 pces","3121","ACCESSOIRES LDV (CLIPS,OUTILS)","Boite",261.14550000000003,"",{"$f":"IF(ISERR(U96)=TRUE,,(F96*(1-G96/100)))","v":0},"OUI",null,null,null,null,null,null,null,null,null,null,null,{"$f":"Tableau1[[#This Row],[Prix de vente\n 2019]]*(1-(Tableau1[[#This Row],[Remise]]/100))","v":{"$error":"#VALUE!"}}]
["300422","CDF3-PAP-19 POINTES A SOUDER A TETE ISOLEE H.19mm Boite: 1000 pces","3121","ACCESSOIRES LDV (CLIPS,OUTILS)","Boite",161.679,"",{"$f":"IF(ISERR(U97)=TRUE,,(F97*(1-G97/100)))","v":0},"OUI",null,null,null,null,null,null,null,null,null,null,null,{"$f":"Tableau1[[#This Row],[Prix de vente\n 2019]]*(1-(Tableau1[[#This Row],[Remise]]/100))","v":{"$error":"#VALUE!"}}]
["300424","CDF3-PAP-25 POINTES A SOUDER A TETE ISOLEE H.25mm Boite: 1000 pces","3121","ACCESSOIRES LDV (CLIPS,OUTILS)","Boite",165.27,"",{"$f":"IF(ISERR(U98)=TRUE,,(F98*(1-G98/100)))","v":0},"OUI",null,null,null,null,null,null,null,null,null,null,null,{"$f":"Tableau1[[#This Row],[Prix de vente\n 2019]]*(1-(Tableau1[[#This Row],[Remise]]/100))","v":{"$error":"#VALUE!"}}]
["300426","CDF3-PAP-32 POINTES A SOUDER A TETE ISOLEE H.32mm Boite: 1000 pces","3121","ACCESSOIRES LDV (CLIPS,OUTILS)","Boite",176.3475,"",{"$f":"IF(ISERR(U99)=TRUE,,(F99*(1-G99/100)))","v":0},"OUI",null,null,null,null,null,null,null,null,null,null,null,{"$f":"Tableau1[[#This Row],[Prix de vente\n 2019]]*(1-(Tableau1[[#This Row],[Remise]]/100))","v":{"$error":"#VALUE!"}}]
["300428","CDF3-PAP-42 POINTES A SOUDER A TETE ISOLEE H.42mm Boite: 1000 pces","3121","ACCESSOIRES LDV (CLIPS,OUTILS)","Boite",185.45100000000002,"",{"$f":"IF(ISERR(U100)=TRUE,,(F100*(1-G100/100)))","v":0},"OUI",null,null,null,null,null,null,null,null,null,null,null,{"$f":"Tableau1[[#This Row],[Prix de vente\n 2019]]*(1-(Tableau1[[#This Row],[Remise]]/100))","v":{"$error":"#VALUE!"}}]
["300430","CDF3-PAP-52 POINTES A SOUDER A TETE ISOLEE H.52mm Boite: 1000 pces","3121","ACCESSOIRES LDV (CLIPS,OUTILS)","Boite",199.05900000000003,"",{"$f":"IF(ISERR(U101)=TRUE,,(F101*(1-G101/100)))","v":0},"OUI",null,null,null,null,null,null,null,null,null,null,null,{"$f":"Tableau1[[#This Row],[Prix de vente\n 2019]]*(1-(Tableau1[[#This Row],[Remise]]/100))","v":{"$error":"#VALUE!"}}]
["300432","CDF3-PAP-62 POINTES A SOUDER A TETE ISOLEE H.62mm Boite: 1000 pces","3121","ACCESSOIRES LDV (CLIPS,OUTILS)","Boite",216.32100000000003,"",{"$f":"IF(ISERR(U102)=TRUE,,(F102*(1-G102/100)))","v":0},"OUI",null,null,null,null,null,null,null,null,null,null,null,{"$f":"Tableau1[[#This Row],[Prix de vente\n 2019]]*(1-(Tableau1[[#This Row],[Remise]]/100))","v":{"$error":"#VALUE!"}}]
["300481","CDW-72 PISTOLET A SOUDER POUR POINTE CDF AVEC BOITE JAUNE","3121","ACCESSOIRES LDV (CLIPS,OUTILS)","Pièce",9876.0164999999997,"",{"$f":"IF(ISERR(U103)=TRUE,,(F103*(1-G103/100)))","v":0},"OUI",null,null,null,null,null,null,null,null,null,null,null,{"$f":"Tableau1[[#This Row],[Prix de vente\n 2019]]*(1-(Tableau1[[#This Row],[Remise]]/100))","v":{"$error":"#VALUE!"}}]
["300502","PCF 35x25x20 LG:2000 4/10éme PROFIL PRE-CADRE POUR FIBER","3121","ACCESSOIRES LDV (CLIPS,OUTILS)","ML",22.05,"",{"$f":"IF(ISERR(U104)=TRUE,,(F104*(1-G104/100)))","v":0},"OUI",null,null,null,null,null,null,null,null,null,null,null,{"$f":"Tableau1[[#This Row],[Prix de vente\n 2019]]*(1-(Tableau1[[#This Row],[Remise]]/100))","v":{"$error":"#VALUE!"}}]
["300510","PROFIL L 20x20 8/10éme (lg:2ml)","3121","ACCESSOIRES LDV (CLIPS,OUTILS)","ML",16.537500000000001,"",{"$f":"IF(ISERR(U105)=TRUE,,(F105*(1-G105/100)))","v":0},"OUI",null,null,null,null,null,null,null,null,null,null,null,{"$f":"Tableau1[[#This Row],[Prix de vente\n 2019]]*(1-(Tableau1[[#This Row],[Remise]]/100))","v":{"$error":"#VALUE!"}}]
["320502","BIA NOIRE M1 - RL DE 10ml x 50mm","5102","BANDE D'ETANCHEITE","Rl",12.096,"",{"$f":"IF(ISERR(U106)=TRUE,,(F106*(1-G106/100)))","v":0},"OUI",null,null,null,null,null,null,null,null,null,null,null,{"$f":"Tableau1[[#This Row],[Prix de vente\n 2019]]*(1-(Tableau1[[#This Row],[Remise]]/100))","v":{"$error":"#VALUE!"}}]
["320513","TISSU DE VERRE 0.20x25ml ROULEAU","5101","MASTIC D'ETANCHEITE","Rl",35.700000000000003,"",{"$f":"IF(ISERR(U107)=TRUE,,(F107*(1-G107/100)))","v":0},"OUI",null,null,null,null,null,null,null,null,null,null,null,{"$f":"Tableau1[[#This Row],[Prix de vente\n 2019]]*(1-(Tableau1[[#This Row],[Remise]]/100))","v":{"$error":"#VALUE!"}}]
["320514","TISSU DE COTON - BANDE DE 0.15x20ml","5101","MASTIC D'ETANCHEITE","Rl",8.9775000000000009,"",{"$f":"IF(ISERR(U108)=TRUE,,(F108*(1-G108/100)))","v":0},"OUI",null,null,null,null,null,null,null,null,null,null,null,{"$f":"Tableau1[[#This Row],[Prix de vente\n 2019]]*(1-(Tableau1[[#This Row],[Remise]]/100))","v":{"$error":"#VALUE!"}}]
["320515","TISSU DE COTON - BANDE DE 0.20x20ml","5101","MASTIC D'ETANCHEITE","Rl",12.369,"",{"$f":"IF(ISERR(U109)=TRUE,,(F109*(1-G109/100)))","v":0},"OUI",null,null,null,null,null,null,null,null,null,null,null,{"$f":"Tableau1[[#This Row],[Prix de vente\n 2019]]*(1-(Tableau1[[#This Row],[Remise]]/100))","v":{"$error":"#VALUE!"}}]
["320516","TISSU DE VERRE 1.00 x50ml ROULEAU","5101","MASTIC D'ETANCHEITE","Rl",178.64699999999999,"",{"$f":"IF(ISERR(U110)=TRUE,,(F110*(1-G110/100)))","v":0},"OUI",null,null,null,null,null,null,null,null,null,null,null,{"$f":"Tableau1[[#This Row],[Prix de vente\n 2019]]*(1-(Tableau1[[#This Row],[Remise]]/100))","v":{"$error":"#VALUE!"}}]
["320517","TISSU DE COTON - BANDE DE 1mx20ml","5101","MASTIC D'ETANCHEITE","Rl",61.403999999999996,"",{"$f":"IF(ISERR(U111)=TRUE,,(F111*(1-G111/100)))","v":0},"OUI",null,null,null,null,null,null,null,null,null,null,null,{"$f":"Tableau1[[#This Row],[Prix de vente\n 2019]]*(1-(Tableau1[[#This Row],[Remise]]/100))","v":{"$error":"#VALUE!"}}]
["410001","GSN 080 - CONDUIT FLEXIBLE NU D.080 M0","4101","CONDUITS FLEX. FEUILLES D'ALU. NU","ML",3.3705000000000003,"",{"$f":"IF(ISERR(U112)=TRUE,,(F112*(1-G112/100)))","v":0},"OUI",null,null,null,null,null,null,null,null,null,null,null,{"$f":"Tableau1[[#This Row],[Prix de vente\n 2019]]*(1-(Tableau1[[#This Row],[Remise]]/100))","v":{"$error":"#VALUE!"}}]
["410002","GSN 100 - CONDUIT FLEXIBLE NU D.100 M0","4101","CONDUITS FLEX. FEUILLES D'ALU. NU","ML",3.7590000000000003,"",{"$f":"IF(ISERR(U113)=TRUE,,(F113*(1-G113/100)))","v":0},"OUI",null,null,null,null,null,null,null,null,null,null,null,{"$f":"Tableau1[[#This Row],[Prix de vente\n 2019]]*(1-(Tableau1[[#This Row],[Remise]]/100))","v":{"$error":"#VALUE!"}}]
["410003","GSN 125 - CONDUIT FLEXIBLE NU D.125 M0","4101","CONDUITS FLEX. FEUILLES D'ALU. NU","ML",4.0739999999999998,"",{"$f":"IF(ISERR(U114)=TRUE,,(F114*(1-G114/100)))","v":0},"OUI",null,null,null,null,null,null,null,null,null,null,null,{"$f":"Tableau1[[#This Row],[Prix de vente\n 2019]]*(1-(Tableau1[[#This Row],[Remise]]/100))","v":{"$error":"#VALUE!"}}]
["410004","GSN 160 - CONDUIT FLEXIBLE NU D.160 M0","4101","CONDUITS FLEX. FEUILLES D'ALU. NU","ML",4.7670000000000003,{"$f":"IF(C115=\"9999\",0,IF(IF(ISERROR(VLOOKUP(C115,Grille1,3,FALSE)),VLOOKUP(C115,Grille2,3,FALSE),VLOOKUP(C115,Grille1,3,FALSE))=\"\",\"\",IF(ISERROR(VLOOKUP(C115,Grille1,3,FALSE)),VLOOKUP(C115,Grille2,3,FALSE),VLOOKUP(C115,Grille1,3,FALSE))))","v":""},{"$f":"IF(ISERR(U115)=TRUE,,(F115*(1-G115/100)))","v":0},"OUI",null,null,null,null,null,null,null,null,null,null,null,{"$f":"Tableau1[[#This Row],[Prix de vente\n 2019]]*(1-(Tableau1[[#This Row],[Remise]]/100))","v":{"$error":"#VALUE!"}}]
["410005","GSN 200 - CONDUIT FLEXIBLE NU D.200 M0","4101","CONDUITS FLEX. FEUILLES D'ALU. NU","ML",6.3420000000000005,"",{"$f":"IF(ISERR(U116)=TRUE,,(F116*(1-G116/100)))","v":0},"OUI",null,null,null,null,null,null,null,null,null,null,null,{"$f":"Tableau1[[#This Row],[Prix de vente\n 2019]]*(1-(Tableau1[[#This Row],[Remise]]/100))","v":{"$error":"#VALUE!"}}]
["410006","GSN 250 - CONDUIT FLEXIBLE NU D.250 M0","4101","CONDUITS FLEX. FEUILLES D'ALU. NU","ML",8.9250000000000007,"",{"$f":"IF(ISERR(U117)=TRUE,,(F117*(1-G117/100)))","v":0},"OUI",null,null,null,null,null,null,null,null,null,null,null,{"$f":"Tableau1[[#This Row],[Prix de vente\n 2019]]*(1-(Tableau1[[#This Row],[Remise]]/100))","v":{"$error":"#VALUE!"}}]
["410007","GSN 315 - CONDUIT FLEXIBLE NU D.315 M0","4101","CONDUITS FLEX. FEUILLES D'ALU. NU","ML",11.098500000000001,"",{"$f":"IF(ISERR(U118)=TRUE,,(F118*(1-G118/100)))","v":0},"OUI",null,null,null,null,null,null,null,null,null,null,null,{"$f":"Tableau1[[#This Row],[Prix de vente\n 2019]]*(1-(Tableau1[[#This Row],[Remise]]/100))","v":{"$error":"#VALUE!"}}]
["410008","GSN 355 - CONDUIT FLEXIBLE NU D.355 M0","4101","CONDUITS FLEX. FEUILLES D'ALU. NU","ML",14.973000000000001,"",{"$f":"IF(ISERR(U119)=TRUE,,(F119*(1-G119/100)))","v":0},"OUI",null,null,null,null,null,null,null,null,null,null,null,{"$f":"Tableau1[[#This Row],[Prix de vente\n 2019]]*(1-(Tableau1[[#This Row],[Remise]]/100))","v":{"$error":"#VALUE!"}}]
["410009","GSN 400 - CONDUIT FLEXIBLE NU D.400 M0","4101","CONDUITS FLEX. FEUILLES D'ALU. NU","ML",17.64,"",{"$f":"IF(ISERR(U120)=TRUE,,(F120*(1-G120/100)))","v":0},"OUI",null,null,null,null,null,null,null,null,null,null,null,{"$f":"Tableau1[[#This Row],[Prix de vente\n 2019]]*(1-(Tableau1[[#This Row],[Remise]]/100))","v":{"$error":"#VALUE!"}}]
["410010","GSN 450 - CONDUIT FLEXIBLE NU D.450 M0","4101","CONDUITS FLEX. FEUILLES D'ALU. NU","ML",24.580500000000001,"",{"$f":"IF(ISERR(U121)=TRUE,,(F121*(1-G121/100)))","v":0},"OUI",null,null,null,null,null,null,null,null,null,null,null,{"$f":"Tableau1[[#This Row],[Prix de vente\n 2019]]*(1-(Tableau1[[#This Row],[Remise]]/100))","v":{"$error":"#VALUE!"}}]
["410011","GSN 500 - CONDUIT FLEXIBLE NU D.500 M0","4101","CONDUITS FLEX. FEUILLES D'ALU. NU","ML",27.258000000000003,"",{"$f":"IF(ISERR(U122)=TRUE,,(F122*(1-G122/100)))","v":0},"OUI",null,null,null,null,null,null,null,null,null,null,null,{"$f":"Tableau1[[#This Row],[Prix de vente\n 2019]]*(1-(Tableau1[[#This Row],[Remise]]/100))","v":{"$error":"#VALUE!"}}]
["410012","GSN 560 - CONDUIT FLEXIBLE NU D.560 M0","4101","CONDUITS FLEX. FEUILLES D'ALU. NU","ML",35.678999999999995,"",{"$f":"IF(ISERR(U123)=TRUE,,(F123*(1-G123/100)))","v":0},"OUI",null,null,null,null,null,null,null,null,null,null,null,{"$f":"Tableau1[[#This Row],[Prix de vente\n 2019]]*(1-(Tableau1[[#This Row],[Remise]]/100))","v":{"$error":"#VALUE!"}}]
["410013","GSN 630 - CONDUIT FLEXIBLE NU D.630 M0","4101","CONDUITS FLEX. FEUILLES D'ALU. NU","ML",40.131,"",{"$f":"IF(ISERR(U124)=TRUE,,(F124*(1-G124/100)))","v":0},"OUI",null,null,null,null,null,null,null,null,null,null,null,{"$f":"Tableau1[[#This Row],[Prix de vente\n 2019]]*(1-(Tableau1[[#This Row],[Remise]]/100))","v":{"$error":"#VALUE!"}}]
["410021","GSIP 25 080 - CONDUIT FLEXIBLE PHONIQUE, ISOLE LDV 25mm M0-M1","4102","CONDUITS FLEX. FEUILLES D'ALU. ISO","ML",7.7175000000000002,"",{"$f":"IF(ISERR(U125)=TRUE,,(F125*(1-G125/100)))","v":0},"OUI",null,null,null,null,null,null,null,null,null,null,null,{"$f":"Tableau1[[#This Row],[Prix de vente\n 2019]]*(1-(Tableau1[[#This Row],[Remise]]/100))","v":{"$error":"#VALUE!"}}]
["410022","GSIP 25 100 - CONDUIT FLEXIBLE PHONIQUE, ISOLE LDV 25mm M0-M1","4102","CONDUITS FLEX. FEUILLES D'ALU. ISO","ML",9.4185000000000016,"",{"$f":"IF(ISERR(U126)=TRUE,,(F126*(1-G126/100)))","v":0},"OUI",null,null,null,null,null,null,null,null,null,null,null,{"$f":"Tableau1[[#This Row],[Prix de vente\n 2019]]*(1-(Tableau1[[#This Row],[Remise]]/100))","v":{"$error":"#VALUE!"}}]
["410023","GSIP 25 125 - CONDUIT FLEXIBLE PHONIQUE, ISOLE LDV 25mm M0-M1","4102","CONDUITS FLEX. FEUILLES D'ALU. ISO","ML",10.416,"",{"$f":"IF(ISERR(U127)=TRUE,,(F127*(1-G127/100)))","v":0},"OUI",null,null,null,null,null,null,null,null,null,null,null,{"$f":"Tableau1[[#This Row],[Prix de vente\n 2019]]*(1-(Tableau1[[#This Row],[Remise]]/100))","v":{"$error":"#VALUE!"}}]
["410024","GSIP 25 160 - CONDUIT FLEXIBLE PHONIQUE, ISOLE LDV 25mm M0-M1","4102","CONDUITS FLEX. FEUILLES D'ALU. ISO","ML",11.833500000000001,"",{"$f":"IF(ISERR(U128)=TRUE,,(F128*(1-G128/100)))","v":0},"OUI",null,null,null,null,null,null,null,null,null,null,null,{"$f":"Tableau1[[#This Row],[Prix de vente\n 2019]]*(1-(Tableau1[[#This Row],[Remise]]/100))","v":{"$error":"#VALUE!"}}]
["410025","GSIP 25 200 - CONDUIT FLEXIBLE PHONIQUE, ISOLE LDV 25mm M0-M1","4102","CONDUITS FLEX. FEUILLES D'ALU. ISO","ML",14.668500000000002,"",{"$f":"IF(ISERR(U129)=TRUE,,(F129*(1-G129/100)))","v":0},"OUI",null,null,null,null,null,null,null,null,null,null,null,{"$f":"Tableau1[[#This Row],[Prix de vente\n 2019]]*(1-(Tableau1[[#This Row],[Remise]]/100))","v":{"$error":"#VALUE!"}}]
["410026","GSIP 25 250 - CONDUIT FLEXIBLE PHONIQUE, ISOLE LDV 25mm M0-M1","4102","CONDUITS FLEX. FEUILLES D'ALU. ISO","ML",17.976000000000003,"",{"$f":"IF(ISERR(U130)=TRUE,,(F130*(1-G130/100)))","v":0},"OUI",null,null,null,null,null,null,null,null,null,null,null,{"$f":"Tableau1[[#This Row],[Prix de vente\n 2019]]*(1-(Tableau1[[#This Row],[Remise]]/100))","v":{"$error":"#VALUE!"}}]
["410027","GSIP 25 315 - CONDUIT FLEXIBLE PHONIQUE, ISOLE LDV 25mm M0-M1","4102","CONDUITS FLEX. FEUILLES D'ALU. ISO","ML",24.118500000000001,"",{"$f":"IF(ISERR(U131)=TRUE,,(F131*(1-G131/100)))","v":0},"OUI",null,null,null,null,null,null,null,null,null,null,null,{"$f":"Tableau1[[#This Row],[Prix de vente\n 2019]]*(1-(Tableau1[[#This Row],[Remise]]/100))","v":{"$error":"#VALUE!"}}]
["410028","GSIP 25 355 - CONDUIT FLEXIBLE PHONIQUE, ISOLE LDV 25mm M0-M1","4102","CONDUITS FLEX. FEUILLES D'ALU. ISO","ML",25.189499999999999,"",{"$f":"IF(ISERR(U132)=TRUE,,(F132*(1-G132/100)))","v":0},"OUI",null,null,null,null,null,null,null,null,null,null,null,{"$f":"Tableau1[[#This Row],[Prix de vente\n 2019]]*(1-(Tableau1[[#This Row],[Remise]]/100))","v":{"$error":"#VALUE!"}}]
["410029","GSIP 25 400 - CONDUIT FLEXIBLE PHONIQUE, ISOLE LDV 25mm M0-M1","4102","CONDUITS FLEX. FEUILLES D'ALU. ISO","ML",32.6235,"",{"$f":"IF(ISERR(U133)=TRUE,,(F133*(1-G133/100)))","v":0},"OUI",null,null,null,null,null,null,null,null,null,null,null,{"$f":"Tableau1[[#This Row],[Prix de vente\n 2019]]*(1-(Tableau1[[#This Row],[Remise]]/100))","v":{"$error":"#VALUE!"}}]
["410030","GSIP 25 450 - CONDUIT FLEXIBLE PHONIQUE, ISOLE LDV 25mm M0-M1","4102","CONDUITS FLEX. FEUILLES D'ALU. ISO","ML",40.603500000000004,"",{"$f":"IF(ISERR(U134)=TRUE,,(F134*(1-G134/100)))","v":0},"OUI",null,null,null,null,null,null,null,null,null,null,null,{"$f":"Tableau1[[#This Row],[Prix de vente\n 2019]]*(1-(Tableau1[[#This Row],[Remise]]/100))","v":{"$error":"#VALUE!"}}]
["410031","GSIP 25 500 - CONDUIT FLEXIBLE PHONIQUE, ISOLE LDV 25mm M0-M1","4102","CONDUITS FLEX. FEUILLES D'ALU. ISO","ML",44.205000000000005,"",{"$f":"IF(ISERR(U135)=TRUE,,(F135*(1-G135/100)))","v":0},"OUI",null,null,null,null,null,null,null,null,null,null,null,{"$f":"Tableau1[[#This Row],[Prix de vente\n 2019]]*(1-(Tableau1[[#This Row],[Remise]]/100))","v":{"$error":"#VALUE!"}}]
["410032","GSIP 25 560 - CONDUIT FLEXIBLE PHONIQUE, ISOLE LDV 25mm M0-M1","4102","CONDUITS FLEX. FEUILLES D'ALU. ISO","ML",48.951000000000001,"",{"$f":"IF(ISERR(U136)=TRUE,,(F136*(1-G136/100)))","v":0},"OUI",null,null,null,null,null,null,null,null,null,null,null,{"$f":"Tableau1[[#This Row],[Prix de vente\n 2019]]*(1-(Tableau1[[#This Row],[Remise]]/100))","v":{"$error":"#VALUE!"}}]
["410033","GSIP 25 630 - CONDUIT FLEXIBLE PHONIQUE, ISOLE LDV 25 mm M0-M1","4102","CONDUITS FLEX. FEUILLES D'ALU. ISO","ML",52.720500000000001,"",{"$f":"IF(ISERR(U137)=TRUE,,(F137*(1-G137/100)))","v":0},"OUI",null,null,null,null,null,null,null,null,null,null,null,{"$f":"Tableau1[[#This Row],[Prix de vente\n 2019]]*(1-(Tableau1[[#This Row],[Remise]]/100))","v":{"$error":"#VALUE!"}}]
["410048","GSIT 25 355 - CONDUIT FLEXIBLE THERMIQUE, ISOLE LDV 25mm M0-M1","4102","CONDUITS FLEX. FEUILLES D'ALU. ISO","ML",25.189499999999999,"",{"$f":"IF(ISERR(U138)=TRUE,,(F138*(1-G138/100)))","v":0},"OUI",null,null,null,null,null,null,null,null,null,null,null,{"$f":"Tableau1[[#This Row],[Prix de vente\n 2019]]*(1-(Tableau1[[#This Row],[Remise]]/100))","v":{"$error":"#VALUE!"}}]
["410049","GSIT 25 400 - CONDUIT FLEXIBLE THERMIQUE, ISOLE LDV 25mm M0-M1","4102","CONDUITS FLEX. FEUILLES D'ALU. ISO","ML",32.6235,"",{"$f":"IF(ISERR(U139)=TRUE,,(F139*(1-G139/100)))","v":0},"OUI",null,null,null,null,null,null,null,null,null,null,null,{"$f":"Tableau1[[#This Row],[Prix de vente\n 2019]]*(1-(Tableau1[[#This Row],[Remise]]/100))","v":{"$error":"#VALUE!"}}]
["410050","GSIT 25 450 - CONDUIT FLEXIBLE THERMIQUE, ISOLE LDV 25mm M0-M1","4102","CONDUITS FLEX. FEUILLES D'ALU. ISO","ML",40.603500000000004,"",{"$f":"IF(ISERR(U140)=TRUE,,(F140*(1-G140/100)))","v":0},"OUI",null,null,null,null,null,null,null,null,null,null,null,{"$f":"Tableau1[[#This Row],[Prix de vente\n 2019]]*(1-(Tableau1[[#This Row],[Remise]]/100))","v":{"$error":"#VALUE!"}}]
["410051","GSIT 25 500 - CONDUIT FLEXIBLE THERMIQUE, ISOLE LDV 25mm M0-M1","4102","CONDUITS FLEX. FEUILLES D'ALU. ISO","ML",44.205000000000005,"",{"$f":"IF(ISERR(U141)=TRUE,,(F141*(1-G141/100)))","v":0},"OUI",null,null,null,null,null,null,null,null,null,null,null,{"$f":"Tableau1[[#This Row],[Prix de vente\n 2019]]*(1-(Tableau1[[#This Row],[Remise]]/100))","v":{"$error":"#VALUE!"}}]
["410052","GSIT 25 560 - CONDUIT FLEXIBLE THERMIQUE, ISOLE LDV 25mm M0-M1","4102","CONDUITS FLEX. FEUILLES D'ALU. ISO","ML",48.951000000000001,"",{"$f":"IF(ISERR(U142)=TRUE,,(F142*(1-G142/100)))","v":0},"OUI",null,null,null,null,null,null,null,null,null,null,null,{"$f":"Tableau1[[#This Row],[Prix de vente\n 2019]]*(1-(Tableau1[[#This Row],[Remise]]/100))","v":{"$error":"#VALUE!"}}]
["410053","GSIT 25 630 - CONDUIT FLEXIBLE THERMIQUE, ISOLE LDV 25mm M0-M1","4102","CONDUITS FLEX. FEUILLES D'ALU. ISO","ML",52.720500000000001,"",{"$f":"IF(ISERR(U143)=TRUE,,(F143*(1-G143/100)))","v":0},"OUI",null,null,null,null,null,null,null,null,null,null,null,{"$f":"Tableau1[[#This Row],[Prix de vente\n 2019]]*(1-(Tableau1[[#This Row],[Remise]]/100))","v":{"$error":"#VALUE!"}}]
["410071","AL PHON D.080 - FLEXIBLE ISOLE M0 - M1 - 10 ML***","4102","CONDUITS FLEX. FEUILLES D'ALU. ISO","ML",11.602500000000001,"",{"$f":"IF(ISERR(U144)=TRUE,,(F144*(1-G144/100)))","v":0},"OUI",null,null,null,null,null,null,null,null,null,null,null,{"$f":"Tableau1[[#This Row],[Prix de vente\n 2019]]*(1-(Tableau1[[#This Row],[Remise]]/100))","v":{"$error":"#VALUE!"}}]
["410072","AL PHON D.100 - FLEXIBLE ISOLE M0 - M1 - 10 ML***","4102","CONDUITS FLEX. FEUILLES D'ALU. ISO","ML",13.870500000000002,"",{"$f":"IF(ISERR(U145)=TRUE,,(F145*(1-G145/100)))","v":0},"OUI",null,null,null,null,null,null,null,null,null,null,null,{"$f":"Tableau1[[#This Row],[Prix de vente\n 2019]]*(1-(Tableau1[[#This Row],[Remise]]/100))","v":{"$error":"#VALUE!"}}]
["410073","AL PHON D.125-FLEXIBLE ISOLE M0-M1-10 ML***","4102","CONDUITS FLEX. FEUILLES D'ALU. ISO","ML",15.865500000000001,"",{"$f":"IF(ISERR(U146)=TRUE,,(F146*(1-G146/100)))","v":0},"OUI",null,null,null,null,null,null,null,null,null,null,null,{"$f":"Tableau1[[#This Row],[Prix de vente\n 2019]]*(1-(Tableau1[[#This Row],[Remise]]/100))","v":{"$error":"#VALUE!"}}]
["410074","AL PHON D.160-FLEXIBLE ISOLE M0-M1-10 ML***","4102","CONDUITS FLEX. FEUILLES D'ALU. ISO","ML",18.437999999999999,"",{"$f":"IF(ISERR(U147)=TRUE,,(F147*(1-G147/100)))","v":0},"OUI",null,null,null,null,null,null,null,null,null,null,null,{"$f":"Tableau1[[#This Row],[Prix de vente\n 2019]]*(1-(Tableau1[[#This Row],[Remise]]/100))","v":{"$error":"#VALUE!"}}]
["410075","AL PHON D.200-FLEXIBLE ISOLE M0-M1-10 ML***","4102","CONDUITS FLEX. FEUILLES D'ALU. ISO","ML",21.798000000000002,"",{"$f":"IF(ISERR(U148)=TRUE,,(F148*(1-G148/100)))","v":0},"OUI",null,null,null,null,null,null,null,null,null,null,null,{"$f":"Tableau1[[#This Row],[Prix de vente\n 2019]]*(1-(Tableau1[[#This Row],[Remise]]/100))","v":{"$error":"#VALUE!"}}]
["410076","AL PHON D.250-FLEXIBLE ISOLE M0-M1-10 ML***","4102","CONDUITS FLEX. FEUILLES D'ALU. ISO","ML",26.754000000000001,"",{"$f":"IF(ISERR(U149)=TRUE,,(F149*(1-G149/100)))","v":0},"OUI",null,null,null,null,null,null,null,null,null,null,null,{"$f":"Tableau1[[#This Row],[Prix de vente\n 2019]]*(1-(Tableau1[[#This Row],[Remise]]/100))","v":{"$error":"#VALUE!"}}]
["410077","AL PHON D.315 - FLEXIBLE ISOLE M0 - M1 - 10 ML***","4102","CONDUITS FLEX. FEUILLES D'ALU. ISO","ML",31.909500000000001,"",{"$f":"IF(ISERR(U150)=TRUE,,(F150*(1-G150/100)))","v":0},"OUI",null,null,null,null,null,null,null,null,null,null,null,{"$f":"Tableau1[[#This Row],[Prix de vente\n 2019]]*(1-(Tableau1[[#This Row],[Remise]]/100))","v":{"$error":"#VALUE!"}}]
["410078","AL PHON D.355 - FLEXIBLE ISOLE M0 - M1 - 10 ML***","4102","CONDUITS FLEX. FEUILLES D'ALU. ISO","ML",42.609000000000002,"",{"$f":"IF(ISERR(U151)=TRUE,,(F151*(1-G151/100)))","v":0},"OUI",null,null,null,null,null,null,null,null,null,null,null,{"$f":"Tableau1[[#This Row],[Prix de vente\n 2019]]*(1-(Tableau1[[#This Row],[Remise]]/100))","v":{"$error":"#VALUE!"}}]
["410079","AL PHON D.400 - FLEXIBLE ISOLE M0 - M1 - 10 ML***","4102","CONDUITS FLEX. FEUILLES D'ALU. ISO","ML",57.088499999999996,"",{"$f":"IF(ISERR(U152)=TRUE,,(F152*(1-G152/100)))","v":0},"OUI",null,null,null,null,null,null,null,null,null,null,null,{"$f":"Tableau1[[#This Row],[Prix de vente\n 2019]]*(1-(Tableau1[[#This Row],[Remise]]/100))","v":{"$error":"#VALUE!"}}]
["410080","AL PHON D.450 - FLEXIBLE ISOLE M0 - M1 - 10 ML***","4102","CONDUITS FLEX. FEUILLES D'ALU. ISO","ML",62.033999999999999,"",{"$f":"IF(ISERR(U153)=TRUE,,(F153*(1-G153/100)))","v":0},"OUI",null,null,null,null,null,null,null,null,null,null,null,{"$f":"Tableau1[[#This Row],[Prix de vente\n 2019]]*(1-(Tableau1[[#This Row],[Remise]]/100))","v":{"$error":"#VALUE!"}}]
["410081","AL PHON D.500 - FLEXIBLE ISOLE M0 - M1 - 10 ML***","4102","CONDUITS FLEX. FEUILLES D'ALU. ISO","ML",64.722000000000008,"",{"$f":"IF(ISERR(U154)=TRUE,,(F154*(1-G154/100)))","v":0},"OUI",null,null,null,null,null,null,null,null,null,null,null,{"$f":"Tableau1[[#This Row],[Prix de vente\n 2019]]*(1-(Tableau1[[#This Row],[Remise]]/100))","v":{"$error":"#VALUE!"}}]
["410101","ALU FLEX COMPACT D.080","4201","CONDUITS FLEX. SEMI RIGIDE ALU","ML",5.0925000000000002,"",{"$f":"IF(ISERR(U155)=TRUE,,(F155*(1-G155/100)))","v":0},"OUI",null,null,null,null,null,null,null,null,null,null,null,{"$f":"Tableau1[[#This Row],[Prix de vente\n 2019]]*(1-(Tableau1[[#This Row],[Remise]]/100))","v":{"$error":"#VALUE!"}}]
["410102","ALU FLEX COMPACT D.100","4201","CONDUITS FLEX. SEMI RIGIDE ALU","ML",6.2264999999999997,"",{"$f":"IF(ISERR(U156)=TRUE,,(F156*(1-G156/100)))","v":0},"OUI",null,null,null,null,null,null,null,null,null,null,null,{"$f":"Tableau1[[#This Row],[Prix de vente\n 2019]]*(1-(Tableau1[[#This Row],[Remise]]/100))","v":{"$error":"#VALUE!"}}]
["410103","ALU FLEX COMPACT D.125","4201","CONDUITS FLEX. SEMI RIGIDE ALU","ML",7.4760000000000009,"",{"$f":"IF(ISERR(U157)=TRUE,,(F157*(1-G157/100)))","v":0},"OUI",null,null,null,null,null,null,null,null,null,null,null,{"$f":"Tableau1[[#This Row],[Prix de vente\n 2019]]*(1-(Tableau1[[#This Row],[Remise]]/100))","v":{"$error":"#VALUE!"}}]
["410104","ALU FLEX COMPACT D.160","4201","CONDUITS FLEX. SEMI RIGIDE ALU","ML",9.3240000000000016,"",{"$f":"IF(ISERR(U158)=TRUE,,(F158*(1-G158/100)))","v":0},"OUI",null,null,null,null,null,null,null,null,null,null,null,{"$f":"Tableau1[[#This Row],[Prix de vente\n 2019]]*(1-(Tableau1[[#This Row],[Remise]]/100))","v":{"$error":"#VALUE!"}}]
["410105","ALU FLEX COMPACT D.200","4201","CONDUITS FLEX. SEMI RIGIDE ALU","ML",11.413499999999999,"",{"$f":"IF(ISERR(U159)=TRUE,,(F159*(1-G159/100)))","v":0},"OUI",null,null,null,null,null,null,null,null,null,null,null,{"$f":"Tableau1[[#This Row],[Prix de vente\n 2019]]*(1-(Tableau1[[#This Row],[Remise]]/100))","v":{"$error":"#VALUE!"}}]
["410106","ALU FLEX COMPACT D.250","4201","CONDUITS FLEX. SEMI RIGIDE ALU","ML",14.332500000000001,"",{"$f":"IF(ISERR(U160)=TRUE,,(F160*(1-G160/100)))","v":0},"OUI",null,null,null,null,null,null,null,null,null,null,null,{"$f":"Tableau1[[#This Row],[Prix de vente\n 2019]]*(1-(Tableau1[[#This Row],[Remise]]/100))","v":{"$error":"#VALUE!"}}]
["410107","ALU FLEX COMPACT D.315","4201","CONDUITS FLEX. SEMI RIGIDE ALU","ML",17.850000000000001,"",{"$f":"IF(ISERR(U161)=TRUE,,(F161*(1-G161/100)))","v":0},"OUI",null,null,null,null,null,null,null,null,null,null,null,{"$f":"Tableau1[[#This Row],[Prix de vente\n 2019]]*(1-(Tableau1[[#This Row],[Remise]]/100))","v":{"$error":"#VALUE!"}}]
["410108","ALU FLEX COMPACT D.355","4201","CONDUITS FLEX. SEMI RIGIDE ALU","ML",20.464499999999997,"",{"$f":"IF(ISERR(U162)=TRUE,,(F162*(1-G162/100)))","v":0},"OUI",null,null,null,null,null,null,null,null,null,null,null,{"$f":"Tableau1[[#This Row],[Prix de vente\n 2019]]*(1-(Tableau1[[#This Row],[Remise]]/100))","v":{"$error":"#VALUE!"}}]
["410109","ALU FLEX COMPACT D.400","4201","CONDUITS FLEX. SEMI RIGIDE ALU","ML",30.1875,"",{"$f":"IF(ISERR(U163)=TRUE,,(F163*(1-G163/100)))","v":0},"OUI",null,null,null,null,null,null,null,null,null,null,null,{"$f":"Tableau1[[#This Row],[Prix de vente\n 2019]]*(1-(Tableau1[[#This Row],[Remise]]/100))","v":{"$error":"#VALUE!"}}]
["410110","ALU FLEX COMPACT D.450","4201","CONDUITS FLEX. SEMI RIGIDE ALU","ML",33.715499999999999,"",{"$f":"IF(ISERR(U164)=TRUE,,(F164*(1-G164/100)))","v":0},"OUI",null,null,null,null,null,null,null,null,null,null,null,{"$f":"Tableau1[[#This Row],[Prix de vente\n 2019]]*(1-(Tableau1[[#This Row],[Remise]]/100))","v":{"$error":"#VALUE!"}}]
["410111","ALU FLEX COMPACT D.500","4201","CONDUITS FLEX. SEMI RIGIDE ALU","ML",38.157000000000004,"",{"$f":"IF(ISERR(U165)=TRUE,,(F165*(1-G165/100)))","v":0},"OUI",null,null,null,null,null,null,null,null,null,null,null,{"$f":"Tableau1[[#This Row],[Prix de vente\n 2019]]*(1-(Tableau1[[#This Row],[Remise]]/100))","v":{"$error":"#VALUE!"}}]
["410112","ALU FLEX D.560","4201","CONDUITS FLEX. SEMI RIGIDE ALU","ML",144.46950000000001,"",{"$f":"IF(ISERR(U166)=TRUE,,(F166*(1-G166/100)))","v":0},"OUI",null,null,null,null,null,null,null,null,null,null,null,{"$f":"Tableau1[[#This Row],[Prix de vente\n 2019]]*(1-(Tableau1[[#This Row],[Remise]]/100))","v":{"$error":"#VALUE!"}}]
["410113","ALU FLEX D.630","4201","CONDUITS FLEX. SEMI RIGIDE ALU","ML",167.62199999999999,"",{"$f":"IF(ISERR(U167)=TRUE,,(F167*(1-G167/100)))","v":0},"OUI",null,null,null,null,null,null,null,null,null,null,null,{"$f":"Tableau1[[#This Row],[Prix de vente\n 2019]]*(1-(Tableau1[[#This Row],[Remise]]/100))","v":{"$error":"#VALUE!"}}]
["410261","GSIP 50 080 - CONDUIT FLEXIBLE PHONIQUE ISOLE LDV 50mm M0-M1","4102","CONDUITS FLEX. FEUILLES D'ALU. ISO","ML",14.3535,{"$f":"IF(C168=\"9999\",0,IF(IF(ISERROR(VLOOKUP(C168,Grille1,3,FALSE)),VLOOKUP(C168,Grille2,3,FALSE),VLOOKUP(C168,Grille1,3,FALSE))=\"\",\"\",IF(ISERROR(VLOOKUP(C168,Grille1,3,FALSE)),VLOOKUP(C168,Grille2,3,FALSE),VLOOKUP(C168,Grille1,3,FALSE))))","v":""},{"$f":"IF(ISERR(U168)=TRUE,,(F168*(1-G168/100)))","v":0},"OUI",null,null,null,null,null,null,null,null,null,null,null,{"$f":"Tableau1[[#This Row],[Prix de vente\n 2019]]*(1-(Tableau1[[#This Row],[Remise]]/100))","v":{"$error":"#VALUE!"}}]
["410262","GSIP 50 100 - CONDUIT FLEXIBLE PHONIQUE ISOLE LDV 50mm M0-M1","4102","CONDUITS FLEX. FEUILLES D'ALU. ISO","ML",15.603,"",{"$f":"IF(ISERR(U169)=TRUE,,(F169*(1-G169/100)))","v":0},"OUI",null,null,null,null,null,null,null,null,null,null,null,{"$f":"Tableau1[[#This Row],[Prix de vente\n 2019]]*(1-(Tableau1[[#This Row],[Remise]]/100))","v":{"$error":"#VALUE!"}}]
["410263","GSIP 50 125 - CONDUIT FLEXIBLE PHONIQUE ISOLE LDV 50mm M0-M1","4102","CONDUITS FLEX. FEUILLES D'ALU. ISO","ML",17.598000000000003,"",{"$f":"IF(ISERR(U170)=TRUE,,(F170*(1-G170/100)))","v":0},"OUI",null,null,null,null,null,null,null,null,null,null,null,{"$f":"Tableau1[[#This Row],[Prix de vente\n 2019]]*(1-(Tableau1[[#This Row],[Remise]]/100))","v":{"$error":"#VALUE!"}}]
["410264","GSIP 50 160 - CONDUIT FLEXIBLE PHONIQUE ISOLE LDV 50mm M0-M1","4102","CONDUITS FLEX. FEUILLES D'ALU. ISO","ML",21.525000000000002,"",{"$f":"IF(ISERR(U171)=TRUE,,(F171*(1-G171/100)))","v":0},"OUI",null,null,null,null,null,null,null,null,null,null,null,{"$f":"Tableau1[[#This Row],[Prix de vente\n 2019]]*(1-(Tableau1[[#This Row],[Remise]]/100))","v":{"$error":"#VALUE!"}}]
["410265","GSIP 50 200 - CONDUIT FLEXIBLE PHONIQUE ISOLE LDV 50mm M0-M1","4102","CONDUITS FLEX. FEUILLES D'ALU. ISO","ML",22.6905,"",{"$f":"IF(ISERR(U172)=TRUE,,(F172*(1-G172/100)))","v":0},"OUI",null,null,null,null,null,null,null,null,null,null,null,{"$f":"Tableau1[[#This Row],[Prix de vente\n 2019]]*(1-(Tableau1[[#This Row],[Remise]]/100))","v":{"$error":"#VALUE!"}}]
["410266","GSIP 50 250 - CONDUIT FLEXIBLE PHONIQUE ISOLE LDV 50mm M0-M1","4102","CONDUITS FLEX. FEUILLES D'ALU. ISO","ML",27.258000000000003,"",{"$f":"IF(ISERR(U173)=TRUE,,(F173*(1-G173/100)))","v":0},"OUI",null,null,null,null,null,null,null,null,null,null,null,{"$f":"Tableau1[[#This Row],[Prix de vente\n 2019]]*(1-(Tableau1[[#This Row],[Remise]]/100))","v":{"$error":"#VALUE!"}}]
["410267","GSIP 50 315 - CONDUIT FLEXIBLE PHONIQUE ISOLE LDV 50mm M0-M1","4102","CONDUITS FLEX. FEUILLES D'ALU. ISO","ML",30.796499999999998,"",{"$f":"IF(ISERR(U174)=TRUE,,(F174*(1-G174/100)))","v":0},"OUI",null,null,null,null,null,null,null,null,null,null,null,{"$f":"Tableau1[[#This Row],[Prix de vente\n 2019]]*(1-(Tableau1[[#This Row],[Remise]]/100))","v":{"$error":"#VALUE!"}}]
["410268","GSIP 50 355 - CONDUIT FLEXIBLE PHONIQUE ISOLE LDV 50mm M0-M1","4102","CONDUITS FLEX. FEUILLES D'ALU. ISO","ML",35.049000000000007,"",{"$f":"IF(ISERR(U175)=TRUE,,(F175*(1-G175/100)))","v":0},"OUI",null,null,null,null,null,null,null,null,null,null,null,{"$f":"Tableau1[[#This Row],[Prix de vente\n 2019]]*(1-(Tableau1[[#This Row],[Remise]]/100))","v":{"$error":"#VALUE!"}}]
["410269","GSIP 50 400 - CONDUIT FLEXIBLE PHONIQUE ISOLE LDV 50mm M0-M1","4102","CONDUITS FLEX. FEUILLES D'ALU. ISO","ML",40.330500000000001,"",{"$f":"IF(ISERR(U176)=TRUE,,(F176*(1-G176/100)))","v":0},"OUI",null,null,null,null,null,null,null,null,null,null,null,{"$f":"Tableau1[[#This Row],[Prix de vente\n 2019]]*(1-(Tableau1[[#This Row],[Remise]]/100))","v":{"$error":"#VALUE!"}}]
["410270","GSIP 50 450 - CONDUIT FLEXIBLE PHONIQUE ISOLE LDV 50mm M0-M1","4102","CONDUITS FLEX. FEUILLES D'ALU. ISO","ML",44.688000000000002,"",{"$f":"IF(ISERR(U177)=TRUE,,(F177*(1-G177/100)))","v":0},"OUI",null,null,null,null,null,null,null,null,null,null,null,{"$f":"Tableau1[[#This Row],[Prix de vente\n 2019]]*(1-(Tableau1[[#This Row],[Remise]]/100))","v":{"$error":"#VALUE!"}}]
["410271","GSIP 50 500 - CONDUIT FLEXIBLE PHONIQUE ISOLE LDV 50mm M0-M1","4102","CONDUITS FLEX. FEUILLES D'ALU. ISO","ML",48.573,"",{"$f":"IF(ISERR(U178)=TRUE,,(F178*(1-G178/100)))","v":0},"OUI",null,null,null,null,null,null,null,null,null,null,null,{"$f":"Tableau1[[#This Row],[Prix de vente\n 2019]]*(1-(Tableau1[[#This Row],[Remise]]/100))","v":{"$error":"#VALUE!"}}]
["410281","GSIT 50 080 - CONDUIT FLEXIBLE THERMIQUE ISOLE LDV 50mm M0-M1","4102","CONDUITS FLEX. FEUILLES D'ALU. ISO","ML",14.3535,"",{"$f":"IF(ISERR(U179)=TRUE,,(F179*(1-G179/100)))","v":0},"OUI",null,null,null,null,null,null,null,null,null,null,null,{"$f":"Tableau1[[#This Row],[Prix de vente\n 2019]]*(1-(Tableau1[[#This Row],[Remise]]/100))","v":{"$error":"#VALUE!"}}]
["410282","GSIT 50 100 - CONDUIT FLEXIBLE THERMIQUE ISOLE LDV 50mm M0-M1","4102","CONDUITS FLEX. FEUILLES D'ALU. ISO","ML",15.603,"",{"$f":"IF(ISERR(U180)=TRUE,,(F180*(1-G180/100)))","v":0},"OUI",null,null,null,null,null,null,null,null,null,null,null,{"$f":"Tableau1[[#This Row],[Prix de vente\n 2019]]*(1-(Tableau1[[#This Row],[Remise]]/100))","v":{"$error":"#VALUE!"}}]
["410283","GSIT 50 125 - CONDUIT FLEXIBLE THERMIQUE, ISOLE LDV 50mm M0-M1","4102","CONDUITS FLEX. FEUILLES D'ALU. ISO","ML",17.598000000000003,"",{"$f":"IF(ISERR(U181)=TRUE,,(F181*(1-G181/100)))","v":0},"OUI",null,null,null,null,null,null,null,null,null,null,null,{"$f":"Tableau1[[#This Row],[Prix de vente\n 2019]]*(1-(Tableau1[[#This Row],[Remise]]/100))","v":{"$error":"#VALUE!"}}]
["410284","GSIT 50 160 - CONDUIT FLEXIBLE THERMIQUE, ISOLE LDV 50mm M0-M1","4102","CONDUITS FLEX. FEUILLES D'ALU. ISO","ML",21.525000000000002,"",{"$f":"IF(ISERR(U182)=TRUE,,(F182*(1-G182/100)))","v":0},"OUI",null,null,null,null,null,null,null,null,null,null,null,{"$f":"Tableau1[[#This Row],[Prix de vente\n 2019]]*(1-(Tableau1[[#This Row],[Remise]]/100))","v":{"$error":"#VALUE!"}}]
["410285","GSIT 50 200 - CONDUIT FLEXIBLE THERMIQUE, ISOLE LDV 50mm M0-M1","4102","CONDUITS FLEX. FEUILLES D'ALU. ISO","ML",22.6905,"",{"$f":"IF(ISERR(U183)=TRUE,,(F183*(1-G183/100)))","v":0},"OUI",null,null,null,null,null,null,null,null,null,null,null,{"$f":"Tableau1[[#This Row],[Prix de vente\n 2019]]*(1-(Tableau1[[#This Row],[Remise]]/100))","v":{"$error":"#VALUE!"}}]
["410286","GSIT 50 250 - CONDUIT FLEXIBLE THERMIQUE, ISOLE LDV 50mm M0-M1","4102","CONDUITS FLEX. FEUILLES D'ALU. ISO","ML",27.258000000000003,"",{"$f":"IF(ISERR(U184)=TRUE,,(F184*(1-G184/100)))","v":0},"OUI",null,null,null,null,null,null,null,null,null,null,null,{"$f":"Tableau1[[#This Row],[Prix de vente\n 2019]]*(1-(Tableau1[[#This Row],[Remise]]/100))","v":{"$error":"#VALUE!"}}]
["410287","GSIT 50 315 - CONDUIT FLEXIBLE THERMIQUE ISOLE LDV 50mm M0-M1","4102","CONDUITS FLEX. FEUILLES D'ALU. ISO","ML",30.796499999999998,"",{"$f":"IF(ISERR(U185)=TRUE,,(F185*(1-G185/100)))","v":0},"OUI",null,null,null,null,null,null,null,null,null,null,null,{"$f":"Tableau1[[#This Row],[Prix de vente\n 2019]]*(1-(Tableau1[[#This Row],[Remise]]/100))","v":{"$error":"#VALUE!"}}]
["410288","GSIT 50 355 - CONDUIT FLEXIBLE THERMIQUE ISOLE LDV 50mm M0-M1","4102","CONDUITS FLEX. FEUILLES D'ALU. ISO","ML",35.049000000000007,"",{"$f":"IF(ISERR(U186)=TRUE,,(F186*(1-G186/100)))","v":0},"OUI",null,null,null,null,null,null,null,null,null,null,null,{"$f":"Tableau1[[#This Row],[Prix de vente\n 2019]]*(1-(Tableau1[[#This Row],[Remise]]/100))","v":{"$error":"#VALUE!"}}]
["410289","GSIT 50 400 - CONDUIT FLEXIBLE THERMIQUE ISOLE LDV 50mm M0-M1","4102","CONDUITS FLEX. FEUILLES D'ALU. ISO","ML",40.330500000000001,"",{"$f":"IF(ISERR(U187)=TRUE,,(F187*(1-G187/100)))","v":0},"OUI",null,null,null,null,null,null,null,null,null,null,null,{"$f":"Tableau1[[#This Row],[Prix de vente\n 2019]]*(1-(Tableau1[[#This Row],[Remise]]/100))","v":{"$error":"#VALUE!"}}]
["410290","GSIT 50 450 - CONDUIT FLEXIBLE THERMIQUE ISOLE LDV 50mm M0-M1","4102","CONDUITS FLEX. FEUILLES D'ALU. ISO","ML",44.688000000000002,"",{"$f":"IF(ISERR(U188)=TRUE,,(F188*(1-G188/100)))","v":0},"OUI",null,null,null,null,null,null,null,null,null,null,null,{"$f":"Tableau1[[#This Row],[Prix de vente\n 2019]]*(1-(Tableau1[[#This Row],[Remise]]/100))","v":{"$error":"#VALUE!"}}]
["410291","GSIT 50 500 - CONDUIT FLEXIBLE THERMIQUE ISOLE LDV 50mm M0-M1","4102","CONDUITS FLEX. FEUILLES D'ALU. ISO","ML",48.573,"",{"$f":"IF(ISERR(U189)=TRUE,,(F189*(1-G189/100)))","v":0},"OUI",null,null,null,null,null,null,null,null,null,null,null,{"$f":"Tableau1[[#This Row],[Prix de vente\n 2019]]*(1-(Tableau1[[#This Row],[Remise]]/100))","v":{"$error":"#VALUE!"}}]
["410306","GSRC D.250 GALVAFLEX SEMI RIGIDE COMPACT","4202","CONDUITS FLEX. SEMI RIGIDE GALVA","ML",31.951499999999999,"",{"$f":"IF(ISERR(U190)=TRUE,,(F190*(1-G190/100)))","v":0},"OUI",null,null,null,null,null,null,null,null,null,null,null,{"$f":"Tableau1[[#This Row],[Prix de vente\n 2019]]*(1-(Tableau1[[#This Row],[Remise]]/100))","v":{"$error":"#VALUE!"}}]
["410307","GSR D.315 GALVAFLEX SEMI RIGIDE","4202","CONDUITS FLEX. SEMI RIGIDE GALVA","ML",43.207500000000003,"",{"$f":"IF(ISERR(U191)=TRUE,,(F191*(1-G191/100)))","v":0},"OUI",null,null,null,null,null,null,null,null,null,null,null,{"$f":"Tableau1[[#This Row],[Prix de vente\n 2019]]*(1-(Tableau1[[#This Row],[Remise]]/100))","v":{"$error":"#VALUE!"}}]
["410308","GSR D.355 GALVAFLEX SEMI RIGIDE ","4202","CONDUITS FLEX. SEMI RIGIDE GALVA","ML",57.330000000000005,"",{"$f":"IF(ISERR(U192)=TRUE,,(F192*(1-G192/100)))","v":0},"OUI",null,null,null,null,null,null,null,null,null,null,null,{"$f":"Tableau1[[#This Row],[Prix de vente\n 2019]]*(1-(Tableau1[[#This Row],[Remise]]/100))","v":{"$error":"#VALUE!"}}]
["410309","GSR D.400 GALVAFLEX SEMI RIGIDE","4202","CONDUITS FLEX. SEMI RIGIDE GALVA","ML",58.999499999999998,"",{"$f":"IF(ISERR(U193)=TRUE,,(F193*(1-G193/100)))","v":0},"OUI",null,null,null,null,null,null,null,null,null,null,null,{"$f":"Tableau1[[#This Row],[Prix de vente\n 2019]]*(1-(Tableau1[[#This Row],[Remise]]/100))","v":{"$error":"#VALUE!"}}]
["410310","GSR D.450 GALVAFLEX SEMI RIGIDE","4202","CONDUITS FLEX. SEMI RIGIDE GALVA","ML",94.143000000000001,"",{"$f":"IF(ISERR(U194)=TRUE,,(F194*(1-G194/100)))","v":0},"OUI",null,null,null,null,null,null,null,null,null,null,null,{"$f":"Tableau1[[#This Row],[Prix de vente\n 2019]]*(1-(Tableau1[[#This Row],[Remise]]/100))","v":{"$error":"#VALUE!"}}]
["410311","GSR D.500 GALVAFLEX SEMI RIGIDE","4202","CONDUITS FLEX. SEMI RIGIDE GALVA","ML",111.13200000000001,"",{"$f":"IF(ISERR(U195)=TRUE,,(F195*(1-G195/100)))","v":0},"OUI",null,null,null,null,null,null,null,null,null,null,null,{"$f":"Tableau1[[#This Row],[Prix de vente\n 2019]]*(1-(Tableau1[[#This Row],[Remise]]/100))","v":{"$error":"#VALUE!"}}]
["410312","GSR D.560 GALVAFLEX SEMI RIGIDE","4202","CONDUITS FLEX. SEMI RIGIDE GALVA","ML",152.8065,"",{"$f":"IF(ISERR(U196)=TRUE,,(F196*(1-G196/100)))","v":0},"OUI",null,null,null,null,null,null,null,null,null,null,null,{"$f":"Tableau1[[#This Row],[Prix de vente\n 2019]]*(1-(Tableau1[[#This Row],[Remise]]/100))","v":{"$error":"#VALUE!"}}]
["410313","GSR D.630 GALVAFLEX SEMI RIGIDE","4202","CONDUITS FLEX. SEMI RIGIDE GALVA","ML",171.32849999999999,"",{"$f":"IF(ISERR(U197)=TRUE,,(F197*(1-G197/100)))","v":0},"OUI",null,null,null,null,null,null,null,null,null,null,null,{"$f":"Tableau1[[#This Row],[Prix de vente\n 2019]]*(1-(Tableau1[[#This Row],[Remise]]/100))","v":{"$error":"#VALUE!"}}]
["410321","GSRC D.080 GALVAFLEX SEMI RIGIDE COMPACT","4202","CONDUITS FLEX. SEMI RIGIDE GALVA","ML",9.2189999999999994,"",{"$f":"IF(ISERR(U198)=TRUE,,(F198*(1-G198/100)))","v":0},"OUI",null,null,null,null,null,null,null,null,null,null,null,{"$f":"Tableau1[[#This Row],[Prix de vente\n 2019]]*(1-(Tableau1[[#This Row],[Remise]]/100))","v":{"$error":"#VALUE!"}}]
["410322","GSRC D.100 GALVAFLEX SEMI RIGIDE COMPACT","4202","CONDUITS FLEX. SEMI RIGIDE GALVA","ML",11.067,"",{"$f":"IF(ISERR(U199)=TRUE,,(F199*(1-G199/100)))","v":0},"OUI",null,null,null,null,null,null,null,null,null,null,null,{"$f":"Tableau1[[#This Row],[Prix de vente\n 2019]]*(1-(Tableau1[[#This Row],[Remise]]/100))","v":{"$error":"#VALUE!"}}]
["410323","GSRC D.125 GALVAFLEX SEMI RIGIDE COMPACT","4202","CONDUITS FLEX. SEMI RIGIDE GALVA","ML",13.345500000000001,"",{"$f":"IF(ISERR(U200)=TRUE,,(F200*(1-G200/100)))","v":0},"OUI",null,null,null,null,null,null,null,null,null,null,null,{"$f":"Tableau1[[#This Row],[Prix de vente\n 2019]]*(1-(Tableau1[[#This Row],[Remise]]/100))","v":{"$error":"#VALUE!"}}]
["410324","GSRC D.160 GALVAFLEX SEMI RIGIDE COMPACT","4202","CONDUITS FLEX. SEMI RIGIDE GALVA","ML",17.829000000000001,"",{"$f":"IF(ISERR(U201)=TRUE,,(F201*(1-G201/100)))","v":0},"OUI",null,null,null,null,null,null,null,null,null,null,null,{"$f":"Tableau1[[#This Row],[Prix de vente\n 2019]]*(1-(Tableau1[[#This Row],[Remise]]/100))","v":{"$error":"#VALUE!"}}]
["410325","GSRC D.200 GALVAFLEX SEMI RIGIDE COMPACT","4202","CONDUITS FLEX. SEMI RIGIDE GALVA","ML",22.081500000000002,"",{"$f":"IF(ISERR(U202)=TRUE,,(F202*(1-G202/100)))","v":0},"OUI",null,null,null,null,null,null,null,null,null,null,null,{"$f":"Tableau1[[#This Row],[Prix de vente\n 2019]]*(1-(Tableau1[[#This Row],[Remise]]/100))","v":{"$error":"#VALUE!"}}]
["410351","GSIP-FAD25 080-CONDUIT FLEXI. PHON. ISO 25mm+FILM ANTIDEFIBRAGE M0-M1","4102","CONDUITS FLEX. FEUILLES D'ALU. ISO","ML",12.263999999999999,"",{"$f":"IF(ISERR(U203)=TRUE,,(F203*(1-G203/100)))","v":0},"OUI",null,null,null,null,null,null,null,null,null,null,null,{"$f":"Tableau1[[#This Row],[Prix de vente\n 2019]]*(1-(Tableau1[[#This Row],[Remise]]/100))","v":{"$error":"#VALUE!"}}]
["410352","GSIP-FAD25 100-CONDUIT FLEXI. PHON. ISO 25mm+FILM ANTIDEFIBRAGE M0-M1","4102","CONDUITS FLEX. FEUILLES D'ALU. ISO","ML",12.505500000000001,"",{"$f":"IF(ISERR(U204)=TRUE,,(F204*(1-G204/100)))","v":0},"OUI",null,null,null,null,null,null,null,null,null,null,null,{"$f":"Tableau1[[#This Row],[Prix de vente\n 2019]]*(1-(Tableau1[[#This Row],[Remise]]/100))","v":{"$error":"#VALUE!"}}]
["410353","GSIP-FAD25 125-CONDUIT FLEXI. PHON. ISO 25mm+FILM ANTIDEFIBRAGE M0-M1","4102","CONDUITS FLEX. FEUILLES D'ALU. ISO","ML",12.452999999999999,"",{"$f":"IF(ISERR(U205)=TRUE,,(F205*(1-G205/100)))","v":0},"OUI",null,null,null,null,null,null,null,null,null,null,null,{"$f":"Tableau1[[#This Row],[Prix de vente\n 2019]]*(1-(Tableau1[[#This Row],[Remise]]/100))","v":{"$error":"#VALUE!"}}]
["410354","GSIP-FAD25 160-CONDUIT FLEXI. PHON. ISO 25mm+FILM ANTIDEFIBRAGE M0-M1","4102","CONDUITS FLEX. FEUILLES D'ALU. ISO","ML",14.805,"",{"$f":"IF(ISERR(U206)=TRUE,,(F206*(1-G206/100)))","v":0},"OUI",null,null,null,null,null,null,null,null,null,null,null,{"$f":"Tableau1[[#This Row],[Prix de vente\n 2019]]*(1-(Tableau1[[#This Row],[Remise]]/100))","v":{"$error":"#VALUE!"}}]
["410355","GSIP-FAD25 200-CONDUIT FLEXI. PHON. ISO 25mm+FILM ANTIDEFIBRAGE M0-M1","4102","CONDUITS FLEX. FEUILLES D'ALU. ISO","ML",17.304000000000002,"",{"$f":"IF(ISERR(U207)=TRUE,,(F207*(1-G207/100)))","v":0},"OUI",null,null,null,null,null,null,null,null,null,null,null,{"$f":"Tableau1[[#This Row],[Prix de vente\n 2019]]*(1-(Tableau1[[#This Row],[Remise]]/100))","v":{"$error":"#VALUE!"}}]
["410356","GSIP-FAD25 250-CONDUIT FLEXI. PHON. ISO 25mm+FILM ANTIDEFIBRAGE M0-M1","4102","CONDUITS FLEX. FEUILLES D'ALU. ISO","ML",21.367500000000003,"",{"$f":"IF(ISERR(U208)=TRUE,,(F208*(1-G208/100)))","v":0},"OUI",null,null,null,null,null,null,null,null,null,null,null,{"$f":"Tableau1[[#This Row],[Prix de vente\n 2019]]*(1-(Tableau1[[#This Row],[Remise]]/100))","v":{"$error":"#VALUE!"}}]
["410357","GSIP-FAD25 315-CONDUIT FLEXI. PHON. ISO 25mm+FILM ANTIDEFIBRAGE M0-M1","4102","CONDUITS FLEX. FEUILLES D'ALU. ISO","ML",27.037500000000001,"",{"$f":"IF(ISERR(U209)=TRUE,,(F209*(1-G209/100)))","v":0},"OUI",null,null,null,null,null,null,null,null,null,null,null,{"$f":"Tableau1[[#This Row],[Prix de vente\n 2019]]*(1-(Tableau1[[#This Row],[Remise]]/100))","v":{"$error":"#VALUE!"}}]
["410358","GSIP-FAD25 355-CONDUIT FLEXI. PHON. ISO 25mm+FILM ANTIDEFIBRAGE M0-M1","4102","CONDUITS FLEX. FEUILLES D'ALU. ISO","ML",31.731000000000002,"",{"$f":"IF(ISERR(U210)=TRUE,,(F210*(1-G210/100)))","v":0},"OUI",null,null,null,null,null,null,null,null,null,null,null,{"$f":"Tableau1[[#This Row],[Prix de vente\n 2019]]*(1-(Tableau1[[#This Row],[Remise]]/100))","v":{"$error":"#VALUE!"}}]
["410359","GSIP-FAD25 400-CONDUIT FLEXI. PHON. ISO 25mm+FILM ANTIDEFIBRAGE M0-M1","4102","CONDUITS FLEX. FEUILLES D'ALU. ISO","ML",37.064999999999998,{"$f":"IF(C211=\"9999\",0,IF(IF(ISERROR(VLOOKUP(C211,Grille1,3,FALSE)),VLOOKUP(C211,Grille2,3,FALSE),VLOOKUP(C211,Grille1,3,FALSE))=\"\",\"\",IF(ISERROR(VLOOKUP(C211,Grille1,3,FALSE)),VLOOKUP(C211,Grille2,3,FALSE),VLOOKUP(C211,Grille1,3,FALSE))))","v":""},{"$f":"IF(ISERR(U211)=TRUE,,(F211*(1-G211/100)))","v":0},"OUI",null,null,null,null,null,null,null,null,null,null,null,{"$f":"Tableau1[[#This Row],[Prix de vente\n 2019]]*(1-(Tableau1[[#This Row],[Remise]]/100))","v":{"$error":"#VALUE!"}}]
["410360","GSIP-FAD25 450-CONDUIT FLEXI. PHON. ISO 25mm+FILM ANTIDEFIBRAGE M0-M1","4102","CONDUITS FLEX. FEUILLES D'ALU. ISO","ML",41.023499999999999,"",{"$f":"IF(ISERR(U212)=TRUE,,(F212*(1-G212/100)))","v":0},"OUI",null,null,null,null,null,null,null,null,null,null,null,{"$f":"Tableau1[[#This Row],[Prix de vente\n 2019]]*(1-(Tableau1[[#This Row],[Remise]]/100))","v":{"$error":"#VALUE!"}}]
["410361","GSIP-FAD25 500-CONDUIT FLEXI. PHON. ISO 25mm+FILM ANTIDEFIBRAGE M0-M1","4102","CONDUITS FLEX. FEUILLES D'ALU. ISO","ML",45.507000000000005,"",{"$f":"IF(ISERR(U213)=TRUE,,(F213*(1-G213/100)))","v":0},"OUI",null,null,null,null,null,null,null,null,null,null,null,{"$f":"Tableau1[[#This Row],[Prix de vente\n 2019]]*(1-(Tableau1[[#This Row],[Remise]]/100))","v":{"$error":"#VALUE!"}}]
["410362","GSIP-FAD25 560-CONDUIT FLEXI. PHON. ISO 25mm+FILM ANTIDEFIBRAGE M0-M1","4102","CONDUITS FLEX. FEUILLES D'ALU. ISO","ML",49.297500000000007,"",{"$f":"IF(ISERR(U214)=TRUE,,(F214*(1-G214/100)))","v":0},"OUI",null,null,null,null,null,null,null,null,null,null,null,{"$f":"Tableau1[[#This Row],[Prix de vente\n 2019]]*(1-(Tableau1[[#This Row],[Remise]]/100))","v":{"$error":"#VALUE!"}}]
["410363","GSIP-FAD25 630-CONDUIT FLEXI. PHON. ISO 25mm+FILM ANTIDEFIBRAGE M0-M1","4102","CONDUITS FLEX. FEUILLES D'ALU. ISO","ML",51.166499999999999,"",{"$f":"IF(ISERR(U215)=TRUE,,(F215*(1-G215/100)))","v":0},"OUI",null,null,null,null,null,null,null,null,null,null,null,{"$f":"Tableau1[[#This Row],[Prix de vente\n 2019]]*(1-(Tableau1[[#This Row],[Remise]]/100))","v":{"$error":"#VALUE!"}}]
["410371","GSIP-FAD50 080-CONDUIT FLEXI. PHON. ISO 50mm+FILM ANTIDEFIBRAGE M0-M1","4102","CONDUITS FLEX. FEUILLES D'ALU. ISO","ML",15.067500000000001,"",{"$f":"IF(ISERR(U216)=TRUE,,(F216*(1-G216/100)))","v":0},"OUI",null,null,null,null,null,null,null,null,null,null,null,{"$f":"Tableau1[[#This Row],[Prix de vente\n 2019]]*(1-(Tableau1[[#This Row],[Remise]]/100))","v":{"$error":"#VALUE!"}}]
["410372","GSIP-FAD50 100-CONDUIT FLEXI. PHON. ISO 50mm+FILM ANTIDEFIBRAGE M0-M1","4102","CONDUITS FLEX. FEUILLES D'ALU. ISO","ML",16.38,"",{"$f":"IF(ISERR(U217)=TRUE,,(F217*(1-G217/100)))","v":0},"OUI",null,null,null,null,null,null,null,null,null,null,null,{"$f":"Tableau1[[#This Row],[Prix de vente\n 2019]]*(1-(Tableau1[[#This Row],[Remise]]/100))","v":{"$error":"#VALUE!"}}]
["410373","GSIP-FAD50 125-CONDUIT FLEXI. PHON. ISO 50mm+FILM ANTIDEFIBRAGE M0-M1","4102","CONDUITS FLEX. FEUILLES D'ALU. ISO","ML",18.480000000000004,"",{"$f":"IF(ISERR(U218)=TRUE,,(F218*(1-G218/100)))","v":0},"OUI",null,null,null,null,null,null,null,null,null,null,null,{"$f":"Tableau1[[#This Row],[Prix de vente\n 2019]]*(1-(Tableau1[[#This Row],[Remise]]/100))","v":{"$error":"#VALUE!"}}]
["410374","GSIP-FAD50 160-CONDUIT FLEXI. PHON. ISO 50mm+FILM ANTIDEFIBRAGE M0-M1","4102","CONDUITS FLEX. FEUILLES D'ALU. ISO","ML",22.617000000000001,"",{"$f":"IF(ISERR(U219)=TRUE,,(F219*(1-G219/100)))","v":0},"OUI",null,null,null,null,null,null,null,null,null,null,null,{"$f":"Tableau1[[#This Row],[Prix de vente\n 2019]]*(1-(Tableau1[[#This Row],[Remise]]/100))","v":{"$error":"#VALUE!"}}]
["410375","GSIP-FAD50 200-CONDUIT FLEXI. PHON. ISO 50mm+FILM ANTIDEFIBRAGE M0-M1","4102","CONDUITS FLEX. FEUILLES D'ALU. ISO","ML",23.824500000000004,"",{"$f":"IF(ISERR(U220)=TRUE,,(F220*(1-G220/100)))","v":0},"OUI",null,null,null,null,null,null,null,null,null,null,null,{"$f":"Tableau1[[#This Row],[Prix de vente\n 2019]]*(1-(Tableau1[[#This Row],[Remise]]/100))","v":{"$error":"#VALUE!"}}]
["410376","GSIP-FAD50 250-CONDUIT FLEXI. PHON. ISO 50mm+FILM ANTIDEFIBRAGE M0-M1","4102","CONDUITS FLEX. FEUILLES D'ALU. ISO","ML",28.623000000000001,"",{"$f":"IF(ISERR(U221)=TRUE,,(F221*(1-G221/100)))","v":0},"OUI",null,null,null,null,null,null,null,null,null,null,null,{"$f":"Tableau1[[#This Row],[Prix de vente\n 2019]]*(1-(Tableau1[[#This Row],[Remise]]/100))","v":{"$error":"#VALUE!"}}]
["410377","GSIP-FAD50 315-CONDUIT FLEXI. PHON. ISO 50mm+FILM ANTIDEFIBRAGE M0-M1","4102","CONDUITS FLEX. FEUILLES D'ALU. ISO","ML",32.340000000000003,"",{"$f":"IF(ISERR(U222)=TRUE,,(F222*(1-G222/100)))","v":0},"OUI",null,null,null,null,null,null,null,null,null,null,null,{"$f":"Tableau1[[#This Row],[Prix de vente\n 2019]]*(1-(Tableau1[[#This Row],[Remise]]/100))","v":{"$error":"#VALUE!"}}]
["410378","GSIP-FAD50 355-CONDUIT FLEXI. PHON. ISO 50mm+FILM ANTIDEFIBRAGE M0-M1","4102","CONDUITS FLEX. FEUILLES D'ALU. ISO","ML",36.802500000000002,"",{"$f":"IF(ISERR(U223)=TRUE,,(F223*(1-G223/100)))","v":0},"OUI",null,null,null,null,null,null,null,null,null,null,null,{"$f":"Tableau1[[#This Row],[Prix de vente\n 2019]]*(1-(Tableau1[[#This Row],[Remise]]/100))","v":{"$error":"#VALUE!"}}]
["410379","GSIP-FAD50 400-CONDUIT FLEXI. PHON. ISO 50mm+FILM ANTIDEFIBRAGE M0-M1","4102","CONDUITS FLEX. FEUILLES D'ALU. ISO","ML",42.346499999999999,"",{"$f":"IF(ISERR(U224)=TRUE,,(F224*(1-G224/100)))","v":0},"OUI",null,null,null,null,null,null,null,null,null,null,null,{"$f":"Tableau1[[#This Row],[Prix de vente\n 2019]]*(1-(Tableau1[[#This Row],[Remise]]/100))","v":{"$error":"#VALUE!"}}]
["410380","GSIP-FAD50 450-CONDUIT FLEXI. PHON. ISO 50mm+FILM ANTIDEFIBRAGE M0-M1","4102","CONDUITS FLEX. FEUILLES D'ALU. ISO","ML",46.924500000000002,"",{"$f":"IF(ISERR(U225)=TRUE,,(F225*(1-G225/100)))","v":0},"OUI",null,null,null,null,null,null,null,null,null,null,null,{"$f":"Tableau1[[#This Row],[Prix de vente\n 2019]]*(1-(Tableau1[[#This Row],[Remise]]/100))","v":{"$error":"#VALUE!"}}]
["410381","GSIP-FAD50 500-CONDUIT FLEXI. PHON. ISO 50mm+FILM ANTIDEFIBRAGE M0-M1","4102","CONDUITS FLEX. FEUILLES D'ALU. ISO","ML",50.9985,"",{"$f":"IF(ISERR(U226)=TRUE,,(F226*(1-G226/100)))","v":0},"OUI",null,null,null,null,null,null,null,null,null,null,null,{"$f":"Tableau1[[#This Row],[Prix de vente\n 2019]]*(1-(Tableau1[[#This Row],[Remise]]/100))","v":{"$error":"#VALUE!"}}]
["410382","GSIP-FAD50 560-CONDUIT FLEXI. PHON. ISO 50mm+FILM ANTIDEFIBRAGE M0-M1","4102","CONDUITS FLEX. FEUILLES D'ALU. ISO","ML",52.111500000000007,"",{"$f":"IF(ISERR(U227)=TRUE,,(F227*(1-G227/100)))","v":0},"OUI",null,null,null,null,null,null,null,null,null,null,null,{"$f":"Tableau1[[#This Row],[Prix de vente\n 2019]]*(1-(Tableau1[[#This Row],[Remise]]/100))","v":{"$error":"#VALUE!"}}]
["510001","BANDE PVC 50x33 RUBAN ADHESIF PVC GRIS","5102","BANDE D'ETANCHEITE","Rl",10.195500000000001,{"$f":"IF(C228=\"9999\",0,IF(IF(ISERROR(VLOOKUP(C228,Grille1,3,FALSE)),VLOOKUP(C228,Grille2,3,FALSE),VLOOKUP(C228,Grille1,3,FALSE))=\"\",\"\",IF(ISERROR(VLOOKUP(C228,Grille1,3,FALSE)),VLOOKUP(C228,Grille2,3,FALSE),VLOOKUP(C228,Grille1,3,FALSE))))","v":""},{"$f":"IF(ISERR(U228)=TRUE,,(F228*(1-G228/100)))","v":0},"OUI",null,null,null,null,null,null,null,null,null,null,null,{"$f":"Tableau1[[#This Row],[Prix de vente\n 2019]]*(1-(Tableau1[[#This Row],[Remise]]/100))","v":{"$error":"#VALUE!"}}]
["510002","BANDE PVC 50x33 RUBAN ADHESIF PVC BLANC","5102","BANDE D'ETANCHEITE","Rl",18.059999999999999,"",{"$f":"IF(ISERR(U229)=TRUE,,(F229*(1-G229/100)))","v":0},"OUI",null,null,null,null,null,null,null,null,null,null,null,{"$f":"Tableau1[[#This Row],[Prix de vente\n 2019]]*(1-(Tableau1[[#This Row],[Remise]]/100))","v":{"$error":"#VALUE!"}}]
["510003","BANDE PVC 50x33 RUBAN ADHESIF PVC NOIR","5102","BANDE D'ETANCHEITE","Rl",9.7230000000000008,"",{"$f":"IF(ISERR(U230)=TRUE,,(F230*(1-G230/100)))","v":0},"OUI",null,null,null,null,null,null,null,null,null,null,null,{"$f":"Tableau1[[#This Row],[Prix de vente\n 2019]]*(1-(Tableau1[[#This Row],[Remise]]/100))","v":{"$error":"#VALUE!"}}]
["510007","BANDE ALUMINIUM ADHESIVE 45mlx100mm 30µ","5102","BANDE D'ETANCHEITE","Rl",38.671500000000002,"",{"$f":"IF(ISERR(U231)=TRUE,,(F231*(1-G231/100)))","v":0},"OUI",null,null,null,null,null,null,null,null,null,null,null,{"$f":"Tableau1[[#This Row],[Prix de vente\n 2019]]*(1-(Tableau1[[#This Row],[Remise]]/100))","v":{"$error":"#VALUE!"}}]
["510008","BANDE ALUMINIUM ADHESIVE AVEC GRILLE 50mx50","5102","BANDE D'ETANCHEITE","Rl",22.952999999999999,"",{"$f":"IF(ISERR(U232)=TRUE,,(F232*(1-G232/100)))","v":0},"OUI",null,null,null,null,null,null,null,null,null,null,null,{"$f":"Tableau1[[#This Row],[Prix de vente\n 2019]]*(1-(Tableau1[[#This Row],[Remise]]/100))","v":{"$error":"#VALUE!"}}]
["510010","BANDE ALUMINIUM ADHESIVE 50mlx 50mm 40µ","5102","BANDE D'ETANCHEITE","Rl",13.4085,"",{"$f":"IF(ISERR(U233)=TRUE,,(F233*(1-G233/100)))","v":0},"OUI",null,null,null,null,null,null,null,null,null,null,null,{"$f":"Tableau1[[#This Row],[Prix de vente\n 2019]]*(1-(Tableau1[[#This Row],[Remise]]/100))","v":{"$error":"#VALUE!"}}]
["510011","BANDE ALUMINIUM ADHESIVE 50mlx 63mm 40µ","5102","BANDE D'ETANCHEITE","Rl",17.870999999999999,"",{"$f":"IF(ISERR(U234)=TRUE,,(F234*(1-G234/100)))","v":0},"OUI",null,null,null,null,null,null,null,null,null,null,null,{"$f":"Tableau1[[#This Row],[Prix de vente\n 2019]]*(1-(Tableau1[[#This Row],[Remise]]/100))","v":{"$error":"#VALUE!"}}]
["510012","BANDE ALUMINIUM ADHESIVE 50mlx 75mm 40µ","5102","BANDE D'ETANCHEITE","Rl",20.097000000000001,"",{"$f":"IF(ISERR(U235)=TRUE,,(F235*(1-G235/100)))","v":0},"OUI",null,null,null,null,null,null,null,null,null,null,null,{"$f":"Tableau1[[#This Row],[Prix de vente\n 2019]]*(1-(Tableau1[[#This Row],[Remise]]/100))","v":{"$error":"#VALUE!"}}]
["510018","DUCT G 50ml x 50mm RUBAN ADHESIF POLYESTER-COTON INTERIEUR","5102","BANDE D'ETANCHEITE","Rl",23.488500000000002,"",{"$f":"IF(ISERR(U236)=TRUE,,(F236*(1-G236/100)))","v":0},"OUI",null,null,null,null,null,null,null,null,null,null,null,{"$f":"Tableau1[[#This Row],[Prix de vente\n 2019]]*(1-(Tableau1[[#This Row],[Remise]]/100))","v":{"$error":"#VALUE!"}}]
["510020","SF682 50mlx 48mm BANDE ADHESIVE TOILEE ALUMINISEE","5102","BANDE D'ETANCHEITE","Rl",39.322500000000005,"",{"$f":"IF(ISERR(U237)=TRUE,,(F237*(1-G237/100)))","v":0},"OUI",null,null,null,null,null,null,null,null,null,null,null,{"$f":"Tableau1[[#This Row],[Prix de vente\n 2019]]*(1-(Tableau1[[#This Row],[Remise]]/100))","v":{"$error":"#VALUE!"}}]
["510021","SF682 50mlx 72mm BANDE ADHESIVE TOILEE ALUMINISEE","5102","BANDE D'ETANCHEITE","Rl",58.989000000000004,"",{"$f":"IF(ISERR(U238)=TRUE,,(F238*(1-G238/100)))","v":0},"OUI",null,null,null,null,null,null,null,null,null,null,null,{"$f":"Tableau1[[#This Row],[Prix de vente\n 2019]]*(1-(Tableau1[[#This Row],[Remise]]/100))","v":{"$error":"#VALUE!"}}]
["520051","PS 641-15 Lg:150mm CONSOLE MURALE AVEC TROU FIXA.","5201","SUPPORTAGE RAIL & ACCESSOIRES","Pièce",7.7175000000000002,"",{"$f":"IF(ISERR(U239)=TRUE,,(F239*(1-G239/100)))","v":0},"OUI",null,null,null,null,null,null,null,null,null,null,null,{"$f":"Tableau1[[#This Row],[Prix de vente\n 2019]]*(1-(Tableau1[[#This Row],[Remise]]/100))","v":{"$error":"#VALUE!"}}]
["520052","PS 641-30 Lg:300mm CONSOLE MURALE AVEC TROU FIXA.","5201","SUPPORTAGE RAIL & ACCESSOIRES","Pièce",10.111500000000001,"",{"$f":"IF(ISERR(U240)=TRUE,,(F240*(1-G240/100)))","v":0},"OUI",null,null,null,null,null,null,null,null,null,null,null,{"$f":"Tableau1[[#This Row],[Prix de vente\n 2019]]*(1-(Tableau1[[#This Row],[Remise]]/100))","v":{"$error":"#VALUE!"}}]
["520053","PS 651-30 Lg:300mm CONSOLE MURALE AVEC TROU FIXA.","5201","SUPPORTAGE RAIL & ACCESSOIRES","Pièce",10.563000000000001,"",{"$f":"IF(ISERR(U241)=TRUE,,(F241*(1-G241/100)))","v":0},"OUI",null,null,null,null,null,null,null,null,null,null,null,{"$f":"Tableau1[[#This Row],[Prix de vente\n 2019]]*(1-(Tableau1[[#This Row],[Remise]]/100))","v":{"$error":"#VALUE!"}}]
["520054","PS 651-45 Lg:450mm CONSOLE MURALE AVEC TROU FIXA.","5201","SUPPORTAGE RAIL & ACCESSOIRES","Pièce",16.443000000000001,"",{"$f":"IF(ISERR(U242)=TRUE,,(F242*(1-G242/100)))","v":0},"OUI",null,null,null,null,null,null,null,null,null,null,null,{"$f":"Tableau1[[#This Row],[Prix de vente\n 2019]]*(1-(Tableau1[[#This Row],[Remise]]/100))","v":{"$error":"#VALUE!"}}]
["520055","PS 651-60 Lg:600mm CONSOLE MURALE AVEC TROU FIXA.","5201","SUPPORTAGE RAIL & ACCESSOIRES","Pièce",17.566500000000001,"",{"$f":"IF(ISERR(U243)=TRUE,,(F243*(1-G243/100)))","v":0},"OUI",null,null,null,null,null,null,null,null,null,null,null,{"$f":"Tableau1[[#This Row],[Prix de vente\n 2019]]*(1-(Tableau1[[#This Row],[Remise]]/100))","v":{"$error":"#VALUE!"}}]
["520056","PS 651-75 Lg:750mm CONSOLE MURALE AVEC TROU FIXA.","5201","SUPPORTAGE RAIL & ACCESSOIRES","Pièce",25.546499999999998,"",{"$f":"IF(ISERR(U244)=TRUE,,(F244*(1-G244/100)))","v":0},"OUI",null,null,null,null,null,null,null,null,null,null,null,{"$f":"Tableau1[[#This Row],[Prix de vente\n 2019]]*(1-(Tableau1[[#This Row],[Remise]]/100))","v":{"$error":"#VALUE!"}}]
["520059","RENFORT POUR CONSOLE PS LG:500mm MINI.","5201","SUPPORTAGE RAIL & ACCESSOIRES","Pièce",24.118500000000001,{"$f":"IF(C245=\"9999\",0,IF(IF(ISERROR(VLOOKUP(C245,Grille1,3,FALSE)),VLOOKUP(C245,Grille2,3,FALSE),VLOOKUP(C245,Grille1,3,FALSE))=\"\",\"\",IF(ISERROR(VLOOKUP(C245,Grille1,3,FALSE)),VLOOKUP(C245,Grille2,3,FALSE),VLOOKUP(C245,Grille1,3,FALSE))))","v":""},{"$f":"IF(ISERR(U245)=TRUE,,(F245*(1-G245/100)))","v":0},"OUI",null,null,null,null,null,null,null,null,null,null,null,{"$f":"Tableau1[[#This Row],[Prix de vente\n 2019]]*(1-(Tableau1[[#This Row],[Remise]]/100))","v":{"$error":"#VALUE!"}}]
["520060","PLAQUE PLN OBTURATION 42x30 D.10 POUR PS","5201","SUPPORTAGE RAIL & ACCESSOIRES","Pièce",1.8480000000000001,"",{"$f":"IF(ISERR(U246)=TRUE,,(F246*(1-G246/100)))","v":0},"OUI",null,null,null,null,null,null,null,null,null,null,null,{"$f":"Tableau1[[#This Row],[Prix de vente\n 2019]]*(1-(Tableau1[[#This Row],[Remise]]/100))","v":{"$error":"#VALUE!"}}]
["520061","GPR 41 JOINT POUR PS 21 /41 (Rlx 50ml)","5201","SUPPORTAGE RAIL & ACCESSOIRES","Rl",298.67250000000001,"",{"$f":"IF(ISERR(U247)=TRUE,,(F247*(1-G247/100)))","v":0},"OUI",null,null,null,null,null,null,null,null,null,null,null,{"$f":"Tableau1[[#This Row],[Prix de vente\n 2019]]*(1-(Tableau1[[#This Row],[Remise]]/100))","v":{"$error":"#VALUE!"}}]
["520071","PYRAMID RPS PIED 314x314 mm AVEC PATIN MOUSSE INTÉGRÉ","5204","SUPPORTAGE AU SOL","Pièce",60.1965,"",{"$f":"IF(ISERR(U248)=TRUE,,(F248*(1-G248/100)))","v":0},"OUI",null,null,null,null,null,null,null,null,null,null,null,{"$f":"Tableau1[[#This Row],[Prix de vente\n 2019]]*(1-(Tableau1[[#This Row],[Remise]]/100))","v":{"$error":"#VALUE!"}}]
["520072","KIT PYRAMID SUPPORT EN H (ENS. 2 PIEDS / 314x314) 660KGS","5204","SUPPORTAGE AU SOL","Pièce",130.99800000000002,"",{"$f":"IF(ISERR(U249)=TRUE,,(F249*(1-G249/100)))","v":0},"OUI",null,null,null,null,null,null,null,null,null,null,null,{"$f":"Tableau1[[#This Row],[Prix de vente\n 2019]]*(1-(Tableau1[[#This Row],[Remise]]/100))","v":{"$error":"#VALUE!"}}]
["520073","PS 651-100 Lg:1000mm CONSOLE MURALE AVEC TROU FIXA.","5201","SUPPORTAGE RAIL & ACCESSOIRES","Pièce",39.826500000000003,"",{"$f":"IF(ISERR(U250)=TRUE,,(F250*(1-G250/100)))","v":0},"OUI",null,null,null,null,null,null,null,null,null,null,null,{"$f":"Tableau1[[#This Row],[Prix de vente\n 2019]]*(1-(Tableau1[[#This Row],[Remise]]/100))","v":{"$error":"#VALUE!"}}]
["520074","RENFORT POUR CONSOLE PS LG:270mm MINI","5201","SUPPORTAGE RAIL & ACCESSOIRES","Pièce",16.149000000000001,"",{"$f":"IF(ISERR(U251)=TRUE,,(F251*(1-G251/100)))","v":0},"OUI",null,null,null,null,null,null,null,null,null,null,null,{"$f":"Tableau1[[#This Row],[Prix de vente\n 2019]]*(1-(Tableau1[[#This Row],[Remise]]/100))","v":{"$error":"#VALUE!"}}]
["520075","BASE FOOT D.250 SUPPORT AU SOL","5204","SUPPORTAGE AU SOL","Pièce",21.556500000000003,"",{"$f":"IF(ISERR(U252)=TRUE,,(F252*(1-G252/100)))","v":0},"OUI",null,null,null,null,null,null,null,null,null,null,null,{"$f":"Tableau1[[#This Row],[Prix de vente\n 2019]]*(1-(Tableau1[[#This Row],[Remise]]/100))","v":{"$error":"#VALUE!"}}]
["520089","VIBROMAT 1000x500 TAPIS ANTIVIBRATIL Ep : 30mm","5204","SUPPORTAGE AU SOL","Pièce",133.6755,"",{"$f":"IF(ISERR(U253)=TRUE,,(F253*(1-G253/100)))","v":0},"OUI",null,null,null,null,null,null,null,null,null,null,null,{"$f":"Tableau1[[#This Row],[Prix de vente\n 2019]]*(1-(Tableau1[[#This Row],[Remise]]/100))","v":{"$error":"#VALUE!"}}]
["520951","SLK15L1 SUSPENSION SPEED LINK 1,5mm LG 1M EMBOUT CROCHET","5203","SYSTEME DE SUSPENSION RAPIDE","Pièce",8.6415000000000006,{"$f":"IF(C254=\"9999\",0,IF(IF(ISERROR(VLOOKUP(C254,Grille1,3,FALSE)),VLOOKUP(C254,Grille2,3,FALSE),VLOOKUP(C254,Grille1,3,FALSE))=\"\",\"\",IF(ISERROR(VLOOKUP(C254,Grille1,3,FALSE)),VLOOKUP(C254,Grille2,3,FALSE),VLOOKUP(C254,Grille1,3,FALSE))))","v":""},{"$f":"IF(ISERR(U254)=TRUE,,(F254*(1-G254/100)))","v":0},"OUI",null,null,null,null,null,null,null,null,null,null,null,{"$f":"Tableau1[[#This Row],[Prix de vente\n 2019]]*(1-(Tableau1[[#This Row],[Remise]]/100))","v":{"$error":"#VALUE!"}}]
["520952","SLK15L2 SUSPENSION SPEED LINK 1,5mm LG 2M EMBOUT CROCHET","5203","SYSTEME DE SUSPENSION RAPIDE","Pièce",9.5130000000000017,"",{"$f":"IF(ISERR(U255)=TRUE,,(F255*(1-G255/100)))","v":0},"OUI",null,null,null,null,null,null,null,null,null,null,null,{"$f":"Tableau1[[#This Row],[Prix de vente\n 2019]]*(1-(Tableau1[[#This Row],[Remise]]/100))","v":{"$error":"#VALUE!"}}]
["520953","SLK15L3 SUSPENSION SPEED LINK 1,5mm LG 3M EMBOUT CROCHET","5203","SYSTEME DE SUSPENSION RAPIDE","Pièce",10.353,"",{"$f":"IF(ISERR(U256)=TRUE,,(F256*(1-G256/100)))","v":0},"OUI",null,null,null,null,null,null,null,null,null,null,null,{"$f":"Tableau1[[#This Row],[Prix de vente\n 2019]]*(1-(Tableau1[[#This Row],[Remise]]/100))","v":{"$error":"#VALUE!"}}]
["520954","SLK15L5 SUSPENSION SPEED LINK 1,5mm LG 5M EMBOUT CROCHET","5203","SYSTEME DE SUSPENSION RAPIDE","Pièce",12.1905,"",{"$f":"IF(ISERR(U257)=TRUE,,(F257*(1-G257/100)))","v":0},"OUI",null,null,null,null,null,null,null,null,null,null,null,{"$f":"Tableau1[[#This Row],[Prix de vente\n 2019]]*(1-(Tableau1[[#This Row],[Remise]]/100))","v":{"$error":"#VALUE!"}}]
["520955","SLK15L7 SUSPENSION SPEED LINK 1,5mm LG 7M EMBOUT CROCHET","5203","SYSTEME DE SUSPENSION RAPIDE","Pièce",14.857500000000002,"",{"$f":"IF(ISERR(U258)=TRUE,,(F258*(1-G258/100)))","v":0},"OUI",null,null,null,null,null,null,null,null,null,null,null,{"$f":"Tableau1[[#This Row],[Prix de vente\n 2019]]*(1-(Tableau1[[#This Row],[Remise]]/100))","v":{"$error":"#VALUE!"}}]
["520956","SLK15L10 SUSPENSION SPEED LINK 1,5mm LG 10M EMBOUT CROCHET","5203","SYSTEME DE SUSPENSION RAPIDE","Pièce",17.461500000000001,"",{"$f":"IF(ISERR(U259)=TRUE,,(F259*(1-G259/100)))","v":0},"OUI",null,null,null,null,null,null,null,null,null,null,null,{"$f":"Tableau1[[#This Row],[Prix de vente\n 2019]]*(1-(Tableau1[[#This Row],[Remise]]/100))","v":{"$error":"#VALUE!"}}]
["521001","SLK2L1 SUSPENSION SPEED LINK 2mm LG 1M EMBOUT CROCHET","5203","SYSTEME DE SUSPENSION RAPIDE","Pièce",10.216500000000002,"",{"$f":"IF(ISERR(U260)=TRUE,,(F260*(1-G260/100)))","v":0},"OUI",null,null,null,null,null,null,null,null,null,null,null,{"$f":"Tableau1[[#This Row],[Prix de vente\n 2019]]*(1-(Tableau1[[#This Row],[Remise]]/100))","v":{"$error":"#VALUE!"}}]
["521002","SLK2L2 SUSPENSION SPEED LINK 2mm LG 2M EMBOUT CROCHET","5203","SYSTEME DE SUSPENSION RAPIDE","Pièce",11.76,"",{"$f":"IF(ISERR(U261)=TRUE,,(F261*(1-G261/100)))","v":0},"OUI",null,null,null,null,null,null,null,null,null,null,null,{"$f":"Tableau1[[#This Row],[Prix de vente\n 2019]]*(1-(Tableau1[[#This Row],[Remise]]/100))","v":{"$error":"#VALUE!"}}]
["521003","SLK2L3 SUSPENSION SPEED LINK 2mm LG 3M EMBOUT CROCHET","5203","SYSTEME DE SUSPENSION RAPIDE","Pièce",13.198500000000001,"",{"$f":"IF(ISERR(U262)=TRUE,,(F262*(1-G262/100)))","v":0},"OUI",null,null,null,null,null,null,null,null,null,null,null,{"$f":"Tableau1[[#This Row],[Prix de vente\n 2019]]*(1-(Tableau1[[#This Row],[Remise]]/100))","v":{"$error":"#VALUE!"}}]
["521004","SLK2L5 SUSPENSION SPEED LINK 2mm LG 5M EMBOUT CROCHET","5203","SYSTEME DE SUSPENSION RAPIDE","Pièce",16.611000000000001,"",{"$f":"IF(ISERR(U263)=TRUE,,(F263*(1-G263/100)))","v":0},"OUI",null,null,null,null,null,null,null,null,null,null,null,{"$f":"Tableau1[[#This Row],[Prix de vente\n 2019]]*(1-(Tableau1[[#This Row],[Remise]]/100))","v":{"$error":"#VALUE!"}}]
["521005","SLK2L7 SUSPENSION SPEED LINK 2mm LG 7M EMBOUT CROCHET","5203","SYSTEME DE SUSPENSION RAPIDE","Pièce",20.4435,"",{"$f":"IF(ISERR(U264)=TRUE,,(F264*(1-G264/100)))","v":0},"OUI",null,null,null,null,null,null,null,null,null,null,null,{"$f":"Tableau1[[#This Row],[Prix de vente\n 2019]]*(1-(Tableau1[[#This Row],[Remise]]/100))","v":{"$error":"#VALUE!"}}]
["521006","SLK2L10 SUSPENSION SPEED LINK 2mm LG 10M EMBOUT CROCHET","5203","SYSTEME DE SUSPENSION RAPIDE","Pièce",24.297000000000001,"",{"$f":"IF(ISERR(U265)=TRUE,,(F265*(1-G265/100)))","v":0},"OUI",null,null,null,null,null,null,null,null,null,null,null,{"$f":"Tableau1[[#This Row],[Prix de vente\n 2019]]*(1-(Tableau1[[#This Row],[Remise]]/100))","v":{"$error":"#VALUE!"}}]
["521011","SLK15L1LP SUSPENSION SPEED LINK 1,5mm LG 1M EMBOUT BOUCLE","5203","SYSTEME DE SUSPENSION RAPIDE","Pièce",8.6415000000000006,"",{"$f":"IF(ISERR(U266)=TRUE,,(F266*(1-G266/100)))","v":0},"OUI",null,null,null,null,null,null,null,null,null,null,null,{"$f":"Tableau1[[#This Row],[Prix de vente\n 2019]]*(1-(Tableau1[[#This Row],[Remise]]/100))","v":{"$error":"#VALUE!"}}]
["521012","SLK15L2LP SUSPENSION SPEED LINK 1,5mm LG 2M EMBOUT BOUCLE","5203","SYSTEME DE SUSPENSION RAPIDE","Pièce",9.5130000000000017,"",{"$f":"IF(ISERR(U267)=TRUE,,(F267*(1-G267/100)))","v":0},"OUI",null,null,null,null,null,null,null,null,null,null,null,{"$f":"Tableau1[[#This Row],[Prix de vente\n 2019]]*(1-(Tableau1[[#This Row],[Remise]]/100))","v":{"$error":"#VALUE!"}}]
["521013","SLK15L3LP SUSPENSION SPEED LINK 1,5mm LG 3M EMBOUT BOUCLE","5203","SYSTEME DE SUSPENSION RAPIDE","Pièce",10.353,"",{"$f":"IF(ISERR(U268)=TRUE,,(F268*(1-G268/100)))","v":0},"OUI",null,null,null,null,null,null,null,null,null,null,null,{"$f":"Tableau1[[#This Row],[Prix de vente\n 2019]]*(1-(Tableau1[[#This Row],[Remise]]/100))","v":{"$error":"#VALUE!"}}]
["521014","SLK15L5LP SUSPENSION SPEED LINK 1,5mm LG 5M EMBOUT BOUCLE","5203","SYSTEME DE SUSPENSION RAPIDE","Pièce",12.1905,"",{"$f":"IF(ISERR(U269)=TRUE,,(F269*(1-G269/100)))","v":0},"OUI",null,null,null,null,null,null,null,null,null,null,null,{"$f":"Tableau1[[#This Row],[Prix de vente\n 2019]]*(1-(Tableau1[[#This Row],[Remise]]/100))","v":{"$error":"#VALUE!"}}]
["521015","SLK15L7LP SUSPENSION SPEED LINK 1,5mm LG 7M EMBOUT BOUCLE","5203","SYSTEME DE SUSPENSION RAPIDE","Pièce",14.857500000000002,"",{"$f":"IF(ISERR(U270)=TRUE,,(F270*(1-G270/100)))","v":0},"OUI",null,null,null,null,null,null,null,null,null,null,null,{"$f":"Tableau1[[#This Row],[Prix de vente\n 2019]]*(1-(Tableau1[[#This Row],[Remise]]/100))","v":{"$error":"#VALUE!"}}]
["521016","SLK15L10LP SUSPENSION SPEED LINK 1,5mm LG 10M EMBOUT BOUCLE","5203","SYSTEME DE SUSPENSION RAPIDE","Pièce",17.461500000000001,"",{"$f":"IF(ISERR(U271)=TRUE,,(F271*(1-G271/100)))","v":0},"OUI",null,null,null,null,null,null,null,null,null,null,null,{"$f":"Tableau1[[#This Row],[Prix de vente\n 2019]]*(1-(Tableau1[[#This Row],[Remise]]/100))","v":{"$error":"#VALUE!"}}]
["521021","SLK2L1LP SUSPENSION SPEED LINK 2mm LG 1M EMBOUT BOUCLE","5203","SYSTEME DE SUSPENSION RAPIDE","Pièce",10.216500000000002,"",{"$f":"IF(ISERR(U272)=TRUE,,(F272*(1-G272/100)))","v":0},"OUI",null,null,null,null,null,null,null,null,null,null,null,{"$f":"Tableau1[[#This Row],[Prix de vente\n 2019]]*(1-(Tableau1[[#This Row],[Remise]]/100))","v":{"$error":"#VALUE!"}}]
["521022","SLK2L2LP SUSPENSION SPEED LINK 2mm LG 2M EMBOUT BOUCLE","5203","SYSTEME DE SUSPENSION RAPIDE","Pièce",11.76,"",{"$f":"IF(ISERR(U273)=TRUE,,(F273*(1-G273/100)))","v":0},"OUI",null,null,null,null,null,null,null,null,null,null,null,{"$f":"Tableau1[[#This Row],[Prix de vente\n 2019]]*(1-(Tableau1[[#This Row],[Remise]]/100))","v":{"$error":"#VALUE!"}}]
["521023","SLK2L3LP SUSPENSION SPEED LINK 2mm LG 3M EMBOUT BOUCLE","5203","SYSTEME DE SUSPENSION RAPIDE","Pièce",13.198500000000001,"",{"$f":"IF(ISERR(U274)=TRUE,,(F274*(1-G274/100)))","v":0},"OUI",null,null,null,null,null,null,null,null,null,null,null,{"$f":"Tableau1[[#This Row],[Prix de vente\n 2019]]*(1-(Tableau1[[#This Row],[Remise]]/100))","v":{"$error":"#VALUE!"}}]
["521024","SLK2L5LP SUSPENSION SPEED LINK 2mm LG 5M EMBOUT BOUCLE","5203","SYSTEME DE SUSPENSION RAPIDE","Pièce",16.611000000000001,"",{"$f":"IF(ISERR(U275)=TRUE,,(F275*(1-G275/100)))","v":0},"OUI",null,null,null,null,null,null,null,null,null,null,null,{"$f":"Tableau1[[#This Row],[Prix de vente\n 2019]]*(1-(Tableau1[[#This Row],[Remise]]/100))","v":{"$error":"#VALUE!"}}]
["521025","SLK2L7LP SUSPENSION SPEED LINK 2mm LG 7M EMBOUT BOUCLE","5203","SYSTEME DE SUSPENSION RAPIDE","Pièce",20.4435,"",{"$f":"IF(ISERR(U276)=TRUE,,(F276*(1-G276/100)))","v":0},"OUI",null,null,null,null,null,null,null,null,null,null,null,{"$f":"Tableau1[[#This Row],[Prix de vente\n 2019]]*(1-(Tableau1[[#This Row],[Remise]]/100))","v":{"$error":"#VALUE!"}}]
["521026","SLK2L10LP SUSPENSION SPEED LINK 2mm LG 10M EMBOUT BOUCLE","5203","SYSTEME DE SUSPENSION RAPIDE","Pièce",24.297000000000001,"",{"$f":"IF(ISERR(U277)=TRUE,,(F277*(1-G277/100)))","v":0},"OUI",null,null,null,null,null,null,null,null,null,null,null,{"$f":"Tableau1[[#This Row],[Prix de vente\n 2019]]*(1-(Tableau1[[#This Row],[Remise]]/100))","v":{"$error":"#VALUE!"}}]
["521032","SLK15L1SEM6 SUSPENSION SPEED LINK 1,5mm LG 1M EMBOUT FILETE M6","5203","SYSTEME DE SUSPENSION RAPIDE","Pièce",8.6415000000000006,"",{"$f":"IF(ISERR(U278)=TRUE,,(F278*(1-G278/100)))","v":0},"OUI",null,null,null,null,null,null,null,null,null,null,null,{"$f":"Tableau1[[#This Row],[Prix de vente\n 2019]]*(1-(Tableau1[[#This Row],[Remise]]/100))","v":{"$error":"#VALUE!"}}]
["521033","SLK15L2SEM6 SUSPENSION SPEED LINK 1,5mm LG 2M EMBOUT FILETE M6","5203","SYSTEME DE SUSPENSION RAPIDE","Pièce",9.5130000000000017,"",{"$f":"IF(ISERR(U279)=TRUE,,(F279*(1-G279/100)))","v":0},"OUI",null,null,null,null,null,null,null,null,null,null,null,{"$f":"Tableau1[[#This Row],[Prix de vente\n 2019]]*(1-(Tableau1[[#This Row],[Remise]]/100))","v":{"$error":"#VALUE!"}}]
["521034","SLK15L3SEM6 SUSPENSION SPEED LINK 1,5mm LG 3M EMBOUT FILETE M6","5203","SYSTEME DE SUSPENSION RAPIDE","Pièce",10.353,"",{"$f":"IF(ISERR(U280)=TRUE,,(F280*(1-G280/100)))","v":0},"OUI",null,null,null,null,null,null,null,null,null,null,null,{"$f":"Tableau1[[#This Row],[Prix de vente\n 2019]]*(1-(Tableau1[[#This Row],[Remise]]/100))","v":{"$error":"#VALUE!"}}]
["521035","SLK15L1SEM8 SUSPENSION SPEED LINK 1,5mm LG 1M EMBOUT FILETE M8","5203","SYSTEME DE SUSPENSION RAPIDE","Pièce",8.6415000000000006,"",{"$f":"IF(ISERR(U281)=TRUE,,(F281*(1-G281/100)))","v":0},"OUI",null,null,null,null,null,null,null,null,null,null,null,{"$f":"Tableau1[[#This Row],[Prix de vente\n 2019]]*(1-(Tableau1[[#This Row],[Remise]]/100))","v":{"$error":"#VALUE!"}}]
["521036","SLK15L2SEM8 SUSPENSION SPEED LINK 1,5mm LG 2M EMBOUT FILETE M8","5203","SYSTEME DE SUSPENSION RAPIDE","Pièce",9.5130000000000017,"",{"$f":"IF(ISERR(U282)=TRUE,,(F282*(1-G282/100)))","v":0},"OUI",null,null,null,null,null,null,null,null,null,null,null,{"$f":"Tableau1[[#This Row],[Prix de vente\n 2019]]*(1-(Tableau1[[#This Row],[Remise]]/100))","v":{"$error":"#VALUE!"}}]
["521037","SLK15L3SEM8 SUSPENSION SPEED LINK 1,5mm LG 3M EMBOUT FILETE M8","5203","SYSTEME DE SUSPENSION RAPIDE","Pièce",10.353,"",{"$f":"IF(ISERR(U283)=TRUE,,(F283*(1-G283/100)))","v":0},"OUI",null,null,null,null,null,null,null,null,null,null,null,{"$f":"Tableau1[[#This Row],[Prix de vente\n 2019]]*(1-(Tableau1[[#This Row],[Remise]]/100))","v":{"$error":"#VALUE!"}}]
["521043","SLK2L2SEM6 SUSPENSION SPEED LINK 2mm LG 2M EMBOUT FILETE M6","5203","SYSTEME DE SUSPENSION RAPIDE","Pièce",11.76,"",{"$f":"IF(ISERR(U284)=TRUE,,(F284*(1-G284/100)))","v":0},"OUI",null,null,null,null,null,null,null,null,null,null,null,{"$f":"Tableau1[[#This Row],[Prix de vente\n 2019]]*(1-(Tableau1[[#This Row],[Remise]]/100))","v":{"$error":"#VALUE!"}}]
["521044","SLK2L3SEM6 SUSPENSION SPEED LINK 2mm LG 3M EMBOUT FILETE M6","5203","SYSTEME DE SUSPENSION RAPIDE","Pièce",13.198500000000001,"",{"$f":"IF(ISERR(U285)=TRUE,,(F285*(1-G285/100)))","v":0},"OUI",null,null,null,null,null,null,null,null,null,null,null,{"$f":"Tableau1[[#This Row],[Prix de vente\n 2019]]*(1-(Tableau1[[#This Row],[Remise]]/100))","v":{"$error":"#VALUE!"}}]
["521045","SLK2L5SEM6 SUSPENSION SPEED LINK 2mm LG 5M EMBOUT FILETE M6","5203","SYSTEME DE SUSPENSION RAPIDE","Pièce",16.611000000000001,"",{"$f":"IF(ISERR(U286)=TRUE,,(F286*(1-G286/100)))","v":0},"OUI",null,null,null,null,null,null,null,null,null,null,null,{"$f":"Tableau1[[#This Row],[Prix de vente\n 2019]]*(1-(Tableau1[[#This Row],[Remise]]/100))","v":{"$error":"#VALUE!"}}]
["521046","SLK2L2SEM8 SUSPENSION SPEED LINK 2mm LG 2M EMBOUT FILETE M8","5203","SYSTEME DE SUSPENSION RAPIDE","Pièce",11.76,"",{"$f":"IF(ISERR(U287)=TRUE,,(F287*(1-G287/100)))","v":0},"OUI",null,null,null,null,null,null,null,null,null,null,null,{"$f":"Tableau1[[#This Row],[Prix de vente\n 2019]]*(1-(Tableau1[[#This Row],[Remise]]/100))","v":{"$error":"#VALUE!"}}]
["521047","SLK2L3SEM8 SUSPENSION SPEED LINK 2mm LG 3M EMBOUT FILETE M8","5203","SYSTEME DE SUSPENSION RAPIDE","Pièce",13.198500000000001,"",{"$f":"IF(ISERR(U288)=TRUE,,(F288*(1-G288/100)))","v":0},"OUI",null,null,null,null,null,null,null,null,null,null,null,{"$f":"Tableau1[[#This Row],[Prix de vente\n 2019]]*(1-(Tableau1[[#This Row],[Remise]]/100))","v":{"$error":"#VALUE!"}}]
["521048","SLK2L5SEM8 SUSPENSION SPEED LINK 2mm LG 5M EMBOUT FILETE M8","5203","SYSTEME DE SUSPENSION RAPIDE","Pièce",16.611000000000001,"",{"$f":"IF(ISERR(U289)=TRUE,,(F289*(1-G289/100)))","v":0},"OUI",null,null,null,null,null,null,null,null,null,null,null,{"$f":"Tableau1[[#This Row],[Prix de vente\n 2019]]*(1-(Tableau1[[#This Row],[Remise]]/100))","v":{"$error":"#VALUE!"}}]
["521061","SLK15L34H24 SUSPENSION SPEED LINK 1,5mm LG 3M EMBOUT CADDY H24","5203","SYSTEME DE SUSPENSION RAPIDE","Pièce",10.3215,"",{"$f":"IF(ISERR(U290)=TRUE,,(F290*(1-G290/100)))","v":0},"OUI",null,null,null,null,null,null,null,null,null,null,null,{"$f":"Tableau1[[#This Row],[Prix de vente\n 2019]]*(1-(Tableau1[[#This Row],[Remise]]/100))","v":{"$error":"#VALUE!"}}]
["521062","SLK15L34H58 SUSPENSION SPEED LINK 1,5mm LG 3M EMBOUT CADDY H58","5203","SYSTEME DE SUSPENSION RAPIDE","Pièce",10.3215,"",{"$f":"IF(ISERR(U291)=TRUE,,(F291*(1-G291/100)))","v":0},"OUI",null,null,null,null,null,null,null,null,null,null,null,{"$f":"Tableau1[[#This Row],[Prix de vente\n 2019]]*(1-(Tableau1[[#This Row],[Remise]]/100))","v":{"$error":"#VALUE!"}}]
["521063","SLK2L34H24 SUSPENSION SPEED LINK 2mm LG 3M EMBOUT CADDY H24","5203","SYSTEME DE SUSPENSION RAPIDE","Pièce",13.198500000000001,"",{"$f":"IF(ISERR(U292)=TRUE,,(F292*(1-G292/100)))","v":0},"OUI",null,null,null,null,null,null,null,null,null,null,null,{"$f":"Tableau1[[#This Row],[Prix de vente\n 2019]]*(1-(Tableau1[[#This Row],[Remise]]/100))","v":{"$error":"#VALUE!"}}]
["521064","SLK2L34H58 SUSPENSION SPEED LINK 2mm LG 3M EMBOUT CADDY H58","5203","SYSTEME DE SUSPENSION RAPIDE","Pièce",13.198500000000001,"",{"$f":"IF(ISERR(U293)=TRUE,,(F293*(1-G293/100)))","v":0},"OUI",null,null,null,null,null,null,null,null,null,null,null,{"$f":"Tableau1[[#This Row],[Prix de vente\n 2019]]*(1-(Tableau1[[#This Row],[Remise]]/100))","v":{"$error":"#VALUE!"}}]
["521071","SLK15L1T SUSPENSION SPEED LINK 1,5mm LG 1M EMBOUT BASCULE","5203","SYSTEME DE SUSPENSION RAPIDE","Pièce",8.6415000000000006,"",{"$f":"IF(ISERR(U294)=TRUE,,(F294*(1-G294/100)))","v":0},"OUI",null,null,null,null,null,null,null,null,null,null,null,{"$f":"Tableau1[[#This Row],[Prix de vente\n 2019]]*(1-(Tableau1[[#This Row],[Remise]]/100))","v":{"$error":"#VALUE!"}}]
["521072","SLK15L2T SUSPENSION SPEED LINK 1,5mm LG 2M EMBOUT BASCULE","5203","SYSTEME DE SUSPENSION RAPIDE","Pièce",9.5130000000000017,"",{"$f":"IF(ISERR(U295)=TRUE,,(F295*(1-G295/100)))","v":0},"OUI",null,null,null,null,null,null,null,null,null,null,null,{"$f":"Tableau1[[#This Row],[Prix de vente\n 2019]]*(1-(Tableau1[[#This Row],[Remise]]/100))","v":{"$error":"#VALUE!"}}]
["521073","SLK15L3T SUSPENSION SPEED LINK 1,5mm LG 3M EMBOUT BASCULE","5203","SYSTEME DE SUSPENSION RAPIDE","Pièce",10.353,"",{"$f":"IF(ISERR(U296)=TRUE,,(F296*(1-G296/100)))","v":0},"OUI",null,null,null,null,null,null,null,null,null,null,null,{"$f":"Tableau1[[#This Row],[Prix de vente\n 2019]]*(1-(Tableau1[[#This Row],[Remise]]/100))","v":{"$error":"#VALUE!"}}]
["521074","SLK15L5T SUSPENSION SPEED LINK 1,5mm LG 5M EMBOUT BASCULE","5203","SYSTEME DE SUSPENSION RAPIDE","Pièce",12.1905,"",{"$f":"IF(ISERR(U297)=TRUE,,(F297*(1-G297/100)))","v":0},"OUI",null,null,null,null,null,null,null,null,null,null,null,{"$f":"Tableau1[[#This Row],[Prix de vente\n 2019]]*(1-(Tableau1[[#This Row],[Remise]]/100))","v":{"$error":"#VALUE!"}}]
["521075","SLK15L7T SUSPENSION SPEED LINK 1,5mm LG 7M EMBOUT BASCULE","5203","SYSTEME DE SUSPENSION RAPIDE","Pièce",14.857500000000002,"",{"$f":"IF(ISERR(U298)=TRUE,,(F298*(1-G298/100)))","v":0},"OUI",null,null,null,null,null,null,null,null,null,null,null,{"$f":"Tableau1[[#This Row],[Prix de vente\n 2019]]*(1-(Tableau1[[#This Row],[Remise]]/100))","v":{"$error":"#VALUE!"}}]
["521076","SLK15L10T SUSPENSION SPEED LINK 1,5mm LG 10M EMBOUT BASCULE","5203","SYSTEME DE SUSPENSION RAPIDE","Pièce",17.461500000000001,"",{"$f":"IF(ISERR(U299)=TRUE,,(F299*(1-G299/100)))","v":0},"OUI",null,null,null,null,null,null,null,null,null,null,null,{"$f":"Tableau1[[#This Row],[Prix de vente\n 2019]]*(1-(Tableau1[[#This Row],[Remise]]/100))","v":{"$error":"#VALUE!"}}]
["521093","SLC15L1000SP BOBINE DE CABLE SPEEDLINK 1,5mm x 300ml","5203","SYSTEME DE SUSPENSION RAPIDE","Pièce",102.8895,"",{"$f":"IF(ISERR(U300)=TRUE,,(F300*(1-G300/100)))","v":0},"OUI",null,null,null,null,null,null,null,null,null,null,null,{"$f":"Tableau1[[#This Row],[Prix de vente\n 2019]]*(1-(Tableau1[[#This Row],[Remise]]/100))","v":{"$error":"#VALUE!"}}]
["521094","SLC 2L 1000SP BOBINE DE CABLE SPEEDLINK 2.0mm x 300ml","5203","SYSTEME DE SUSPENSION RAPIDE","Pièce",108.34950000000001,"",{"$f":"IF(ISERR(U301)=TRUE,,(F301*(1-G301/100)))","v":0},"OUI",null,null,null,null,null,null,null,null,null,null,null,{"$f":"Tableau1[[#This Row],[Prix de vente\n 2019]]*(1-(Tableau1[[#This Row],[Remise]]/100))","v":{"$error":"#VALUE!"}}]
["521096","SLC 3L 1000SP BOBINE DE CABLE SPEEDLINK 3.0mm x 300ml","5203","SYSTEME DE SUSPENSION RAPIDE","Pièce",184.47450000000001,"",{"$f":"IF(ISERR(U302)=TRUE,,(F302*(1-G302/100)))","v":0},"OUI",null,null,null,null,null,null,null,null,null,null,null,{"$f":"Tableau1[[#This Row],[Prix de vente\n 2019]]*(1-(Tableau1[[#This Row],[Remise]]/100))","v":{"$error":"#VALUE!"}}]
["521097","SLK 300 VERROU EXPRESS POUR CABLES SPEED LINK D.3mm","5203","SYSTEME DE SUSPENSION RAPIDE","Pièce",7.4235000000000007,"",{"$f":"IF(ISERR(U303)=TRUE,,(F303*(1-G303/100)))","v":0},"OUI",null,null,null,null,null,null,null,null,null,null,null,{"$f":"Tableau1[[#This Row],[Prix de vente\n 2019]]*(1-(Tableau1[[#This Row],[Remise]]/100))","v":{"$error":"#VALUE!"}}]
["521098","SLK 200 VERROU EXPRESS POUR CABLES SPEED LINK D.1.5mm ET 2mm","5203","SYSTEME DE SUSPENSION RAPIDE","Pièce",5.2184999999999997,"",{"$f":"IF(ISERR(U304)=TRUE,,(F304*(1-G304/100)))","v":0},"OUI",null,null,null,null,null,null,null,null,null,null,null,{"$f":"Tableau1[[#This Row],[Prix de vente\n 2019]]*(1-(Tableau1[[#This Row],[Remise]]/100))","v":{"$error":"#VALUE!"}}]
["521100","SLES M8x25mm ANNEAU DE SUSPENSION SPEED LINK","5301","ACC MONTAGE/VISSERIES-BOULONNERIES","Pièce",1.302,"",{"$f":"IF(ISERR(U305)=TRUE,,(F305*(1-G305/100)))","v":0},"OUI",null,null,null,null,null,null,null,null,null,null,null,{"$f":"Tableau1[[#This Row],[Prix de vente\n 2019]]*(1-(Tableau1[[#This Row],[Remise]]/100))","v":{"$error":"#VALUE!"}}]
["521101","SLES H6x50mm ANNEAU DE SUSPENSION SPEED LINK BOIS","5301","ACC MONTAGE/VISSERIES-BOULONNERIES","Pièce",0.84000000000000008,"",{"$f":"IF(ISERR(U306)=TRUE,,(F306*(1-G306/100)))","v":0},"OUI",null,null,null,null,null,null,null,null,null,null,null,{"$f":"Tableau1[[#This Row],[Prix de vente\n 2019]]*(1-(Tableau1[[#This Row],[Remise]]/100))","v":{"$error":"#VALUE!"}}]
["522872","GRIHK100P CROCHETS SANS CHEVILLE : 75kg VOIR FICHE","5301","ACC MONTAGE/VISSERIES-BOULONNERIES","Cent",133.54949999999999,{"$f":"IF(C307=\"9999\",0,IF(IF(ISERROR(VLOOKUP(C307,Grille1,3,FALSE)),VLOOKUP(C307,Grille2,3,FALSE),VLOOKUP(C307,Grille1,3,FALSE))=\"\",\"\",IF(ISERROR(VLOOKUP(C307,Grille1,3,FALSE)),VLOOKUP(C307,Grille2,3,FALSE),VLOOKUP(C307,Grille1,3,FALSE))))","v":""},{"$f":"IF(ISERR(U307)=TRUE,,(F307*(1-G307/100)))","v":0},"OUI",null,null,null,null,null,null,null,null,null,null,null,{"$f":"Tableau1[[#This Row],[Prix de vente\n 2019]]*(1-(Tableau1[[#This Row],[Remise]]/100))","v":{"$error":"#VALUE!"}}]
["522932","PINCE COUPE CABLE N°1, N°2, N°3","5301","ACC MONTAGE/VISSERIES-BOULONNERIES","Pièce",222.63150000000002,"",{"$f":"IF(ISERR(U308)=TRUE,,(F308*(1-G308/100)))","v":0},"OUI",null,null,null,null,null,null,null,null,null,null,null,{"$f":"Tableau1[[#This Row],[Prix de vente\n 2019]]*(1-(Tableau1[[#This Row],[Remise]]/100))","v":{"$error":"#VALUE!"}}]
["522933","GRIPPINC6 - PINCE COUPE CABLE N°4, N°5, EP ET CTI","5301","ACC MONTAGE/VISSERIES-BOULONNERIES","Pièce",374.52449999999999,"",{"$f":"IF(ISERR(U309)=TRUE,,(F309*(1-G309/100)))","v":0},"OUI",null,null,null,null,null,null,null,null,null,null,null,{"$f":"Tableau1[[#This Row],[Prix de vente\n 2019]]*(1-(Tableau1[[#This Row],[Remise]]/100))","v":{"$error":"#VALUE!"}}]
["523016","GRIPTORQCTI - PINCE DE TENSION DYNAMOMETRIQUE POUR EP6 ET CTI6","5301","ACC MONTAGE/VISSERIES-BOULONNERIES","Pièce",716.65650000000005,"",{"$f":"IF(ISERR(U310)=TRUE,,(F310*(1-G310/100)))","v":0},"OUI",null,null,null,null,null,null,null,null,null,null,null,{"$f":"Tableau1[[#This Row],[Prix de vente\n 2019]]*(1-(Tableau1[[#This Row],[Remise]]/100))","v":{"$error":"#VALUE!"}}]
["611202","COLLIERS NYLON  290mm x 4,8mm (SACHET DE 100 PIECES)","4401","COLLIERS DE SERRAGE","Sachet",16.149000000000001,{"$f":"IF(C311=\"9999\",0,IF(IF(ISERROR(VLOOKUP(C311,Grille1,3,FALSE)),VLOOKUP(C311,Grille2,3,FALSE),VLOOKUP(C311,Grille1,3,FALSE))=\"\",\"\",IF(ISERROR(VLOOKUP(C311,Grille1,3,FALSE)),VLOOKUP(C311,Grille2,3,FALSE),VLOOKUP(C311,Grille1,3,FALSE))))","v":""},{"$f":"IF(ISERR(U311)=TRUE,,(F311*(1-G311/100)))","v":0},"OUI",null,null,null,null,null,null,null,null,null,null,null,{"$f":"Tableau1[[#This Row],[Prix de vente\n 2019]]*(1-(Tableau1[[#This Row],[Remise]]/100))","v":{"$error":"#VALUE!"}}]
["611203","COLLIERS NYLON  390mm x 4,8mm (SACHET DE 100 PIECES)","4401","COLLIERS DE SERRAGE","Sachet",19.740000000000002,"",{"$f":"IF(ISERR(U312)=TRUE,,(F312*(1-G312/100)))","v":0},"OUI",null,null,null,null,null,null,null,null,null,null,null,{"$f":"Tableau1[[#This Row],[Prix de vente\n 2019]]*(1-(Tableau1[[#This Row],[Remise]]/100))","v":{"$error":"#VALUE!"}}]
["611204","COLLIERS NYLON  610mm x 9mm (SACHET DE 100 PIECES / D.160)","4401","COLLIERS DE SERRAGE","Sachet",60.942,"",{"$f":"IF(ISERR(U313)=TRUE,,(F313*(1-G313/100)))","v":0},"OUI",null,null,null,null,null,null,null,null,null,null,null,{"$f":"Tableau1[[#This Row],[Prix de vente\n 2019]]*(1-(Tableau1[[#This Row],[Remise]]/100))","v":{"$error":"#VALUE!"}}]
["611205","COLLIERS NYLON  914mm x 9mm (SACHET DE 100 PIECES / D.250)","4401","COLLIERS DE SERRAGE","Sachet",92.106000000000009,"",{"$f":"IF(ISERR(U314)=TRUE,,(F314*(1-G314/100)))","v":0},"OUI",null,null,null,null,null,null,null,null,null,null,null,{"$f":"Tableau1[[#This Row],[Prix de vente\n 2019]]*(1-(Tableau1[[#This Row],[Remise]]/100))","v":{"$error":"#VALUE!"}}]
["611206","COLLIERS NYLON 1219mm x 9mm (SACHET DE  50 PIECES / D.355)","4401","COLLIERS DE SERRAGE","Sachet",85.018500000000003,"",{"$f":"IF(ISERR(U315)=TRUE,,(F315*(1-G315/100)))","v":0},"OUI",null,null,null,null,null,null,null,null,null,null,null,{"$f":"Tableau1[[#This Row],[Prix de vente\n 2019]]*(1-(Tableau1[[#This Row],[Remise]]/100))","v":{"$error":"#VALUE!"}}]
["611211","KIT CERCLAGE POLYPRO 12x0.40x600ml + 200 BOUCLES","4401","COLLIERS DE SERRAGE","Pièce",155.58900000000003,"",{"$f":"IF(ISERR(U316)=TRUE,,(F316*(1-G316/100)))","v":0},"OUI",null,null,null,null,null,null,null,null,null,null,null,{"$f":"Tableau1[[#This Row],[Prix de vente\n 2019]]*(1-(Tableau1[[#This Row],[Remise]]/100))","v":{"$error":"#VALUE!"}}]
["621101","DBF-250 FILM PROTECTION AUTOADHÉSIF LG 250mm RL 100m","5301","ACC MONTAGE/VISSERIES-BOULONNERIES","Rl",81.69,{"$f":"IF(C317=\"9999\",0,IF(IF(ISERROR(VLOOKUP(C317,Grille1,3,FALSE)),VLOOKUP(C317,Grille2,3,FALSE),VLOOKUP(C317,Grille1,3,FALSE))=\"\",\"\",IF(ISERROR(VLOOKUP(C317,Grille1,3,FALSE)),VLOOKUP(C317,Grille2,3,FALSE),VLOOKUP(C317,Grille1,3,FALSE))))","v":""},{"$f":"IF(ISERR(U317)=TRUE,,(F317*(1-G317/100)))","v":0},"OUI",null,null,null,null,null,null,null,null,null,null,null,{"$f":"Tableau1[[#This Row],[Prix de vente\n 2019]]*(1-(Tableau1[[#This Row],[Remise]]/100))","v":{"$error":"#VALUE!"}}]
["621102","DBF-500 FILM PROTECTION AUTOADHÉSIF LG 500mm RL 100m","5301","ACC MONTAGE/VISSERIES-BOULONNERIES","Rl",136.13250000000002,"",{"$f":"IF(ISERR(U318)=TRUE,,(F318*(1-G318/100)))","v":0},"OUI",null,null,null,null,null,null,null,null,null,null,null,{"$f":"Tableau1[[#This Row],[Prix de vente\n 2019]]*(1-(Tableau1[[#This Row],[Remise]]/100))","v":{"$error":"#VALUE!"}}]
["621103","DBF-750 FILM PROTECTION AUTOADHÉSIF LG 750mm RL 100m","5301","ACC MONTAGE/VISSERIES-BOULONNERIES","Rl",217.82249999999999,"",{"$f":"IF(ISERR(U319)=TRUE,,(F319*(1-G319/100)))","v":0},"OUI",null,null,null,null,null,null,null,null,null,null,null,{"$f":"Tableau1[[#This Row],[Prix de vente\n 2019]]*(1-(Tableau1[[#This Row],[Remise]]/100))","v":{"$error":"#VALUE!"}}]
["621104","DBF-1000 FILM PROTECTION AUTOADHÉSIF LG 1000mm RL 100m","5301","ACC MONTAGE/VISSERIES-BOULONNERIES","Rl",272.27550000000002,"",{"$f":"IF(ISERR(U320)=TRUE,,(F320*(1-G320/100)))","v":0},"OUI",null,null,null,null,null,null,null,null,null,null,null,{"$f":"Tableau1[[#This Row],[Prix de vente\n 2019]]*(1-(Tableau1[[#This Row],[Remise]]/100))","v":{"$error":"#VALUE!"}}]
["652001","M2001 - CISAILLE MAX 2000 STD ROUGE GAUCHE 34,9mm","2049","OUTILLAGES VENTILATION","Pièce",102.78450000000001,{"$f":"IF(C321=\"9999\",0,IF(IF(ISERROR(VLOOKUP(C321,Grille1,3,FALSE)),VLOOKUP(C321,Grille2,3,FALSE),VLOOKUP(C321,Grille1,3,FALSE))=\"\",\"\",IF(ISERROR(VLOOKUP(C321,Grille1,3,FALSE)),VLOOKUP(C321,Grille2,3,FALSE),VLOOKUP(C321,Grille1,3,FALSE))))","v":""},{"$f":"IF(ISERR(U321)=TRUE,,(F321*(1-G321/100)))","v":0},"OUI",null,null,null,null,null,null,null,null,null,null,null,{"$f":"Tableau1[[#This Row],[Prix de vente\n 2019]]*(1-(Tableau1[[#This Row],[Remise]]/100))","v":{"$error":"#VALUE!"}}]
["652002","M2002 - CISAILLE MAX 2000 STD VERTE DROITE 34,9mm","2049","OUTILLAGES VENTILATION","Pièce",102.78450000000001,"",{"$f":"IF(ISERR(U322)=TRUE,,(F322*(1-G322/100)))","v":0},"OUI",null,null,null,null,null,null,null,null,null,null,null,{"$f":"Tableau1[[#This Row],[Prix de vente\n 2019]]*(1-(Tableau1[[#This Row],[Remise]]/100))","v":{"$error":"#VALUE!"}}]
["652003","M2003 - CISAILLE MAX 2000 STD JAUNE MIXTE 42,9mm","2049","OUTILLAGES VENTILATION","Pièce",102.78450000000001,"",{"$f":"IF(ISERR(U323)=TRUE,,(F323*(1-G323/100)))","v":0},"OUI",null,null,null,null,null,null,null,null,null,null,null,{"$f":"Tableau1[[#This Row],[Prix de vente\n 2019]]*(1-(Tableau1[[#This Row],[Remise]]/100))","v":{"$error":"#VALUE!"}}]
["652004","AV-6 - CISAILLE ÉCONOMIQUE DÉCALÉE ROUGE GAUCHE 31,8mm","2049","OUTILLAGES VENTILATION","Pièce",74.423999999999992,"",{"$f":"IF(ISERR(U324)=TRUE,,(F324*(1-G324/100)))","v":0},"OUI",null,null,null,null,null,null,null,null,null,null,null,{"$f":"Tableau1[[#This Row],[Prix de vente\n 2019]]*(1-(Tableau1[[#This Row],[Remise]]/100))","v":{"$error":"#VALUE!"}}]
["652005","AV-7 - CISAILLE ÉCONOMIQUE DÉCALÉE VERTE DROITE 31,8mm","2049","OUTILLAGES VENTILATION","Pièce",74.423999999999992,"",{"$f":"IF(ISERR(U325)=TRUE,,(F325*(1-G325/100)))","v":0},"OUI",null,null,null,null,null,null,null,null,null,null,null,{"$f":"Tableau1[[#This Row],[Prix de vente\n 2019]]*(1-(Tableau1[[#This Row],[Remise]]/100))","v":{"$error":"#VALUE!"}}]
["652006","TSHD - TURBOSHEAR DÉCOUPEUSE INDUSTRIELLE","2049","OUTILLAGES VENTILATION","Pièce",408.11400000000003,"",{"$f":"IF(ISERR(U326)=TRUE,,(F326*(1-G326/100)))","v":0},"OUI",null,null,null,null,null,null,null,null,null,null,null,{"$f":"Tableau1[[#This Row],[Prix de vente\n 2019]]*(1-(Tableau1[[#This Row],[Remise]]/100))","v":{"$error":"#VALUE!"}}]
["652007","HC1 - EMPORTE-PIÈCES 51-305mm","2049","OUTILLAGES VENTILATION","Pièce",271.18349999999998,"",{"$f":"IF(ISERR(U327)=TRUE,,(F327*(1-G327/100)))","v":0},"OUI",null,null,null,null,null,null,null,null,null,null,null,{"$f":"Tableau1[[#This Row],[Prix de vente\n 2019]]*(1-(Tableau1[[#This Row],[Remise]]/100))","v":{"$error":"#VALUE!"}}]
["652008","S2R - SERTISSEUSE MANUELLE 83mm","2049","OUTILLAGES VENTILATION","Pièce",203.76300000000001,"",{"$f":"IF(ISERR(U328)=TRUE,,(F328*(1-G328/100)))","v":0},"OUI",null,null,null,null,null,null,null,null,null,null,null,{"$f":"Tableau1[[#This Row],[Prix de vente\n 2019]]*(1-(Tableau1[[#This Row],[Remise]]/100))","v":{"$error":"#VALUE!"}}]
["652010","AV-1 - CISAILLE ÉCONOMIQUE ROUGE GAUCHE 35mm","2049","OUTILLAGES VENTILATION","Pièce",57.781500000000001,"",{"$f":"IF(ISERR(U329)=TRUE,,(F329*(1-G329/100)))","v":0},"OUI",null,null,null,null,null,null,null,null,null,null,null,{"$f":"Tableau1[[#This Row],[Prix de vente\n 2019]]*(1-(Tableau1[[#This Row],[Remise]]/100))","v":{"$error":"#VALUE!"}}]
["652011","AV-2 - CISAILLE ÉCONOMIQUE VERTE DROITE 35mm","2049","OUTILLAGES VENTILATION","Pièce",57.781500000000001,"",{"$f":"IF(ISERR(U330)=TRUE,,(F330*(1-G330/100)))","v":0},"OUI",null,null,null,null,null,null,null,null,null,null,null,{"$f":"Tableau1[[#This Row],[Prix de vente\n 2019]]*(1-(Tableau1[[#This Row],[Remise]]/100))","v":{"$error":"#VALUE!"}}]
["652012","AV-3 - CISAILLE ÉCONOMIQUE JAUNE MIXTE 38,1mm","2049","OUTILLAGES VENTILATION","Pièce",57.781500000000001,"",{"$f":"IF(ISERR(U331)=TRUE,,(F331*(1-G331/100)))","v":0},"OUI",null,null,null,null,null,null,null,null,null,null,null,{"$f":"Tableau1[[#This Row],[Prix de vente\n 2019]]*(1-(Tableau1[[#This Row],[Remise]]/100))","v":{"$error":"#VALUE!"}}]
["652014","C5R - SERTISSEUSE DE TUYAU À 5 LAMES","2049","OUTILLAGES VENTILATION","Pièce",139.54500000000002,"",{"$f":"IF(ISERR(U332)=TRUE,,(F332*(1-G332/100)))","v":0},"OUI",null,null,null,null,null,null,null,null,null,null,null,{"$f":"Tableau1[[#This Row],[Prix de vente\n 2019]]*(1-(Tableau1[[#This Row],[Remise]]/100))","v":{"$error":"#VALUE!"}}]
["652015","C6R - SERTISSEUSE DE TUYAU À 5 LAMES DÉCALÉES","2049","OUTILLAGES VENTILATION","Pièce",152.95349999999999,"",{"$f":"IF(ISERR(U333)=TRUE,,(F333*(1-G333/100)))","v":0},"OUI",null,null,null,null,null,null,null,null,null,null,null,{"$f":"Tableau1[[#This Row],[Prix de vente\n 2019]]*(1-(Tableau1[[#This Row],[Remise]]/100))","v":{"$error":"#VALUE!"}}]
["652016","FDC1/2-COUTEAU POLYVALENT POUR GAINE FLEXIBLE","2049","OUTILLAGES VENTILATION","Pièce",170.48850000000002,"",{"$f":"IF(ISERR(U334)=TRUE,,(F334*(1-G334/100)))","v":0},"OUI",null,null,null,null,null,null,null,null,null,null,null,{"$f":"Tableau1[[#This Row],[Prix de vente\n 2019]]*(1-(Tableau1[[#This Row],[Remise]]/100))","v":{"$error":"#VALUE!"}}]
["652018","S3R - SERTISSEUSE MANUELLE DÉCALÉE 83mm","2049","OUTILLAGES VENTILATION","Pièce",225.35100000000003,"",{"$f":"IF(ISERR(U335)=TRUE,,(F335*(1-G335/100)))","v":0},"OUI",null,null,null,null,null,null,null,null,null,null,null,{"$f":"Tableau1[[#This Row],[Prix de vente\n 2019]]*(1-(Tableau1[[#This Row],[Remise]]/100))","v":{"$error":"#VALUE!"}}]
["652019","N1R - ENCOCHEUSE MANUELLE / 30° 20,6mm","2049","OUTILLAGES VENTILATION","Pièce",200.739,"",{"$f":"IF(ISERR(U336)=TRUE,,(F336*(1-G336/100)))","v":0},"OUI",null,null,null,null,null,null,null,null,null,null,null,{"$f":"Tableau1[[#This Row],[Prix de vente\n 2019]]*(1-(Tableau1[[#This Row],[Remise]]/100))","v":{"$error":"#VALUE!"}}]
["652020","N2R - ENCOCHEUSE MANUELLE 1’’","2049","OUTILLAGES VENTILATION","Pièce",212.02650000000003,"",{"$f":"IF(ISERR(U337)=TRUE,,(F337*(1-G337/100)))","v":0},"OUI",null,null,null,null,null,null,null,null,null,null,null,{"$f":"Tableau1[[#This Row],[Prix de vente\n 2019]]*(1-(Tableau1[[#This Row],[Remise]]/100))","v":{"$error":"#VALUE!"}}]
["652021","SL1R - POINÇON À VERROU","2049","OUTILLAGES VENTILATION","Pièce",220.2165,"",{"$f":"IF(ISERR(U338)=TRUE,,(F338*(1-G338/100)))","v":0},"OUI",null,null,null,null,null,null,null,null,null,null,null,{"$f":"Tableau1[[#This Row],[Prix de vente\n 2019]]*(1-(Tableau1[[#This Row],[Remise]]/100))","v":{"$error":"#VALUE!"}}]
["652022","SC3R - SERTISSEUSE DE TUYAU À 3 LAMES","2049","OUTILLAGES VENTILATION","Pièce",144.39600000000002,"",{"$f":"IF(ISERR(U339)=TRUE,,(F339*(1-G339/100)))","v":0},"OUI",null,null,null,null,null,null,null,null,null,null,null,{"$f":"Tableau1[[#This Row],[Prix de vente\n 2019]]*(1-(Tableau1[[#This Row],[Remise]]/100))","v":{"$error":"#VALUE!"}}]
["652023","TS1 - TURBOSHEAR DÉCOUPEUSE ÉCONOMIQUE","2049","OUTILLAGES VENTILATION","Pièce",219.14550000000003,"",{"$f":"IF(ISERR(U340)=TRUE,,(F340*(1-G340/100)))","v":0},"OUI",null,null,null,null,null,null,null,null,null,null,null,{"$f":"Tableau1[[#This Row],[Prix de vente\n 2019]]*(1-(Tableau1[[#This Row],[Remise]]/100))","v":{"$error":"#VALUE!"}}]
["652024","TS1RB - LAME DE RECHANGE TURBOSHEAR TS1","2049","OUTILLAGES VENTILATION","Pièce",115.65750000000001,"",{"$f":"IF(ISERR(U341)=TRUE,,(F341*(1-G341/100)))","v":0},"OUI",null,null,null,null,null,null,null,null,null,null,null,{"$f":"Tableau1[[#This Row],[Prix de vente\n 2019]]*(1-(Tableau1[[#This Row],[Remise]]/100))","v":{"$error":"#VALUE!"}}]
["652025","TSDC - PINCE DE PERCEUSE POUR TS1","2049","OUTILLAGES VENTILATION","Pièce",84.063000000000002,"",{"$f":"IF(ISERR(U342)=TRUE,,(F342*(1-G342/100)))","v":0},"OUI",null,null,null,null,null,null,null,null,null,null,null,{"$f":"Tableau1[[#This Row],[Prix de vente\n 2019]]*(1-(Tableau1[[#This Row],[Remise]]/100))","v":{"$error":"#VALUE!"}}]
["652026","HC2 - EMPORTE-PIÈCES 51-508mm","2049","OUTILLAGES VENTILATION","Pièce",345.26100000000002,"",{"$f":"IF(ISERR(U343)=TRUE,,(F343*(1-G343/100)))","v":0},"OUI",null,null,null,null,null,null,null,null,null,null,null,{"$f":"Tableau1[[#This Row],[Prix de vente\n 2019]]*(1-(Tableau1[[#This Row],[Remise]]/100))","v":{"$error":"#VALUE!"}}]
["652027","HC1B - ENSEMBLE DE PIVOT","2049","OUTILLAGES VENTILATION","Pièce",37.8735,"",{"$f":"IF(ISERR(U344)=TRUE,,(F344*(1-G344/100)))","v":0},"OUI",null,null,null,null,null,null,null,null,null,null,null,{"$f":"Tableau1[[#This Row],[Prix de vente\n 2019]]*(1-(Tableau1[[#This Row],[Remise]]/100))","v":{"$error":"#VALUE!"}}]
["652031","M2005 - CISAILLE MAX 2000 BULLDOG ROUGE NETTE DROITE 27mm","2049","OUTILLAGES VENTILATION","Pièce",107.9085,{"$f":"IF(C345=\"9999\",0,IF(IF(ISERROR(VLOOKUP(C345,Grille1,3,FALSE)),VLOOKUP(C345,Grille2,3,FALSE),VLOOKUP(C345,Grille1,3,FALSE))=\"\",\"\",IF(ISERROR(VLOOKUP(C345,Grille1,3,FALSE)),VLOOKUP(C345,Grille2,3,FALSE),VLOOKUP(C345,Grille1,3,FALSE))))","v":""},{"$f":"IF(ISERR(U345)=TRUE,,(F345*(1-G345/100)))","v":0},"OUI",null,null,null,null,null,null,null,null,null,null,null,{"$f":"Tableau1[[#This Row],[Prix de vente\n 2019]]*(1-(Tableau1[[#This Row],[Remise]]/100))","v":{"$error":"#VALUE!"}}]
["652032","M2006 - CISAILLE MAX 2000 DÉCALÉE ROUGE GAUCHE","2049","OUTILLAGES VENTILATION","Pièce",125.0025,"",{"$f":"IF(ISERR(U346)=TRUE,,(F346*(1-G346/100)))","v":0},"OUI",null,null,null,null,null,null,null,null,null,null,null,{"$f":"Tableau1[[#This Row],[Prix de vente\n 2019]]*(1-(Tableau1[[#This Row],[Remise]]/100))","v":{"$error":"#VALUE!"}}]
["652033","M2007 - CISAILLE MAX 2000 DÉCALÉE VERTE DROITE 31,8mm","2049","OUTILLAGES VENTILATION","Pièce",125.0025,"",{"$f":"IF(ISERR(U347)=TRUE,,(F347*(1-G347/100)))","v":0},"OUI",null,null,null,null,null,null,null,null,null,null,null,{"$f":"Tableau1[[#This Row],[Prix de vente\n 2019]]*(1-(Tableau1[[#This Row],[Remise]]/100))","v":{"$error":"#VALUE!"}}]
["652034","HP18KR - POINÇONS","2049","OUTILLAGES VENTILATION","Pièce",368.51850000000002,"",{"$f":"IF(ISERR(U348)=TRUE,,(F348*(1-G348/100)))","v":0},"OUI",null,null,null,null,null,null,null,null,null,null,null,{"$f":"Tableau1[[#This Row],[Prix de vente\n 2019]]*(1-(Tableau1[[#This Row],[Remise]]/100))","v":{"$error":"#VALUE!"}}]
["652101","TSHDRB - LAME DE RECHANGE TURBOSHEAR TSHD","2049","OUTILLAGES VENTILATION","Pièce",173.90100000000001,"",{"$f":"IF(ISERR(U349)=TRUE,,(F349*(1-G349/100)))","v":0},"OUI",null,null,null,null,null,null,null,null,null,null,null,{"$f":"Tableau1[[#This Row],[Prix de vente\n 2019]]*(1-(Tableau1[[#This Row],[Remise]]/100))","v":{"$error":"#VALUE!"}}]
["652102","CB - MÈCHE COUTEAU DE REMPLACEMENT POUR HC1 ET HC2","2049","OUTILLAGES VENTILATION","Pièce",45.832500000000003,"",{"$f":"IF(ISERR(U350)=TRUE,,(F350*(1-G350/100)))","v":0},"OUI",null,null,null,null,null,null,null,null,null,null,null,{"$f":"Tableau1[[#This Row],[Prix de vente\n 2019]]*(1-(Tableau1[[#This Row],[Remise]]/100))","v":{"$error":"#VALUE!"}}]
["921301","TDVC 18/010/G TRAPPE DE VISITE CIRCULAIRE 180X080 / D.100","5301","ACC MONTAGE/VISSERIES-BOULONNERIES","Pièce",11.896500000000001,{"$f":"IF(C351=\"9999\",0,IF(IF(ISERROR(VLOOKUP(C351,Grille1,3,FALSE)),VLOOKUP(C351,Grille2,3,FALSE),VLOOKUP(C351,Grille1,3,FALSE))=\"\",\"\",IF(ISERROR(VLOOKUP(C351,Grille1,3,FALSE)),VLOOKUP(C351,Grille2,3,FALSE),VLOOKUP(C351,Grille1,3,FALSE))))","v":""},{"$f":"IF(ISERR(U351)=TRUE,,(F351*(1-G351/100)))","v":0},"OUI",null,null,null,null,null,null,null,null,null,null,null,{"$f":"Tableau1[[#This Row],[Prix de vente\n 2019]]*(1-(Tableau1[[#This Row],[Remise]]/100))","v":{"$error":"#VALUE!"}}]
["921303","TDVC 18/012/G TRAPPE DE VISITE CIRCULAIRE 180X080 / D.125","5301","ACC MONTAGE/VISSERIES-BOULONNERIES","Pièce",11.896500000000001,"",{"$f":"IF(ISERR(U352)=TRUE,,(F352*(1-G352/100)))","v":0},"OUI",null,null,null,null,null,null,null,null,null,null,null,{"$f":"Tableau1[[#This Row],[Prix de vente\n 2019]]*(1-(Tableau1[[#This Row],[Remise]]/100))","v":{"$error":"#VALUE!"}}]
["921305","TDVC 18/016/G TRAPPE DE VISITE CIRCULAIRE 180X080 / D.160","5301","ACC MONTAGE/VISSERIES-BOULONNERIES","Pièce",11.896500000000001,"",{"$f":"IF(ISERR(U353)=TRUE,,(F353*(1-G353/100)))","v":0},"OUI",null,null,null,null,null,null,null,null,null,null,null,{"$f":"Tableau1[[#This Row],[Prix de vente\n 2019]]*(1-(Tableau1[[#This Row],[Remise]]/100))","v":{"$error":"#VALUE!"}}]
["921307","TDVC 18/020/G TRAPPE DE VISITE CIRCULAIRE 180X080 / D.200","5301","ACC MONTAGE/VISSERIES-BOULONNERIES","Pièce",11.896500000000001,"",{"$f":"IF(ISERR(U354)=TRUE,,(F354*(1-G354/100)))","v":0},"OUI",null,null,null,null,null,null,null,null,null,null,null,{"$f":"Tableau1[[#This Row],[Prix de vente\n 2019]]*(1-(Tableau1[[#This Row],[Remise]]/100))","v":{"$error":"#VALUE!"}}]
["921311","TDVC 25/016/G TRAPPE DE VISITE CIRCULAIRE 250X150 / D.160","5301","ACC MONTAGE/VISSERIES-BOULONNERIES","Pièce",17.188500000000001,"",{"$f":"IF(ISERR(U355)=TRUE,,(F355*(1-G355/100)))","v":0},"OUI",null,null,null,null,null,null,null,null,null,null,null,{"$f":"Tableau1[[#This Row],[Prix de vente\n 2019]]*(1-(Tableau1[[#This Row],[Remise]]/100))","v":{"$error":"#VALUE!"}}]
["921313","TDVC 25/020/G TRAPPE DE VISITE CIRCULAIRE 250X150 / D.200","5301","ACC MONTAGE/VISSERIES-BOULONNERIES","Pièce",17.188500000000001,"",{"$f":"IF(ISERR(U356)=TRUE,,(F356*(1-G356/100)))","v":0},"OUI",null,null,null,null,null,null,null,null,null,null,null,{"$f":"Tableau1[[#This Row],[Prix de vente\n 2019]]*(1-(Tableau1[[#This Row],[Remise]]/100))","v":{"$error":"#VALUE!"}}]
["921315","TDVC 25/025/G TRAPPE DE VISITE CIRCULAIRE 250X150 / D.250","5301","ACC MONTAGE/VISSERIES-BOULONNERIES","Pièce",17.188500000000001,"",{"$f":"IF(ISERR(U357)=TRUE,,(F357*(1-G357/100)))","v":0},"OUI",null,null,null,null,null,null,null,null,null,null,null,{"$f":"Tableau1[[#This Row],[Prix de vente\n 2019]]*(1-(Tableau1[[#This Row],[Remise]]/100))","v":{"$error":"#VALUE!"}}]
["921317","TDVC 25/031/G TRAPPE DE VISITE CIRCULAIRE 250X150 / D.315","5301","ACC MONTAGE/VISSERIES-BOULONNERIES","Pièce",17.188500000000001,"",{"$f":"IF(ISERR(U358)=TRUE,,(F358*(1-G358/100)))","v":0},"OUI",null,null,null,null,null,null,null,null,null,null,null,{"$f":"Tableau1[[#This Row],[Prix de vente\n 2019]]*(1-(Tableau1[[#This Row],[Remise]]/100))","v":{"$error":"#VALUE!"}}]
["921319","TDVC 25/035/G TRAPPE DE VISITE CIRCULAIRE 250X150 / D.355","5301","ACC MONTAGE/VISSERIES-BOULONNERIES","Pièce",17.188500000000001,"",{"$f":"IF(ISERR(U359)=TRUE,,(F359*(1-G359/100)))","v":0},"OUI",null,null,null,null,null,null,null,null,null,null,null,{"$f":"Tableau1[[#This Row],[Prix de vente\n 2019]]*(1-(Tableau1[[#This Row],[Remise]]/100))","v":{"$error":"#VALUE!"}}]
["921321","TDVC 25/040/G TRAPPE DE VISITE CIRCULAIRE 250X150 / D.400","5301","ACC MONTAGE/VISSERIES-BOULONNERIES","Pièce",17.188500000000001,"",{"$f":"IF(ISERR(U360)=TRUE,,(F360*(1-G360/100)))","v":0},"OUI",null,null,null,null,null,null,null,null,null,null,null,{"$f":"Tableau1[[#This Row],[Prix de vente\n 2019]]*(1-(Tableau1[[#This Row],[Remise]]/100))","v":{"$error":"#VALUE!"}}]
["921325","TDVC 25/050/G TRAPPE DE VISITE CIRCULAIRE 250X150 / D.500","5301","ACC MONTAGE/VISSERIES-BOULONNERIES","Pièce",17.188500000000001,"",{"$f":"IF(ISERR(U361)=TRUE,,(F361*(1-G361/100)))","v":0},"OUI",null,null,null,null,null,null,null,null,null,null,null,{"$f":"Tableau1[[#This Row],[Prix de vente\n 2019]]*(1-(Tableau1[[#This Row],[Remise]]/100))","v":{"$error":"#VALUE!"}}]
["921341","TDVC 40/040/G TRAPPE DE VISITE CIRCULAIRE 400X300 / D.400","5301","ACC MONTAGE/VISSERIES-BOULONNERIES","Pièce",39.669000000000004,"",{"$f":"IF(ISERR(U362)=TRUE,,(F362*(1-G362/100)))","v":0},"OUI",null,null,null,null,null,null,null,null,null,null,null,{"$f":"Tableau1[[#This Row],[Prix de vente\n 2019]]*(1-(Tableau1[[#This Row],[Remise]]/100))","v":{"$error":"#VALUE!"}}]
["921343","TDVC 40/045/G TRAPPE DE VISITE CIRCULAIRE 400X300 / D.450","5301","ACC MONTAGE/VISSERIES-BOULONNERIES","Pièce",39.669000000000004,"",{"$f":"IF(ISERR(U363)=TRUE,,(F363*(1-G363/100)))","v":0},"OUI",null,null,null,null,null,null,null,null,null,null,null,{"$f":"Tableau1[[#This Row],[Prix de vente\n 2019]]*(1-(Tableau1[[#This Row],[Remise]]/100))","v":{"$error":"#VALUE!"}}]
["921345","TDVC 40/050/G TRAPPE DE VISITE CIRCULAIRE 400X300 / D.500","5301","ACC MONTAGE/VISSERIES-BOULONNERIES","Pièce",39.669000000000004,"",{"$f":"IF(ISERR(U364)=TRUE,,(F364*(1-G364/100)))","v":0},"OUI",null,null,null,null,null,null,null,null,null,null,null,{"$f":"Tableau1[[#This Row],[Prix de vente\n 2019]]*(1-(Tableau1[[#This Row],[Remise]]/100))","v":{"$error":"#VALUE!"}}]
["921347","TDVC 40/056/G TRAPPE DE VISITE CIRCULAIRE 400X300 / D.560","5301","ACC MONTAGE/VISSERIES-BOULONNERIES","Pièce",39.669000000000004,"",{"$f":"IF(ISERR(U365)=TRUE,,(F365*(1-G365/100)))","v":0},"OUI",null,null,null,null,null,null,null,null,null,null,null,{"$f":"Tableau1[[#This Row],[Prix de vente\n 2019]]*(1-(Tableau1[[#This Row],[Remise]]/100))","v":{"$error":"#VALUE!"}}]
["921349","TDVC 40/063/G TRAPPE DE VISITE CIRCULAIRE 400X300 / D.630","5301","ACC MONTAGE/VISSERIES-BOULONNERIES","Pièce",39.669000000000004,"",{"$f":"IF(ISERR(U366)=TRUE,,(F366*(1-G366/100)))","v":0},"OUI",null,null,null,null,null,null,null,null,null,null,null,{"$f":"Tableau1[[#This Row],[Prix de vente\n 2019]]*(1-(Tableau1[[#This Row],[Remise]]/100))","v":{"$error":"#VALUE!"}}]
["921351","TDVC 40/071/G TRAPPE DE VISITE CIRCULAIRE 400X300 / D.710","5301","ACC MONTAGE/VISSERIES-BOULONNERIES","Pièce",39.669000000000004,"",{"$f":"IF(ISERR(U367)=TRUE,,(F367*(1-G367/100)))","v":0},"OUI",null,null,null,null,null,null,null,null,null,null,null,{"$f":"Tableau1[[#This Row],[Prix de vente\n 2019]]*(1-(Tableau1[[#This Row],[Remise]]/100))","v":{"$error":"#VALUE!"}}]
["921353","TDVC 40/080/G TRAPPE DE VISITE CIRCULAIRE 400X300 / D.800","5301","ACC MONTAGE/VISSERIES-BOULONNERIES","Pièce",39.669000000000004,"",{"$f":"IF(ISERR(U368)=TRUE,,(F368*(1-G368/100)))","v":0},"OUI",null,null,null,null,null,null,null,null,null,null,null,{"$f":"Tableau1[[#This Row],[Prix de vente\n 2019]]*(1-(Tableau1[[#This Row],[Remise]]/100))","v":{"$error":"#VALUE!"}}]
["921355","TDVC 40/090/G TRAPPE DE VISITE CIRCULAIRE 400X300 / D.900","5301","ACC MONTAGE/VISSERIES-BOULONNERIES","Pièce",39.669000000000004,"",{"$f":"IF(ISERR(U369)=TRUE,,(F369*(1-G369/100)))","v":0},"OUI",null,null,null,null,null,null,null,null,null,null,null,{"$f":"Tableau1[[#This Row],[Prix de vente\n 2019]]*(1-(Tableau1[[#This Row],[Remise]]/100))","v":{"$error":"#VALUE!"}}]
["921363","TDVC 50/080/G TRAPPE DE VISITE CIRCULAIRE 500X400 / D.800","5301","ACC MONTAGE/VISSERIES-BOULONNERIES","Pièce",138.62100000000001,"",{"$f":"IF(ISERR(U370)=TRUE,,(F370*(1-G370/100)))","v":0},"OUI",null,null,null,null,null,null,null,null,null,null,null,{"$f":"Tableau1[[#This Row],[Prix de vente\n 2019]]*(1-(Tableau1[[#This Row],[Remise]]/100))","v":{"$error":"#VALUE!"}}]
["921365","TDVC 50/090/G TRAPPE DE VISITE CIRCULAIRE 500X400 / D.900","5301","ACC MONTAGE/VISSERIES-BOULONNERIES","Pièce",138.62100000000001,"",{"$f":"IF(ISERR(U371)=TRUE,,(F371*(1-G371/100)))","v":0},"OUI",null,null,null,null,null,null,null,null,null,null,null,{"$f":"Tableau1[[#This Row],[Prix de vente\n 2019]]*(1-(Tableau1[[#This Row],[Remise]]/100))","v":{"$error":"#VALUE!"}}]
["921367","TDVC 50/100/G TRAPPE DE VISITE CIRCULAIRE 500X400 / D.1000","5301","ACC MONTAGE/VISSERIES-BOULONNERIES","Pièce",138.62100000000001,"",{"$f":"IF(ISERR(U372)=TRUE,,(F372*(1-G372/100)))","v":0},"OUI",null,null,null,null,null,null,null,null,null,null,null,{"$f":"Tableau1[[#This Row],[Prix de vente\n 2019]]*(1-(Tableau1[[#This Row],[Remise]]/100))","v":{"$error":"#VALUE!"}}]
["921369","TDVC 50/112/G TRAPPE DE VISITE CIRCULAIRE 500X400 / D.1120","5301","ACC MONTAGE/VISSERIES-BOULONNERIES","Pièce",138.62100000000001,"",{"$f":"IF(ISERR(U373)=TRUE,,(F373*(1-G373/100)))","v":0},"OUI",null,null,null,null,null,null,null,null,null,null,null,{"$f":"Tableau1[[#This Row],[Prix de vente\n 2019]]*(1-(Tableau1[[#This Row],[Remise]]/100))","v":{"$error":"#VALUE!"}}]
["921371","TDVC 50/125/G TRAPPE DE VISITE CIRCULAIRE 500X400 / D.1250","5301","ACC MONTAGE/VISSERIES-BOULONNERIES","Pièce",138.62100000000001,"",{"$f":"IF(ISERR(U374)=TRUE,,(F374*(1-G374/100)))","v":0},"OUI",null,null,null,null,null,null,null,null,null,null,null,{"$f":"Tableau1[[#This Row],[Prix de vente\n 2019]]*(1-(Tableau1[[#This Row],[Remise]]/100))","v":{"$error":"#VALUE!"}}]
["921401","TDVP 18/G TRAPPE DE VISITE PLANE 180x080","5301","ACC MONTAGE/VISSERIES-BOULONNERIES","Pièce",11.896500000000001,"",{"$f":"IF(ISERR(U375)=TRUE,,(F375*(1-G375/100)))","v":0},"OUI",null,null,null,null,null,null,null,null,null,null,null,{"$f":"Tableau1[[#This Row],[Prix de vente\n 2019]]*(1-(Tableau1[[#This Row],[Remise]]/100))","v":{"$error":"#VALUE!"}}]
["921402","TDVP 25/G TRAPPE DE VISITE PLANE 250x150","5301","ACC MONTAGE/VISSERIES-BOULONNERIES","Pièce",17.188500000000001,"",{"$f":"IF(ISERR(U376)=TRUE,,(F376*(1-G376/100)))","v":0},"OUI",null,null,null,null,null,null,null,null,null,null,null,{"$f":"Tableau1[[#This Row],[Prix de vente\n 2019]]*(1-(Tableau1[[#This Row],[Remise]]/100))","v":{"$error":"#VALUE!"}}]
["921403","TDVP 30/G TRAPPE DE VISITE PLANE 300x200","5301","ACC MONTAGE/VISSERIES-BOULONNERIES","Pièce",24.801000000000002,"",{"$f":"IF(ISERR(U377)=TRUE,,(F377*(1-G377/100)))","v":0},"OUI",null,null,null,null,null,null,null,null,null,null,null,{"$f":"Tableau1[[#This Row],[Prix de vente\n 2019]]*(1-(Tableau1[[#This Row],[Remise]]/100))","v":{"$error":"#VALUE!"}}]
["921404","TDVP 40/G TRAPPE DE VISITE PLANE 400x300","5301","ACC MONTAGE/VISSERIES-BOULONNERIES","Pièce",39.669000000000004,"",{"$f":"IF(ISERR(U378)=TRUE,,(F378*(1-G378/100)))","v":0},"OUI",null,null,null,null,null,null,null,null,null,null,null,{"$f":"Tableau1[[#This Row],[Prix de vente\n 2019]]*(1-(Tableau1[[#This Row],[Remise]]/100))","v":{"$error":"#VALUE!"}}]
["921405","TDVP 50/G TRAPPE DE VISITE PLANE 500x400","5301","ACC MONTAGE/VISSERIES-BOULONNERIES","Pièce",96.715500000000006,"",{"$f":"IF(ISERR(U379)=TRUE,,(F379*(1-G379/100)))","v":0},"OUI",null,null,null,null,null,null,null,null,null,null,null,{"$f":"Tableau1[[#This Row],[Prix de vente\n 2019]]*(1-(Tableau1[[#This Row],[Remise]]/100))","v":{"$error":"#VALUE!"}}]
["921406","TDVP 60/G TRAPPE DE VISITE PLANE 600x450","5301","ACC MONTAGE/VISSERIES-BOULONNERIES","Pièce",121.85250000000001,{"$f":"IF(C380=\"9999\",0,IF(IF(ISERROR(VLOOKUP(C380,Grille1,3,FALSE)),VLOOKUP(C380,Grille2,3,FALSE),VLOOKUP(C380,Grille1,3,FALSE))=\"\",\"\",IF(ISERROR(VLOOKUP(C380,Grille1,3,FALSE)),VLOOKUP(C380,Grille2,3,FALSE),VLOOKUP(C380,Grille1,3,FALSE))))","v":""},{"$f":"IF(ISERR(U380)=TRUE,,(F380*(1-G380/100)))","v":0},"OUI",null,null,null,null,null,null,null,null,null,null,null,{"$f":"Tableau1[[#This Row],[Prix de vente\n 2019]]*(1-(Tableau1[[#This Row],[Remise]]/100))","v":{"$error":"#VALUE!"}}]
["922008","COLLIER FIL D.080","4401","COLLIERS DE SERRAGE","Pièce",0.71400000000000008,"",{"$f":"IF(ISERR(U381)=TRUE,,(F381*(1-G381/100)))","v":0},"OUI",null,null,null,null,null,null,null,null,null,null,null,{"$f":"Tableau1[[#This Row],[Prix de vente\n 2019]]*(1-(Tableau1[[#This Row],[Remise]]/100))","v":{"$error":"#VALUE!"}}]
["922012","COLLIER FIL D.100","4401","COLLIERS DE SERRAGE","Pièce",0.86099999999999999,"",{"$f":"IF(ISERR(U382)=TRUE,,(F382*(1-G382/100)))","v":0},"OUI",null,null,null,null,null,null,null,null,null,null,null,{"$f":"Tableau1[[#This Row],[Prix de vente\n 2019]]*(1-(Tableau1[[#This Row],[Remise]]/100))","v":{"$error":"#VALUE!"}}]
["922018","COLLIER FIL D.125","4401","COLLIERS DE SERRAGE","Pièce",0.88200000000000001,"",{"$f":"IF(ISERR(U383)=TRUE,,(F383*(1-G383/100)))","v":0},"OUI",null,null,null,null,null,null,null,null,null,null,null,{"$f":"Tableau1[[#This Row],[Prix de vente\n 2019]]*(1-(Tableau1[[#This Row],[Remise]]/100))","v":{"$error":"#VALUE!"}}]
["922024","COLLIER FIL D.160","4401","COLLIERS DE SERRAGE","Pièce",0.99749999999999994,"",{"$f":"IF(ISERR(U384)=TRUE,,(F384*(1-G384/100)))","v":0},"OUI",null,null,null,null,null,null,null,null,null,null,null,{"$f":"Tableau1[[#This Row],[Prix de vente\n 2019]]*(1-(Tableau1[[#This Row],[Remise]]/100))","v":{"$error":"#VALUE!"}}]
["922028","COLLIER FIL D.200","4401","COLLIERS DE SERRAGE","Pièce",1.1130000000000002,"",{"$f":"IF(ISERR(U385)=TRUE,,(F385*(1-G385/100)))","v":0},"OUI",null,null,null,null,null,null,null,null,null,null,null,{"$f":"Tableau1[[#This Row],[Prix de vente\n 2019]]*(1-(Tableau1[[#This Row],[Remise]]/100))","v":{"$error":"#VALUE!"}}]
["922032","COLLIER FIL D.250","4401","COLLIERS DE SERRAGE","Pièce",1.2075,"",{"$f":"IF(ISERR(U386)=TRUE,,(F386*(1-G386/100)))","v":0},"OUI",null,null,null,null,null,null,null,null,null,null,null,{"$f":"Tableau1[[#This Row],[Prix de vente\n 2019]]*(1-(Tableau1[[#This Row],[Remise]]/100))","v":{"$error":"#VALUE!"}}]
["922036","COLLIER FIL D.315","4401","COLLIERS DE SERRAGE","Pièce",1.4385000000000001,"",{"$f":"IF(ISERR(U387)=TRUE,,(F387*(1-G387/100)))","v":0},"OUI",null,null,null,null,null,null,null,null,null,null,null,{"$f":"Tableau1[[#This Row],[Prix de vente\n 2019]]*(1-(Tableau1[[#This Row],[Remise]]/100))","v":{"$error":"#VALUE!"}}]
["922038","COLLIER FIL D.355","4401","COLLIERS DE SERRAGE","Pièce",2.0579999999999998,"",{"$f":"IF(ISERR(U388)=TRUE,,(F388*(1-G388/100)))","v":0},"OUI",null,null,null,null,null,null,null,null,null,null,null,{"$f":"Tableau1[[#This Row],[Prix de vente\n 2019]]*(1-(Tableau1[[#This Row],[Remise]]/100))","v":{"$error":"#VALUE!"}}]
["922040","COLLIER FIL D.400","4401","COLLIERS DE SERRAGE","Pièce",2.5725000000000002,"",{"$f":"IF(ISERR(U389)=TRUE,,(F389*(1-G389/100)))","v":0},"OUI",null,null,null,null,null,null,null,null,null,null,null,{"$f":"Tableau1[[#This Row],[Prix de vente\n 2019]]*(1-(Tableau1[[#This Row],[Remise]]/100))","v":{"$error":"#VALUE!"}}]
["922042","COLLIER FIL D.450","4401","COLLIERS DE SERRAGE","Pièce",3.0030000000000001,"",{"$f":"IF(ISERR(U390)=TRUE,,(F390*(1-G390/100)))","v":0},"OUI",null,null,null,null,null,null,null,null,null,null,null,{"$f":"Tableau1[[#This Row],[Prix de vente\n 2019]]*(1-(Tableau1[[#This Row],[Remise]]/100))","v":{"$error":"#VALUE!"}}]
["922044","COLLIER FIL D.500","4401","COLLIERS DE SERRAGE","Pièce",3.4335,"",{"$f":"IF(ISERR(U391)=TRUE,,(F391*(1-G391/100)))","v":0},"OUI",null,null,null,null,null,null,null,null,null,null,null,{"$f":"Tableau1[[#This Row],[Prix de vente\n 2019]]*(1-(Tableau1[[#This Row],[Remise]]/100))","v":{"$error":"#VALUE!"}}]
["922046","COLLIER FIL D.560","4401","COLLIERS DE SERRAGE","Pièce",4.1685000000000008,"",{"$f":"IF(ISERR(U392)=TRUE,,(F392*(1-G392/100)))","v":0},"OUI",null,null,null,null,null,null,null,null,null,null,null,{"$f":"Tableau1[[#This Row],[Prix de vente\n 2019]]*(1-(Tableau1[[#This Row],[Remise]]/100))","v":{"$error":"#VALUE!"}}]
["922050","COLLIER FIL D.630","4401","COLLIERS DE SERRAGE","Pièce",4.6305000000000005,"",{"$f":"IF(ISERR(U393)=TRUE,,(F393*(1-G393/100)))","v":0},"OUI",null,null,null,null,null,null,null,null,null,null,null,{"$f":"Tableau1[[#This Row],[Prix de vente\n 2019]]*(1-(Tableau1[[#This Row],[Remise]]/100))","v":{"$error":"#VALUE!"}}]
["922400","CX 60/125 - COLLIER DE SERRAGE","4401","COLLIERS DE SERRAGE","Pièce",1.2495000000000001,"",{"$f":"IF(ISERR(U394)=TRUE,,(F394*(1-G394/100)))","v":0},"OUI",null,null,null,null,null,null,null,null,null,null,null,{"$f":"Tableau1[[#This Row],[Prix de vente\n 2019]]*(1-(Tableau1[[#This Row],[Remise]]/100))","v":{"$error":"#VALUE!"}}]
["922404","CX 60/175-COLLIER DE SERRAGE","4401","COLLIERS DE SERRAGE","Pièce",1.3230000000000002,"",{"$f":"IF(ISERR(U395)=TRUE,,(F395*(1-G395/100)))","v":0},"OUI",null,null,null,null,null,null,null,null,null,null,null,{"$f":"Tableau1[[#This Row],[Prix de vente\n 2019]]*(1-(Tableau1[[#This Row],[Remise]]/100))","v":{"$error":"#VALUE!"}}]
["922406","CX 60/225 - COLLIER DE SERRAGE","4401","COLLIERS DE SERRAGE","Pièce",1.7955000000000001,"",{"$f":"IF(ISERR(U396)=TRUE,,(F396*(1-G396/100)))","v":0},"OUI",null,null,null,null,null,null,null,null,null,null,null,{"$f":"Tableau1[[#This Row],[Prix de vente\n 2019]]*(1-(Tableau1[[#This Row],[Remise]]/100))","v":{"$error":"#VALUE!"}}]
["922410","CX 60/275 - COLLIER DE SERRAGE","4401","COLLIERS DE SERRAGE","Pièce",1.9949999999999999,"",{"$f":"IF(ISERR(U397)=TRUE,,(F397*(1-G397/100)))","v":0},"OUI",null,null,null,null,null,null,null,null,null,null,null,{"$f":"Tableau1[[#This Row],[Prix de vente\n 2019]]*(1-(Tableau1[[#This Row],[Remise]]/100))","v":{"$error":"#VALUE!"}}]
["922412","CX 60/350 - COLLIER DE SERRAGE","4401","COLLIERS DE SERRAGE","Pièce",2.3100000000000005,"",{"$f":"IF(ISERR(U398)=TRUE,,(F398*(1-G398/100)))","v":0},"OUI",null,null,null,null,null,null,null,null,null,null,null,{"$f":"Tableau1[[#This Row],[Prix de vente\n 2019]]*(1-(Tableau1[[#This Row],[Remise]]/100))","v":{"$error":"#VALUE!"}}]
["922418","CX 60/550 - COLLIER DE SERRAGE","4401","COLLIERS DE SERRAGE","Pièce",3.423,"",{"$f":"IF(ISERR(U399)=TRUE,,(F399*(1-G399/100)))","v":0},"OUI",null,null,null,null,null,null,null,null,null,null,null,{"$f":"Tableau1[[#This Row],[Prix de vente\n 2019]]*(1-(Tableau1[[#This Row],[Remise]]/100))","v":{"$error":"#VALUE!"}}]
["922420","CX 60/630 - COLLIER DE SERRAGE","4401","COLLIERS DE SERRAGE","Pièce",4.6514999999999995,"",{"$f":"IF(ISERR(U400)=TRUE,,(F400*(1-G400/100)))","v":0},"OUI",null,null,null,null,null,null,null,null,null,null,null,{"$f":"Tableau1[[#This Row],[Prix de vente\n 2019]]*(1-(Tableau1[[#This Row],[Remise]]/100))","v":{"$error":"#VALUE!"}}]
["922602","PINCE POUR COLLIER NYLON","2049","OUTILLAGES VENTILATION","Pièce",64.459500000000006,"",{"$f":"IF(ISERR(U401)=TRUE,,(F401*(1-G401/100)))","v":0},"OUI",null,null,null,null,null,null,null,null,null,null,null,{"$f":"Tableau1[[#This Row],[Prix de vente\n 2019]]*(1-(Tableau1[[#This Row],[Remise]]/100))","v":{"$error":"#VALUE!"}}]
["922604","CAGE A VIS BASCULANTE POUR BANDE CRANTEE INOX (50pces)","4401","COLLIERS DE SERRAGE","Boite",43.417500000000004,"",{"$f":"IF(ISERR(U402)=TRUE,,(F402*(1-G402/100)))","v":0},"OUI",null,null,null,null,null,null,null,null,null,null,null,{"$f":"Tableau1[[#This Row],[Prix de vente\n 2019]]*(1-(Tableau1[[#This Row],[Remise]]/100))","v":{"$error":"#VALUE!"}}]
["922605","BANDE CRANTEE INOX 430 (RL.30ml)","4401","COLLIERS DE SERRAGE","Rl",40.928999999999995,"",{"$f":"IF(ISERR(U403)=TRUE,,(F403*(1-G403/100)))","v":0},"OUI",null,null,null,null,null,null,null,null,null,null,null,{"$f":"Tableau1[[#This Row],[Prix de vente\n 2019]]*(1-(Tableau1[[#This Row],[Remise]]/100))","v":{"$error":"#VALUE!"}}]
["922912","MS 312 LG: 150mm MANCHETTE SOUPLE M1","2290","ACCESSOIRES POSE CAISSON VENTIL","ML",7.2135000000000007,"",{"$f":"IF(ISERR(U404)=TRUE,,(F404*(1-G404/100)))","v":0},"OUI",null,null,null,null,null,null,null,null,null,null,null,{"$f":"Tableau1[[#This Row],[Prix de vente\n 2019]]*(1-(Tableau1[[#This Row],[Remise]]/100))","v":{"$error":"#VALUE!"}}]
["922914","MS 312 LG: 240mm MANCHETTE SOUPLE M1","2290","ACCESSOIRES POSE CAISSON VENTIL","ML",7.0875000000000004,"",{"$f":"IF(ISERR(U405)=TRUE,,(F405*(1-G405/100)))","v":0},"OUI",null,null,null,null,null,null,null,null,null,null,null,{"$f":"Tableau1[[#This Row],[Prix de vente\n 2019]]*(1-(Tableau1[[#This Row],[Remise]]/100))","v":{"$error":"#VALUE!"}}]
["922916","MS 314 LG:150mm MANCHETTE SOUPLE M0","2290","ACCESSOIRES POSE CAISSON VENTIL","ML",4.8615000000000004,"",{"$f":"IF(ISERR(U406)=TRUE,,(F406*(1-G406/100)))","v":0},"OUI",null,null,null,null,null,null,null,null,null,null,null,{"$f":"Tableau1[[#This Row],[Prix de vente\n 2019]]*(1-(Tableau1[[#This Row],[Remise]]/100))","v":{"$error":"#VALUE!"}}]
["922918","MS 314 LG:240mm MANCHETTE SOUPLE M0","2290","ACCESSOIRES POSE CAISSON VENTIL","ML",6.5520000000000005,"",{"$f":"IF(ISERR(U407)=TRUE,,(F407*(1-G407/100)))","v":0},"OUI",null,null,null,null,null,null,null,null,null,null,null,{"$f":"Tableau1[[#This Row],[Prix de vente\n 2019]]*(1-(Tableau1[[#This Row],[Remise]]/100))","v":{"$error":"#VALUE!"}}]
["922921","TISSU ADHÉSIVÉ AUTOCOLLANT ROX 50 X 60 mm","2290","ACCESSOIRES POSE CAISSON VENTIL","Rl",77.794500000000014,"",{"$f":"IF(ISERR(U408)=TRUE,,(F408*(1-G408/100)))","v":0},"OUI",null,null,null,null,null,null,null,null,null,null,null,{"$f":"Tableau1[[#This Row],[Prix de vente\n 2019]]*(1-(Tableau1[[#This Row],[Remise]]/100))","v":{"$error":"#VALUE!"}}]
["922922","TISSU ADHÉSIVÉ AUTOCOLLANT ROX 50 X 100 mm","2290","ACCESSOIRES POSE CAISSON VENTIL","Rl",108.33900000000001,"",{"$f":"IF(ISERR(U409)=TRUE,,(F409*(1-G409/100)))","v":0},"OUI",null,null,null,null,null,null,null,null,null,null,null,{"$f":"Tableau1[[#This Row],[Prix de vente\n 2019]]*(1-(Tableau1[[#This Row],[Remise]]/100))","v":{"$error":"#VALUE!"}}]
["922923","TISSU ADHÉSIVÉ AUTOCOLLANT ROX 50 X 140 mm","2290","ACCESSOIRES POSE CAISSON VENTIL","Rl",138.88350000000003,"",{"$f":"IF(ISERR(U410)=TRUE,,(F410*(1-G410/100)))","v":0},"OUI",null,null,null,null,null,null,null,null,null,null,null,{"$f":"Tableau1[[#This Row],[Prix de vente\n 2019]]*(1-(Tableau1[[#This Row],[Remise]]/100))","v":{"$error":"#VALUE!"}}]
["922924","TISSU ADHÉSIVÉ AUTOCOLLANT NEO 50 X 60 mm","2290","ACCESSOIRES POSE CAISSON VENTIL","Rl",89.008499999999998,"",{"$f":"IF(ISERR(U411)=TRUE,,(F411*(1-G411/100)))","v":0},"OUI",null,null,null,null,null,null,null,null,null,null,null,{"$f":"Tableau1[[#This Row],[Prix de vente\n 2019]]*(1-(Tableau1[[#This Row],[Remise]]/100))","v":{"$error":"#VALUE!"}}]
["922925","TISSU ADHÉSIVÉ AUTOCOLLANT NEO 50 X 100 mm","2290","ACCESSOIRES POSE CAISSON VENTIL","Rl",127.05000000000001,"",{"$f":"IF(ISERR(U412)=TRUE,,(F412*(1-G412/100)))","v":0},"OUI",null,null,null,null,null,null,null,null,null,null,null,{"$f":"Tableau1[[#This Row],[Prix de vente\n 2019]]*(1-(Tableau1[[#This Row],[Remise]]/100))","v":{"$error":"#VALUE!"}}]
["922926","TISSU ADHÉSIVÉ AUTOCOLLANT NEO 50 X 140 mm","2290","ACCESSOIRES POSE CAISSON VENTIL","Rl",165.07050000000001,"",{"$f":"IF(ISERR(U413)=TRUE,,(F413*(1-G413/100)))","v":0},"OUI",null,null,null,null,null,null,null,null,null,null,null,{"$f":"Tableau1[[#This Row],[Prix de vente\n 2019]]*(1-(Tableau1[[#This Row],[Remise]]/100))","v":{"$error":"#VALUE!"}}]
["922927","ADHÉSIF DOUBLE FACE DST 50 X 50 mm","2290","ACCESSOIRES POSE CAISSON VENTIL","Rl",215.4495,"",{"$f":"IF(ISERR(U414)=TRUE,,(F414*(1-G414/100)))","v":0},"OUI",null,null,null,null,null,null,null,null,null,null,null,{"$f":"Tableau1[[#This Row],[Prix de vente\n 2019]]*(1-(Tableau1[[#This Row],[Remise]]/100))","v":{"$error":"#VALUE!"}}]
["922951","TM 314 LG:160mm TISSU A MANCHETTE PU M0","2290","ACCESSOIRES POSE CAISSON VENTIL","ML",5.2395000000000005,"",{"$f":"IF(ISERR(U415)=TRUE,,(F415*(1-G415/100)))","v":0},"OUI",null,null,null,null,null,null,null,null,null,null,null,{"$f":"Tableau1[[#This Row],[Prix de vente\n 2019]]*(1-(Tableau1[[#This Row],[Remise]]/100))","v":{"$error":"#VALUE!"}}]
["922952","TM 314 LG:200mm TISSU A MANCHETTE PU M0","2290","ACCESSOIRES POSE CAISSON VENTIL","ML",6.5520000000000005,"",{"$f":"IF(ISERR(U416)=TRUE,,(F416*(1-G416/100)))","v":0},"OUI",null,null,null,null,null,null,null,null,null,null,null,{"$f":"Tableau1[[#This Row],[Prix de vente\n 2019]]*(1-(Tableau1[[#This Row],[Remise]]/100))","v":{"$error":"#VALUE!"}}]
["922953","TM 314 LG:250mm TISSU A MANCHETTE PU M0","2290","ACCESSOIRES POSE CAISSON VENTIL","ML",8.19,"",{"$f":"IF(ISERR(U417)=TRUE,,(F417*(1-G417/100)))","v":0},"OUI",null,null,null,null,null,null,null,null,null,null,null,{"$f":"Tableau1[[#This Row],[Prix de vente\n 2019]]*(1-(Tableau1[[#This Row],[Remise]]/100))","v":{"$error":"#VALUE!"}}]
["922954","TM 314 LG:300mm TISSU A MANCHETTE PU M0","2290","ACCESSOIRES POSE CAISSON VENTIL","ML",9.849000000000002,"",{"$f":"IF(ISERR(U418)=TRUE,,(F418*(1-G418/100)))","v":0},"OUI",null,null,null,null,null,null,null,null,null,null,null,{"$f":"Tableau1[[#This Row],[Prix de vente\n 2019]]*(1-(Tableau1[[#This Row],[Remise]]/100))","v":{"$error":"#VALUE!"}}]
["923400","PRF 080 - PIQUAGE FIBER","3121","ACCESSOIRES LDV (CLIPS,OUTILS)","Pièce",8.599499999999999,"",{"$f":"IF(ISERR(U419)=TRUE,,(F419*(1-G419/100)))","v":0},"OUI",null,null,null,null,null,null,null,null,null,null,null,{"$f":"Tableau1[[#This Row],[Prix de vente\n 2019]]*(1-(Tableau1[[#This Row],[Remise]]/100))","v":{"$error":"#VALUE!"}}]
["923402","PRF 100 - PIQUAGE FIBER","3121","ACCESSOIRES LDV (CLIPS,OUTILS)","Pièce",8.8095000000000017,"",{"$f":"IF(ISERR(U420)=TRUE,,(F420*(1-G420/100)))","v":0},"OUI",null,null,null,null,null,null,null,null,null,null,null,{"$f":"Tableau1[[#This Row],[Prix de vente\n 2019]]*(1-(Tableau1[[#This Row],[Remise]]/100))","v":{"$error":"#VALUE!"}}]
["923404","PRF 125 - PIQUAGE FIBER","3121","ACCESSOIRES LDV (CLIPS,OUTILS)","Pièce",9.9540000000000006,"",{"$f":"IF(ISERR(U421)=TRUE,,(F421*(1-G421/100)))","v":0},"OUI",null,null,null,null,null,null,null,null,null,null,null,{"$f":"Tableau1[[#This Row],[Prix de vente\n 2019]]*(1-(Tableau1[[#This Row],[Remise]]/100))","v":{"$error":"#VALUE!"}}]
["923408","PRF 160 - PIQUAGE FIBER","3121","ACCESSOIRES LDV (CLIPS,OUTILS)","Pièce",10.164,"",{"$f":"IF(ISERR(U422)=TRUE,,(F422*(1-G422/100)))","v":0},"OUI",null,null,null,null,null,null,null,null,null,null,null,{"$f":"Tableau1[[#This Row],[Prix de vente\n 2019]]*(1-(Tableau1[[#This Row],[Remise]]/100))","v":{"$error":"#VALUE!"}}]
["923412","PRF 200 - PIQUAGE FIBER","3121","ACCESSOIRES LDV (CLIPS,OUTILS)","Pièce",11.927999999999999,"",{"$f":"IF(ISERR(U423)=TRUE,,(F423*(1-G423/100)))","v":0},"OUI",null,null,null,null,null,null,null,null,null,null,null,{"$f":"Tableau1[[#This Row],[Prix de vente\n 2019]]*(1-(Tableau1[[#This Row],[Remise]]/100))","v":{"$error":"#VALUE!"}}]
["923416","PRF 250 - PIQUAGE FIBER","3121","ACCESSOIRES LDV (CLIPS,OUTILS)","Pièce",14.689500000000001,"",{"$f":"IF(ISERR(U424)=TRUE,,(F424*(1-G424/100)))","v":0},"OUI",null,null,null,null,null,null,null,null,null,null,null,{"$f":"Tableau1[[#This Row],[Prix de vente\n 2019]]*(1-(Tableau1[[#This Row],[Remise]]/100))","v":{"$error":"#VALUE!"}}]
["923422","PRF 315 - PIQUAGE FIBER","3121","ACCESSOIRES LDV (CLIPS,OUTILS)","Pièce",20.391000000000002,"",{"$f":"IF(ISERR(U425)=TRUE,,(F425*(1-G425/100)))","v":0},"OUI",null,null,null,null,null,null,null,null,null,null,null,{"$f":"Tableau1[[#This Row],[Prix de vente\n 2019]]*(1-(Tableau1[[#This Row],[Remise]]/100))","v":{"$error":"#VALUE!"}}]
["923426","PRF 355 - PIQUAGE FIBER","3121","ACCESSOIRES LDV (CLIPS,OUTILS)","Pièce",33.463500000000003,"",{"$f":"IF(ISERR(U426)=TRUE,,(F426*(1-G426/100)))","v":0},"OUI",null,null,null,null,null,null,null,null,null,null,null,{"$f":"Tableau1[[#This Row],[Prix de vente\n 2019]]*(1-(Tableau1[[#This Row],[Remise]]/100))","v":{"$error":"#VALUE!"}}]
["923428","PRF 400 - PIQUAGE FIBER","3121","ACCESSOIRES LDV (CLIPS,OUTILS)","Pièce",37.663499999999999,"",{"$f":"IF(ISERR(U427)=TRUE,,(F427*(1-G427/100)))","v":0},"OUI",null,null,null,null,null,null,null,null,null,null,null,{"$f":"Tableau1[[#This Row],[Prix de vente\n 2019]]*(1-(Tableau1[[#This Row],[Remise]]/100))","v":{"$error":"#VALUE!"}}]
["923430","PRF 450 - PIQUAGE FIBER","3121","ACCESSOIRES LDV (CLIPS,OUTILS)","Pièce",46.997999999999998,"",{"$f":"IF(ISERR(U428)=TRUE,,(F428*(1-G428/100)))","v":0},"OUI",null,null,null,null,null,null,null,null,null,null,null,{"$f":"Tableau1[[#This Row],[Prix de vente\n 2019]]*(1-(Tableau1[[#This Row],[Remise]]/100))","v":{"$error":"#VALUE!"}}]
["923432","PRF 500 - PIQUAGE FIBER","3121","ACCESSOIRES LDV (CLIPS,OUTILS)","Pièce",53.539500000000004,"",{"$f":"IF(ISERR(U429)=TRUE,,(F429*(1-G429/100)))","v":0},"OUI",null,null,null,null,null,null,null,null,null,null,null,{"$f":"Tableau1[[#This Row],[Prix de vente\n 2019]]*(1-(Tableau1[[#This Row],[Remise]]/100))","v":{"$error":"#VALUE!"}}]
["923434","PRF 560 - PIQUAGE FIBER","3121","ACCESSOIRES LDV (CLIPS,OUTILS)","Pièce",66.223500000000001,"",{"$f":"IF(ISERR(U430)=TRUE,,(F430*(1-G430/100)))","v":0},"OUI",null,null,null,null,null,null,null,null,null,null,null,{"$f":"Tableau1[[#This Row],[Prix de vente\n 2019]]*(1-(Tableau1[[#This Row],[Remise]]/100))","v":{"$error":"#VALUE!"}}]
["923453","PPAV125 PIQUAGE PLASTIQUE A VISSER D.125 POUR FLEXIBLE","3121","ACCESSOIRES LDV (CLIPS,OUTILS)","Pièce",12.862500000000001,"",{"$f":"IF(ISERR(U431)=TRUE,,(F431*(1-G431/100)))","v":0},"OUI",null,null,null,null,null,null,null,null,null,null,null,{"$f":"Tableau1[[#This Row],[Prix de vente\n 2019]]*(1-(Tableau1[[#This Row],[Remise]]/100))","v":{"$error":"#VALUE!"}}]
["923454","PPAV160 PIQUAGE PLASTIQUE A VISSER D.160 POUR FLEXIBLE","3121","ACCESSOIRES LDV (CLIPS,OUTILS)","Pièce",14.637,"",{"$f":"IF(ISERR(U432)=TRUE,,(F432*(1-G432/100)))","v":0},"OUI",null,null,null,null,null,null,null,null,null,null,null,{"$f":"Tableau1[[#This Row],[Prix de vente\n 2019]]*(1-(Tableau1[[#This Row],[Remise]]/100))","v":{"$error":"#VALUE!"}}]
["923455","PPAV200 PIQUAGE PLASTIQUE A VISSER D.200 POUR FLEXIBLE","3121","ACCESSOIRES LDV (CLIPS,OUTILS)","Pièce",15.036000000000001,"",{"$f":"IF(ISERR(U433)=TRUE,,(F433*(1-G433/100)))","v":0},"OUI",null,null,null,null,null,null,null,null,null,null,null,{"$f":"Tableau1[[#This Row],[Prix de vente\n 2019]]*(1-(Tableau1[[#This Row],[Remise]]/100))","v":{"$error":"#VALUE!"}}]
["923456","PPAV250 PIQUAGE PLASTIQUE A VISSER D.250 POUR FLEXIBLE","3121","ACCESSOIRES LDV (CLIPS,OUTILS)","Pièce",16.401,"",{"$f":"IF(ISERR(U434)=TRUE,,(F434*(1-G434/100)))","v":0},"OUI",null,null,null,null,null,null,null,null,null,null,null,{"$f":"Tableau1[[#This Row],[Prix de vente\n 2019]]*(1-(Tableau1[[#This Row],[Remise]]/100))","v":{"$error":"#VALUE!"}}]
["926400","WR GRIFFE RAPIDE","5301","ACC MONTAGE/VISSERIES-BOULONNERIES","Pièce",0.504,{"$f":"IF(C435=\"9999\",0,IF(IF(ISERROR(VLOOKUP(C435,Grille1,3,FALSE)),VLOOKUP(C435,Grille2,3,FALSE),VLOOKUP(C435,Grille1,3,FALSE))=\"\",\"\",IF(ISERROR(VLOOKUP(C435,Grille1,3,FALSE)),VLOOKUP(C435,Grille2,3,FALSE),VLOOKUP(C435,Grille1,3,FALSE))))","v":""},{"$f":"IF(ISERR(U435)=TRUE,,(F435*(1-G435/100)))","v":0},"OUI",null,null,null,null,null,null,null,null,null,null,null,{"$f":"Tableau1[[#This Row],[Prix de vente\n 2019]]*(1-(Tableau1[[#This Row],[Remise]]/100))","v":{"$error":"#VALUE!"}}]
["926402","H 20 PIECE D'ANGLE POUR DW 20","5301","ACC MONTAGE/VISSERIES-BOULONNERIES","Pièce",0.64049999999999996,"",{"$f":"IF(ISERR(U436)=TRUE,,(F436*(1-G436/100)))","v":0},"OUI",null,null,null,null,null,null,null,null,null,null,null,{"$f":"Tableau1[[#This Row],[Prix de vente\n 2019]]*(1-(Tableau1[[#This Row],[Remise]]/100))","v":{"$error":"#VALUE!"}}]
["926404","H 30 PIECE D'ANGLE POUR DW 30","5301","ACC MONTAGE/VISSERIES-BOULONNERIES","Pièce",1.3440000000000001,"",{"$f":"IF(ISERR(U437)=TRUE,,(F437*(1-G437/100)))","v":0},"OUI",null,null,null,null,null,null,null,null,null,null,null,{"$f":"Tableau1[[#This Row],[Prix de vente\n 2019]]*(1-(Tableau1[[#This Row],[Remise]]/100))","v":{"$error":"#VALUE!"}}]
["926408","DW 20 J - CADRE DE GAINE AVEC JOINT 20mm / 5ml","5301","ACC MONTAGE/VISSERIES-BOULONNERIES","ML",5.4075000000000006,"",{"$f":"IF(ISERR(U438)=TRUE,,(F438*(1-G438/100)))","v":0},"OUI",null,null,null,null,null,null,null,null,null,null,null,{"$f":"Tableau1[[#This Row],[Prix de vente\n 2019]]*(1-(Tableau1[[#This Row],[Remise]]/100))","v":{"$error":"#VALUE!"}}]
["926410","DW 30 J - CADRE DE GAINE AVEC JOINT 30mm / 5ml","5301","ACC MONTAGE/VISSERIES-BOULONNERIES","ML",7.4024999999999999,"",{"$f":"IF(ISERR(U439)=TRUE,,(F439*(1-G439/100)))","v":0},"OUI",null,null,null,null,null,null,null,null,null,null,null,{"$f":"Tableau1[[#This Row],[Prix de vente\n 2019]]*(1-(Tableau1[[#This Row],[Remise]]/100))","v":{"$error":"#VALUE!"}}]
["926430","DW 20 PROFILE POUR CADRE DE GAINE RECTANGULAIRE Lg= 5ml","5301","ACC MONTAGE/VISSERIES-BOULONNERIES","ML",4.8405000000000005,"",{"$f":"IF(ISERR(U440)=TRUE,,(F440*(1-G440/100)))","v":0},"OUI",null,null,null,null,null,null,null,null,null,null,null,{"$f":"Tableau1[[#This Row],[Prix de vente\n 2019]]*(1-(Tableau1[[#This Row],[Remise]]/100))","v":{"$error":"#VALUE!"}}]
["926432","DW 30 PROFILE POUR CADRE DE GAINE RECTANGULAIRE Lg= 5ml","5301","ACC MONTAGE/VISSERIES-BOULONNERIES","ML",6.8354999999999997,"",{"$f":"IF(ISERR(U441)=TRUE,,(F441*(1-G441/100)))","v":0},"OUI",null,null,null,null,null,null,null,null,null,null,null,{"$f":"Tableau1[[#This Row],[Prix de vente\n 2019]]*(1-(Tableau1[[#This Row],[Remise]]/100))","v":{"$error":"#VALUE!"}}]
["926440","SFM-9 RIVET AUBES DIRECTIONNELLES","5301","ACC MONTAGE/VISSERIES-BOULONNERIES","Cent",171.79050000000001,"",{"$f":"IF(ISERR(U442)=TRUE,,(F442*(1-G442/100)))","v":0},"OUI",null,null,null,null,null,null,null,null,null,null,null,{"$f":"Tableau1[[#This Row],[Prix de vente\n 2019]]*(1-(Tableau1[[#This Row],[Remise]]/100))","v":{"$error":"#VALUE!"}}]
["926920","PCGE - PROFIL ACIER POUR CADRE DE GRILLE EXTERIEURE (lg=5ml)","5301","ACC MONTAGE/VISSERIES-BOULONNERIES","ML",11.4765,"",{"$f":"IF(ISERR(U443)=TRUE,,(F443*(1-G443/100)))","v":0},"OUI",null,null,null,null,null,null,null,null,null,null,null,{"$f":"Tableau1[[#This Row],[Prix de vente\n 2019]]*(1-(Tableau1[[#This Row],[Remise]]/100))","v":{"$error":"#VALUE!"}}]
["926922","PACGE - PROFIL ACIER POUR AILETTE DE GRILLE EXTERIEUR (Lg=5ml)","5301","ACC MONTAGE/VISSERIES-BOULONNERIES","ML",11.2875,"",{"$f":"IF(ISERR(U444)=TRUE,,(F444*(1-G444/100)))","v":0},"OUI",null,null,null,null,null,null,null,null,null,null,null,{"$f":"Tableau1[[#This Row],[Prix de vente\n 2019]]*(1-(Tableau1[[#This Row],[Remise]]/100))","v":{"$error":"#VALUE!"}}]
["926928","PANGE - PIECE D'ANGLE POUR GRILLE EXT.","5301","ACC MONTAGE/VISSERIES-BOULONNERIES","Pièce",1.5225,"",{"$f":"IF(ISERR(U445)=TRUE,,(F445*(1-G445/100)))","v":0},"OUI",null,null,null,null,null,null,null,null,null,null,null,{"$f":"Tableau1[[#This Row],[Prix de vente\n 2019]]*(1-(Tableau1[[#This Row],[Remise]]/100))","v":{"$error":"#VALUE!"}}]
["927002","RG 20C CLE DE COMMANDE POUR REGISTRE SIMPLE Ø350 MAXI.","5301","ACC MONTAGE/VISSERIES-BOULONNERIES","Pièce",5.4915000000000003,"",{"$f":"IF(ISERR(U446)=TRUE,,(F446*(1-G446/100)))","v":0},"OUI",null,null,null,null,null,null,null,null,null,null,null,{"$f":"Tableau1[[#This Row],[Prix de vente\n 2019]]*(1-(Tableau1[[#This Row],[Remise]]/100))","v":{"$error":"#VALUE!"}}]
["927004","RG 30C CLE DE COMMANDE POUR REGISTRE SIMPLE Ø500 MAXI.","5301","ACC MONTAGE/VISSERIES-BOULONNERIES","Pièce",9.6285000000000007,"",{"$f":"IF(ISERR(U447)=TRUE,,(F447*(1-G447/100)))","v":0},"OUI",null,null,null,null,null,null,null,null,null,null,null,{"$f":"Tableau1[[#This Row],[Prix de vente\n 2019]]*(1-(Tableau1[[#This Row],[Remise]]/100))","v":{"$error":"#VALUE!"}}]
["927006","RG 90C CLE DE COMMANDE NYLON POUR REGISTRE SIMPLE Ø250 MAXI.","5301","ACC MONTAGE/VISSERIES-BOULONNERIES","Pièce",5.9535,"",{"$f":"IF(ISERR(U448)=TRUE,,(F448*(1-G448/100)))","v":0},"OUI",null,null,null,null,null,null,null,null,null,null,null,{"$f":"Tableau1[[#This Row],[Prix de vente\n 2019]]*(1-(Tableau1[[#This Row],[Remise]]/100))","v":{"$error":"#VALUE!"}}]
["927008","RG 10C CLE DE COMMANDE POUR REGISTRE SIMPLE Ø250 MAXI.","5301","ACC MONTAGE/VISSERIES-BOULONNERIES","Pièce",4.83,"",{"$f":"IF(ISERR(U449)=TRUE,,(F449*(1-G449/100)))","v":0},"OUI",null,null,null,null,null,null,null,null,null,null,null,{"$f":"Tableau1[[#This Row],[Prix de vente\n 2019]]*(1-(Tableau1[[#This Row],[Remise]]/100))","v":{"$error":"#VALUE!"}}]
["927014","RG 60 CLE DE COMMANDE POUR REGISTRE SIMPLE Ø710 MAXI.","5301","ACC MONTAGE/VISSERIES-BOULONNERIES","Pièce",13.7445,"",{"$f":"IF(ISERR(U450)=TRUE,,(F450*(1-G450/100)))","v":0},"OUI",null,null,null,null,null,null,null,null,null,null,null,{"$f":"Tableau1[[#This Row],[Prix de vente\n 2019]]*(1-(Tableau1[[#This Row],[Remise]]/100))","v":{"$error":"#VALUE!"}}]
["927015","RG 63 CLE DE COMMANDE POUR REGISTRE SIMPLE Ø710 MAXI. SANS AXE","5301","ACC MONTAGE/VISSERIES-BOULONNERIES","Pièce",9.282,"",{"$f":"IF(ISERR(U451)=TRUE,,(F451*(1-G451/100)))","v":0},"OUI",null,null,null,null,null,null,null,null,null,null,null,{"$f":"Tableau1[[#This Row],[Prix de vente\n 2019]]*(1-(Tableau1[[#This Row],[Remise]]/100))","v":{"$error":"#VALUE!"}}]
["927020","RG75 CLE DE COMMANDE POUR REGISTRE VOLETS MULTIPLES","5301","ACC MONTAGE/VISSERIES-BOULONNERIES","Pièce",10.3215,"",{"$f":"IF(ISERR(U452)=TRUE,,(F452*(1-G452/100)))","v":0},"OUI",null,null,null,null,null,null,null,null,null,null,null,{"$f":"Tableau1[[#This Row],[Prix de vente\n 2019]]*(1-(Tableau1[[#This Row],[Remise]]/100))","v":{"$error":"#VALUE!"}}]
["932005","FTM 3.5 M1 - MATELAS RESILIENTS RL DE 25ML","3111","ISOLATION PHONIQUE ET THERMIQUE","ML",2.8665000000000003,"",{"$f":"IF(ISERR(U453)=TRUE,,(F453*(1-G453/100)))","v":0},"OUI",null,null,null,null,null,null,null,null,null,null,null,{"$f":"Tableau1[[#This Row],[Prix de vente\n 2019]]*(1-(Tableau1[[#This Row],[Remise]]/100))","v":{"$error":"#VALUE!"}}]
["932103","R15 GRIPSOL ROUGE 125 X 125mm EP. 15mm","2290","ACCESSOIRES POSE CAISSON VENTIL","Pièce",28.801500000000001,"",{"$f":"IF(ISERR(U454)=TRUE,,(F454*(1-G454/100)))","v":0},"OUI",null,null,null,null,null,null,null,null,null,null,null,{"$f":"Tableau1[[#This Row],[Prix de vente\n 2019]]*(1-(Tableau1[[#This Row],[Remise]]/100))","v":{"$error":"#VALUE!"}}]
["932104","R10 GRIPSOL ROUGE 500x500 EP. 11mm","2290","ACCESSOIRES POSE CAISSON VENTIL","Pièce",369.16949999999997,"",{"$f":"IF(ISERR(U455)=TRUE,,(F455*(1-G455/100)))","v":0},"OUI",null,null,null,null,null,null,null,null,null,null,null,{"$f":"Tableau1[[#This Row],[Prix de vente\n 2019]]*(1-(Tableau1[[#This Row],[Remise]]/100))","v":{"$error":"#VALUE!"}}]
["932105","R15 GRIPSOL ROUGE 500 X 500mm EP. 15mm","2290","ACCESSOIRES POSE CAISSON VENTIL","Pièce",468.49950000000001,"",{"$f":"IF(ISERR(U456)=TRUE,,(F456*(1-G456/100)))","v":0},"OUI",null,null,null,null,null,null,null,null,null,null,null,{"$f":"Tableau1[[#This Row],[Prix de vente\n 2019]]*(1-(Tableau1[[#This Row],[Remise]]/100))","v":{"$error":"#VALUE!"}}]
["932106","ADEKWAT VIOLET 100x100 20mm PLOTS ANTIVIBRATOIRE ( SACHET DE 4 PLOTS)","2290","ACCESSOIRES POSE CAISSON VENTIL","Sachet",213.92700000000002,"",{"$f":"IF(ISERR(U457)=TRUE,,(F457*(1-G457/100)))","v":0},"OUI",null,null,null,null,null,null,null,null,null,null,null,{"$f":"Tableau1[[#This Row],[Prix de vente\n 2019]]*(1-(Tableau1[[#This Row],[Remise]]/100))","v":{"$error":"#VALUE!"}}]
["932108","ADEKWAT NOIR  100x100 20mm PLOTS ANTIVIBRATOIRE (SACHET DE 4 PLOTS)","2290","ACCESSOIRES POSE CAISSON VENTIL","Sachet",199.66800000000001,"",{"$f":"IF(ISERR(U458)=TRUE,,(F458*(1-G458/100)))","v":0},"OUI",null,null,null,null,null,null,null,null,null,null,null,{"$f":"Tableau1[[#This Row],[Prix de vente\n 2019]]*(1-(Tableau1[[#This Row],[Remise]]/100))","v":{"$error":"#VALUE!"}}]
["932201","RESILIANT PLAQUE 1x1 ml Ep. 5mm","5204","SUPPORTAGE AU SOL","Pièce",35.427000000000007,"",{"$f":"IF(ISERR(U459)=TRUE,,(F459*(1-G459/100)))","v":0},"OUI",null,null,null,null,null,null,null,null,null,null,null,{"$f":"Tableau1[[#This Row],[Prix de vente\n 2019]]*(1-(Tableau1[[#This Row],[Remise]]/100))","v":{"$error":"#VALUE!"}}]
["932202","PLOKISOL PLOT 45x45mm","5204","SUPPORTAGE AU SOL","Pièce",4.3784999999999998,"",{"$f":"IF(ISERR(U460)=TRUE,,(F460*(1-G460/100)))","v":0},"OUI",null,null,null,null,null,null,null,null,null,null,null,{"$f":"Tableau1[[#This Row],[Prix de vente\n 2019]]*(1-(Tableau1[[#This Row],[Remise]]/100))","v":{"$error":"#VALUE!"}}]
["932203","RESILIANT PLAQUE 300mm x 300mm Ep. 5mm","5204","SUPPORTAGE AU SOL","Pièce",4.924500000000001,"",{"$f":"IF(ISERR(U461)=TRUE,,(F461*(1-G461/100)))","v":0},"OUI",null,null,null,null,null,null,null,null,null,null,null,{"$f":"Tableau1[[#This Row],[Prix de vente\n 2019]]*(1-(Tableau1[[#This Row],[Remise]]/100))","v":{"$error":"#VALUE!"}}]
["932204","VIBROMAT 500X500 TAPIS ANTIVIBRATIL Ep : 45mm","5204","SUPPORTAGE AU SOL","Pièce",50.935499999999998,"",{"$f":"IF(ISERR(U462)=TRUE,,(F462*(1-G462/100)))","v":0},"OUI",null,null,null,null,null,null,null,null,null,null,null,{"$f":"Tableau1[[#This Row],[Prix de vente\n 2019]]*(1-(Tableau1[[#This Row],[Remise]]/100))","v":{"$error":"#VALUE!"}}]
["932209","RESILIANT PLAQUE CIRCULAIRE Ø240MM AUTO-ADHESIF EP. 3MM BASE FOOT","2290","ACCESSOIRES POSE CAISSON VENTIL","Pièce",3.8534999999999999,"",{"$f":"IF(ISERR(U463)=TRUE,,(F463*(1-G463/100)))","v":0},"OUI",null,null,null,null,null,null,null,null,null,null,null,{"$f":"Tableau1[[#This Row],[Prix de vente\n 2019]]*(1-(Tableau1[[#This Row],[Remise]]/100))","v":{"$error":"#VALUE!"}}]
["932284","APLOMB 11 - 1.00x3.00","3111","ISOLATION PHONIQUE ET THERMIQUE","M2",93.691500000000005,"",{"$f":"IF(ISERR(U464)=TRUE,,(F464*(1-G464/100)))","v":0},"OUI",null,null,null,null,null,null,null,null,null,null,null,{"$f":"Tableau1[[#This Row],[Prix de vente\n 2019]]*(1-(Tableau1[[#This Row],[Remise]]/100))","v":{"$error":"#VALUE!"}}]
["932287","MOUSSE ACOUSTIQUE ADH. EP=20mm-PLAQUE 1.00x1.50ml","3111","ISOLATION PHONIQUE ET THERMIQUE","M2",23.677500000000002,"",{"$f":"IF(ISERR(U465)=TRUE,,(F465*(1-G465/100)))","v":0},"OUI",null,null,null,null,null,null,null,null,null,null,null,{"$f":"Tableau1[[#This Row],[Prix de vente\n 2019]]*(1-(Tableau1[[#This Row],[Remise]]/100))","v":{"$error":"#VALUE!"}}]
["932288","MOUSSE ACOUSTIQUE ADH. EP=40mm - PLAQUE 1.00x2.00ml","3111","ISOLATION PHONIQUE ET THERMIQUE","M2",40.729500000000002,"",{"$f":"IF(ISERR(U466)=TRUE,,(F466*(1-G466/100)))","v":0},"OUI",null,null,null,null,null,null,null,null,null,null,null,{"$f":"Tableau1[[#This Row],[Prix de vente\n 2019]]*(1-(Tableau1[[#This Row],[Remise]]/100))","v":{"$error":"#VALUE!"}}]
["932290","COLLE MATIBLOCK 850g","3111","ISOLATION PHONIQUE ET THERMIQUE","Pot",29.337000000000003,"",{"$f":"IF(ISERR(U467)=TRUE,,(F467*(1-G467/100)))","v":0},"OUI",null,null,null,null,null,null,null,null,null,null,null,{"$f":"Tableau1[[#This Row],[Prix de vente\n 2019]]*(1-(Tableau1[[#This Row],[Remise]]/100))","v":{"$error":"#VALUE!"}}]
["932292","COLLE MATIBLOCK 15Kg","3111","ISOLATION PHONIQUE ET THERMIQUE","Pot",440.96850000000006,"",{"$f":"IF(ISERR(U468)=TRUE,,(F468*(1-G468/100)))","v":0},"OUI",null,null,null,null,null,null,null,null,null,null,null,{"$f":"Tableau1[[#This Row],[Prix de vente\n 2019]]*(1-(Tableau1[[#This Row],[Remise]]/100))","v":{"$error":"#VALUE!"}}]
["934100","FTM4-05 M1 ép. 5mm RL 1,5mx50m = 75m²","3111","ISOLATION PHONIQUE ET THERMIQUE","M2",11.739000000000001,"",{"$f":"IF(ISERR(U469)=TRUE,,(F469*(1-G469/100)))","v":0},"OUI",null,null,null,null,null,null,null,null,null,null,null,{"$f":"Tableau1[[#This Row],[Prix de vente\n 2019]]*(1-(Tableau1[[#This Row],[Remise]]/100))","v":{"$error":"#VALUE!"}}]
["934102","FTM4-10 M1 ép.10mm RL 1,5mx50m = 75m2","3111","ISOLATION PHONIQUE ET THERMIQUE","M2",16.841999999999999,"",{"$f":"IF(ISERR(U470)=TRUE,,(F470*(1-G470/100)))","v":0},"OUI",null,null,null,null,null,null,null,null,null,null,null,{"$f":"Tableau1[[#This Row],[Prix de vente\n 2019]]*(1-(Tableau1[[#This Row],[Remise]]/100))","v":{"$error":"#VALUE!"}}]
["935100","MANCHON ISOLANT KAIFLEX ST 13x06 1/4' (lg:2ml)","3201","MANCHONS ISOLANTS","ML",2.3729999999999998,"",{"$f":"IF(ISERR(U471)=TRUE,,(F471*(1-G471/100)))","v":0},"OUI",null,null,null,null,null,null,null,null,null,null,null,{"$f":"Tableau1[[#This Row],[Prix de vente\n 2019]]*(1-(Tableau1[[#This Row],[Remise]]/100))","v":{"$error":"#VALUE!"}}]
["935102","MANCHON ISOLANT KAIFLEX ST 13x08 5/16' (lg:2ml)","3201","MANCHONS ISOLANTS","ML",2.3729999999999998,"",{"$f":"IF(ISERR(U472)=TRUE,,(F472*(1-G472/100)))","v":0},"OUI",null,null,null,null,null,null,null,null,null,null,null,{"$f":"Tableau1[[#This Row],[Prix de vente\n 2019]]*(1-(Tableau1[[#This Row],[Remise]]/100))","v":{"$error":"#VALUE!"}}]
["935104","MANCHON ISOLANT KAIFLEX ST 13x10 3/8' (lg:2ml)","3201","MANCHONS ISOLANTS","ML",2.3729999999999998,"",{"$f":"IF(ISERR(U473)=TRUE,,(F473*(1-G473/100)))","v":0},"OUI",null,null,null,null,null,null,null,null,null,null,null,{"$f":"Tableau1[[#This Row],[Prix de vente\n 2019]]*(1-(Tableau1[[#This Row],[Remise]]/100))","v":{"$error":"#VALUE!"}}]
["935106","MANCHON ISOLANT KAIFLEX ST 13x12 1/2' (lg:2ml)","3201","MANCHONS ISOLANTS","ML",2.3729999999999998,"",{"$f":"IF(ISERR(U474)=TRUE,,(F474*(1-G474/100)))","v":0},"OUI",null,null,null,null,null,null,null,null,null,null,null,{"$f":"Tableau1[[#This Row],[Prix de vente\n 2019]]*(1-(Tableau1[[#This Row],[Remise]]/100))","v":{"$error":"#VALUE!"}}]
["935108","MANCHON ISOLANT KAIFLEX ST 13x15 5/8' (lg:2ml)","3201","MANCHONS ISOLANTS","ML",2.4359999999999999,"",{"$f":"IF(ISERR(U475)=TRUE,,(F475*(1-G475/100)))","v":0},"OUI",null,null,null,null,null,null,null,null,null,null,null,{"$f":"Tableau1[[#This Row],[Prix de vente\n 2019]]*(1-(Tableau1[[#This Row],[Remise]]/100))","v":{"$error":"#VALUE!"}}]
["935110","MANCHON ISOLANT KAIFLEX ST 13x18 3/4' (lg:2ml)","3201","MANCHONS ISOLANTS","ML",2.5515000000000003,"",{"$f":"IF(ISERR(U476)=TRUE,,(F476*(1-G476/100)))","v":0},"OUI",null,null,null,null,null,null,null,null,null,null,null,{"$f":"Tableau1[[#This Row],[Prix de vente\n 2019]]*(1-(Tableau1[[#This Row],[Remise]]/100))","v":{"$error":"#VALUE!"}}]
["935112","MANCHON ISOLANT KAIFLEX ST 13x22 7/8' (lg:2ml)","3201","MANCHONS ISOLANTS","ML",2.8350000000000004,"",{"$f":"IF(ISERR(U477)=TRUE,,(F477*(1-G477/100)))","v":0},"OUI",null,null,null,null,null,null,null,null,null,null,null,{"$f":"Tableau1[[#This Row],[Prix de vente\n 2019]]*(1-(Tableau1[[#This Row],[Remise]]/100))","v":{"$error":"#VALUE!"}}]
["935114","\"MANCHON ISOLANT KAIFLEX ST 13x25 1\"\" (lg:2ml)\"","3201","MANCHONS ISOLANTS","ML",3.0659999999999998,"",{"$f":"IF(ISERR(U478)=TRUE,,(F478*(1-G478/100)))","v":0},"OUI",null,null,null,null,null,null,null,null,null,null,null,{"$f":"Tableau1[[#This Row],[Prix de vente\n 2019]]*(1-(Tableau1[[#This Row],[Remise]]/100))","v":{"$error":"#VALUE!"}}]
["935116","\"MANCHON ISOLANT KAIFLEX ST 13x28 1\"\"1/8 (lg:2ml)\"","3201","MANCHONS ISOLANTS","ML",3.129,"",{"$f":"IF(ISERR(U479)=TRUE,,(F479*(1-G479/100)))","v":0},"OUI",null,null,null,null,null,null,null,null,null,null,null,{"$f":"Tableau1[[#This Row],[Prix de vente\n 2019]]*(1-(Tableau1[[#This Row],[Remise]]/100))","v":{"$error":"#VALUE!"}}]
["935118","\"MANCHON ISOLANT KAIFLEX ST 13x35 1\"\"3/8 (lg:2ml)\"","3201","MANCHONS ISOLANTS","ML",3.6539999999999999,"",{"$f":"IF(ISERR(U480)=TRUE,,(F480*(1-G480/100)))","v":0},"OUI",null,null,null,null,null,null,null,null,null,null,null,{"$f":"Tableau1[[#This Row],[Prix de vente\n 2019]]*(1-(Tableau1[[#This Row],[Remise]]/100))","v":{"$error":"#VALUE!"}}]
["935120","MANCHON ISOLANT KAIFLEX ST 13x42 1''5/8 (lg:2ml)","3201","MANCHONS ISOLANTS","ML",4.2945000000000002,"",{"$f":"IF(ISERR(U481)=TRUE,,(F481*(1-G481/100)))","v":0},"OUI",null,null,null,null,null,null,null,null,null,null,null,{"$f":"Tableau1[[#This Row],[Prix de vente\n 2019]]*(1-(Tableau1[[#This Row],[Remise]]/100))","v":{"$error":"#VALUE!"}}]
["935301","BANDE ADHESIVE ALU-TEC-ROULEAUX DE 50mm X 50ML","3201","MANCHONS ISOLANTS","Rl",396.49050000000005,"",{"$f":"IF(ISERR(U482)=TRUE,,(F482*(1-G482/100)))","v":0},"OUI",null,null,null,null,null,null,null,null,null,null,null,{"$f":"Tableau1[[#This Row],[Prix de vente\n 2019]]*(1-(Tableau1[[#This Row],[Remise]]/100))","v":{"$error":"#VALUE!"}}]
["935600","SUPPORT ISOLANT+COLLIER Ep:13 x D.10mm 3/8''","3202","ACCESSOIRES POUR MANCHONS","Pièce",8.4525000000000006,{"$f":"IF(C483=\"9999\",0,IF(IF(ISERROR(VLOOKUP(C483,Grille1,3,FALSE)),VLOOKUP(C483,Grille2,3,FALSE),VLOOKUP(C483,Grille1,3,FALSE))=\"\",\"\",IF(ISERROR(VLOOKUP(C483,Grille1,3,FALSE)),VLOOKUP(C483,Grille2,3,FALSE),VLOOKUP(C483,Grille1,3,FALSE))))","v":""},{"$f":"IF(ISERR(U483)=TRUE,,(F483*(1-G483/100)))","v":0},"OUI",null,null,null,null,null,null,null,null,null,null,null,{"$f":"Tableau1[[#This Row],[Prix de vente\n 2019]]*(1-(Tableau1[[#This Row],[Remise]]/100))","v":{"$error":"#VALUE!"}}]
["935602","SUPPORT ISOLANT+COLLIER Ep:13 x D.12mm 1/2''","3202","ACCESSOIRES POUR MANCHONS","Pièce",8.7990000000000013,"",{"$f":"IF(ISERR(U484)=TRUE,,(F484*(1-G484/100)))","v":0},"OUI",null,null,null,null,null,null,null,null,null,null,null,{"$f":"Tableau1[[#This Row],[Prix de vente\n 2019]]*(1-(Tableau1[[#This Row],[Remise]]/100))","v":{"$error":"#VALUE!"}}]
["935604","SUPPORT ISOLANT+COLLIER Ep:13 x D.15mm 5/8''","3202","ACCESSOIRES POUR MANCHONS","Pièce",8.9775000000000009,"",{"$f":"IF(ISERR(U485)=TRUE,,(F485*(1-G485/100)))","v":0},"OUI",null,null,null,null,null,null,null,null,null,null,null,{"$f":"Tableau1[[#This Row],[Prix de vente\n 2019]]*(1-(Tableau1[[#This Row],[Remise]]/100))","v":{"$error":"#VALUE!"}}]
["935606","SUPPORT ISOLANT+COLLIER Ep:13 x D.18mm 3/4''","3202","ACCESSOIRES POUR MANCHONS","Pièce",9.0825000000000014,"",{"$f":"IF(ISERR(U486)=TRUE,,(F486*(1-G486/100)))","v":0},"OUI",null,null,null,null,null,null,null,null,null,null,null,{"$f":"Tableau1[[#This Row],[Prix de vente\n 2019]]*(1-(Tableau1[[#This Row],[Remise]]/100))","v":{"$error":"#VALUE!"}}]
["935608","SUPPORT ISOLANT+COLLIER Ep:13 x D.22mm 7/8''","3202","ACCESSOIRES POUR MANCHONS","Pièce",9.2085000000000008,"",{"$f":"IF(ISERR(U487)=TRUE,,(F487*(1-G487/100)))","v":0},"OUI",null,null,null,null,null,null,null,null,null,null,null,{"$f":"Tableau1[[#This Row],[Prix de vente\n 2019]]*(1-(Tableau1[[#This Row],[Remise]]/100))","v":{"$error":"#VALUE!"}}]
["935610","SUPPORT ISOLANT+COLLIER Ep:13 x D.25mm 1''","3202","ACCESSOIRES POUR MANCHONS","Pièce",9.4919999999999991,"",{"$f":"IF(ISERR(U488)=TRUE,,(F488*(1-G488/100)))","v":0},"OUI",null,null,null,null,null,null,null,null,null,null,null,{"$f":"Tableau1[[#This Row],[Prix de vente\n 2019]]*(1-(Tableau1[[#This Row],[Remise]]/100))","v":{"$error":"#VALUE!"}}]
["935612","SUPPORT ISOLANT+COLLIER Ep:13 x D.28mm 1''1/8","3202","ACCESSOIRES POUR MANCHONS","Pièce",9.9015000000000004,"",{"$f":"IF(ISERR(U489)=TRUE,,(F489*(1-G489/100)))","v":0},"OUI",null,null,null,null,null,null,null,null,null,null,null,{"$f":"Tableau1[[#This Row],[Prix de vente\n 2019]]*(1-(Tableau1[[#This Row],[Remise]]/100))","v":{"$error":"#VALUE!"}}]
["935616","SUPPORT ISOLANT+COLLIER Ep:13 x D.35mm 1''3/8","3202","ACCESSOIRES POUR MANCHONS","Pièce",10.773,"",{"$f":"IF(ISERR(U490)=TRUE,,(F490*(1-G490/100)))","v":0},"OUI",null,null,null,null,null,null,null,null,null,null,null,{"$f":"Tableau1[[#This Row],[Prix de vente\n 2019]]*(1-(Tableau1[[#This Row],[Remise]]/100))","v":{"$error":"#VALUE!"}}]
["935618","SUPPORT ISOLANT+COLLIER Ep:13 x D.42mm 1''5/8","3202","ACCESSOIRES POUR MANCHONS","Pièce",12.39,"",{"$f":"IF(ISERR(U491)=TRUE,,(F491*(1-G491/100)))","v":0},"OUI",null,null,null,null,null,null,null,null,null,null,null,{"$f":"Tableau1[[#This Row],[Prix de vente\n 2019]]*(1-(Tableau1[[#This Row],[Remise]]/100))","v":{"$error":"#VALUE!"}}]
["936008","COLLE + PINCEAU 1/4 L POUR MANCHON KAIFLEX","3202","ACCESSOIRES POUR MANCHONS","Pot",25.819500000000001,"",{"$f":"IF(ISERR(U492)=TRUE,,(F492*(1-G492/100)))","v":0},"OUI",null,null,null,null,null,null,null,null,null,null,null,{"$f":"Tableau1[[#This Row],[Prix de vente\n 2019]]*(1-(Tableau1[[#This Row],[Remise]]/100))","v":{"$error":"#VALUE!"}}]
["938002","MEG 155 JOINT D ETANCHEITE ép 5mm RL 15mm x 10ML","3111","ISOLATION PHONIQUE ET THERMIQUE","ML",0.27300000000000002,"",{"$f":"IF(ISERR(U493)=TRUE,,(F493*(1-G493/100)))","v":0},"OUI",null,null,null,null,null,null,null,null,null,null,null,{"$f":"Tableau1[[#This Row],[Prix de vente\n 2019]]*(1-(Tableau1[[#This Row],[Remise]]/100))","v":{"$error":"#VALUE!"}}]
["938006","MEG 205 JOINT D ETANCHEITE ép 5mm RL 20mm x 10ML","3111","ISOLATION PHONIQUE ET THERMIQUE","ML",0.378,"",{"$f":"IF(ISERR(U494)=TRUE,,(F494*(1-G494/100)))","v":0},"OUI",null,null,null,null,null,null,null,null,null,null,null,{"$f":"Tableau1[[#This Row],[Prix de vente\n 2019]]*(1-(Tableau1[[#This Row],[Remise]]/100))","v":{"$error":"#VALUE!"}}]
["938010","MEG 305 JOINT D ETANCHEITE ép 5mm RL 30mm x 10ML","3111","ISOLATION PHONIQUE ET THERMIQUE","ML",0.56700000000000006,"",{"$f":"IF(ISERR(U495)=TRUE,,(F495*(1-G495/100)))","v":0},"OUI",null,null,null,null,null,null,null,null,null,null,null,{"$f":"Tableau1[[#This Row],[Prix de vente\n 2019]]*(1-(Tableau1[[#This Row],[Remise]]/100))","v":{"$error":"#VALUE!"}}]
["938301","MASTIC ACRYLIQUE GRIS CLIMASEAL / CART.280 ml","5101","MASTIC D'ETANCHEITE","Pièce",6.0165000000000006,"",{"$f":"IF(ISERR(U496)=TRUE,,(F496*(1-G496/100)))","v":0},"OUI",null,null,null,null,null,null,null,null,null,null,null,{"$f":"Tableau1[[#This Row],[Prix de vente\n 2019]]*(1-(Tableau1[[#This Row],[Remise]]/100))","v":{"$error":"#VALUE!"}}]
["938305","MASTIC ACRYLIQUE GRIS IDENDEN 40-320 / POT DE 6Kgs","5101","MASTIC D'ETANCHEITE","Pot",56.889000000000003,"",{"$f":"IF(ISERR(U497)=TRUE,,(F497*(1-G497/100)))","v":0},"OUI",null,null,null,null,null,null,null,null,null,null,null,{"$f":"Tableau1[[#This Row],[Prix de vente\n 2019]]*(1-(Tableau1[[#This Row],[Remise]]/100))","v":{"$error":"#VALUE!"}}]
["938351","MASTIC ACRYLIQUE 621 GRIS / POT DE 6 KGS","5101","MASTIC D'ETANCHEITE","Pot",65.960999999999999,"",{"$f":"IF(ISERR(U498)=TRUE,,(F498*(1-G498/100)))","v":0},"OUI",null,null,null,null,null,null,null,null,null,null,null,{"$f":"Tableau1[[#This Row],[Prix de vente\n 2019]]*(1-(Tableau1[[#This Row],[Remise]]/100))","v":{"$error":"#VALUE!"}}]
["938352","MASTIC ACRYLIQUE 621 GRIS / POT DE 1 KG","5101","MASTIC D'ETANCHEITE","Pot",16.149000000000001,"",{"$f":"IF(ISERR(U499)=TRUE,,(F499*(1-G499/100)))","v":0},"OUI",null,null,null,null,null,null,null,null,null,null,null,{"$f":"Tableau1[[#This Row],[Prix de vente\n 2019]]*(1-(Tableau1[[#This Row],[Remise]]/100))","v":{"$error":"#VALUE!"}}]
["938353","MASTIC ACRYLIQUE ACO 220 GRIS / CART.300 ml","5101","MASTIC D'ETANCHEITE","Pièce",7.4340000000000002,"",{"$f":"IF(ISERR(U500)=TRUE,,(F500*(1-G500/100)))","v":0},"OUI",null,null,null,null,null,null,null,null,null,null,null,{"$f":"Tableau1[[#This Row],[Prix de vente\n 2019]]*(1-(Tableau1[[#This Row],[Remise]]/100))","v":{"$error":"#VALUE!"}}]
["938506","MASTIC ACRYLIQUE ACO 220 BLANC / CART. 300ml","5101","MASTIC D'ETANCHEITE","Pièce",9.7230000000000008,"",{"$f":"IF(ISERR(U501)=TRUE,,(F501*(1-G501/100)))","v":0},"OUI",null,null,null,null,null,null,null,null,null,null,null,{"$f":"Tableau1[[#This Row],[Prix de vente\n 2019]]*(1-(Tableau1[[#This Row],[Remise]]/100))","v":{"$error":"#VALUE!"}}]
["938507","MASTIC SILICONE GRIS NEUTRE ACO720 CART.","5101","MASTIC D'ETANCHEITE","Pièce",10.9725,"",{"$f":"IF(ISERR(U502)=TRUE,,(F502*(1-G502/100)))","v":0},"OUI",null,null,null,null,null,null,null,null,null,null,null,{"$f":"Tableau1[[#This Row],[Prix de vente\n 2019]]*(1-(Tableau1[[#This Row],[Remise]]/100))","v":{"$error":"#VALUE!"}}]
["938508","MASTIC SILICONE BLANC NEUTRE ACO722 CART.","5101","MASTIC D'ETANCHEITE","Pièce",10.9725,"",{"$f":"IF(ISERR(U503)=TRUE,,(F503*(1-G503/100)))","v":0},"OUI",null,null,null,null,null,null,null,null,null,null,null,{"$f":"Tableau1[[#This Row],[Prix de vente\n 2019]]*(1-(Tableau1[[#This Row],[Remise]]/100))","v":{"$error":"#VALUE!"}}]
["938510","MASTIC SILICONE  ACO 720 BLANC / CART. 300ml","5101","MASTIC D'ETANCHEITE","Pièce",14.311500000000001,"",{"$f":"IF(ISERR(U504)=TRUE,,(F504*(1-G504/100)))","v":0},"OUI",null,null,null,null,null,null,null,null,null,null,null,{"$f":"Tableau1[[#This Row],[Prix de vente\n 2019]]*(1-(Tableau1[[#This Row],[Remise]]/100))","v":{"$error":"#VALUE!"}}]
["938511","MASTIC SILICONE SANITAIRE TRANSPARENT 310 ml","5101","MASTIC D'ETANCHEITE","Pièce",14.311500000000001,"",{"$f":"IF(ISERR(U505)=TRUE,,(F505*(1-G505/100)))","v":0},"OUI",null,null,null,null,null,null,null,null,null,null,null,{"$f":"Tableau1[[#This Row],[Prix de vente\n 2019]]*(1-(Tableau1[[#This Row],[Remise]]/100))","v":{"$error":"#VALUE!"}}]
["938512","MASTIC SILICONE NOIR NEUTRE ACO722 CART.","5101","MASTIC D'ETANCHEITE","Pièce",10.9725,"",{"$f":"IF(ISERR(U506)=TRUE,,(F506*(1-G506/100)))","v":0},"OUI",null,null,null,null,null,null,null,null,null,null,null,{"$f":"Tableau1[[#This Row],[Prix de vente\n 2019]]*(1-(Tableau1[[#This Row],[Remise]]/100))","v":{"$error":"#VALUE!"}}]
["938513","MASTIC SILICONE NEUTRE ACO720 TRANSLUCIDE","5101","MASTIC D'ETANCHEITE","Pièce",12.7155,"",{"$f":"IF(ISERR(U507)=TRUE,,(F507*(1-G507/100)))","v":0},"OUI",null,null,null,null,null,null,null,null,null,null,null,{"$f":"Tableau1[[#This Row],[Prix de vente\n 2019]]*(1-(Tableau1[[#This Row],[Remise]]/100))","v":{"$error":"#VALUE!"}}]
["938550","MASTIC SILICONE DETAFIRE (Coupe-Feu) BLANC / CART. 310ml","5101","MASTIC D'ETANCHEITE","Pièce",32.224500000000006,"",{"$f":"IF(ISERR(U508)=TRUE,,(F508*(1-G508/100)))","v":0},"OUI",null,null,null,null,null,null,null,null,null,null,null,{"$f":"Tableau1[[#This Row],[Prix de vente\n 2019]]*(1-(Tableau1[[#This Row],[Remise]]/100))","v":{"$error":"#VALUE!"}}]
["938552","MASTIC SILICONE TECSIL 5050 (Haute Température) ROUGE / CART. 300ml","5101","MASTIC D'ETANCHEITE","Pièce",36.603000000000002,"",{"$f":"IF(ISERR(U509)=TRUE,,(F509*(1-G509/100)))","v":0},"OUI",null,null,null,null,null,null,null,null,null,null,null,{"$f":"Tableau1[[#This Row],[Prix de vente\n 2019]]*(1-(Tableau1[[#This Row],[Remise]]/100))","v":{"$error":"#VALUE!"}}]
["938599","U EPDM JOINT CAOUTCHOUC EPDM FORME U POUR GAINE TOLE","5301","ACC MONTAGE/VISSERIES-BOULONNERIES","ML",6.9510000000000005,"",{"$f":"IF(ISERR(U510)=TRUE,,(F510*(1-G510/100)))","v":0},"OUI",null,null,null,null,null,null,null,null,null,null,null,{"$f":"Tableau1[[#This Row],[Prix de vente\n 2019]]*(1-(Tableau1[[#This Row],[Remise]]/100))","v":{"$error":"#VALUE!"}}]
["938600","PISTOLET A CARTOUCHE MASTIC","5101","MASTIC D'ETANCHEITE","Pièce",15.214500000000001,"",{"$f":"IF(ISERR(U511)=TRUE,,(F511*(1-G511/100)))","v":0},"OUI",null,null,null,null,null,null,null,null,null,null,null,{"$f":"Tableau1[[#This Row],[Prix de vente\n 2019]]*(1-(Tableau1[[#This Row],[Remise]]/100))","v":{"$error":"#VALUE!"}}]
["938602","PINCEAU PLAT A MASTIC LG:40mm","5101","MASTIC D'ETANCHEITE","Pièce",3.4125000000000001,"",{"$f":"IF(ISERR(U512)=TRUE,,(F512*(1-G512/100)))","v":0},"OUI",null,null,null,null,null,null,null,null,null,null,null,{"$f":"Tableau1[[#This Row],[Prix de vente\n 2019]]*(1-(Tableau1[[#This Row],[Remise]]/100))","v":{"$error":"#VALUE!"}}]
["938652","BAR INT 50mm x 15ml BANDE AUTO RETRACTABLE INTERIEUR","5102","BANDE D'ETANCHEITE","Rl",36.561,"",{"$f":"IF(ISERR(U513)=TRUE,,(F513*(1-G513/100)))","v":0},"OUI",null,null,null,null,null,null,null,null,null,null,null,{"$f":"Tableau1[[#This Row],[Prix de vente\n 2019]]*(1-(Tableau1[[#This Row],[Remise]]/100))","v":{"$error":"#VALUE!"}}]
["938653","BAR INT 50mm x 15ml EP 0,8mm BANDE AUTO RETRACTABLE INTERIEUR","5102","BANDE D'ETANCHEITE","Rl",41.139000000000003,"",{"$f":"IF(ISERR(U514)=TRUE,,(F514*(1-G514/100)))","v":0},"OUI",null,null,null,null,null,null,null,null,null,null,null,{"$f":"Tableau1[[#This Row],[Prix de vente\n 2019]]*(1-(Tableau1[[#This Row],[Remise]]/100))","v":{"$error":"#VALUE!"}}]
["938654","BAR INT 75mm x 15ml BANDE AUTO RETRACTABLE INTERIEUR","5102","BANDE D'ETANCHEITE","Rl",54.841499999999996,"",{"$f":"IF(ISERR(U515)=TRUE,,(F515*(1-G515/100)))","v":0},"OUI",null,null,null,null,null,null,null,null,null,null,null,{"$f":"Tableau1[[#This Row],[Prix de vente\n 2019]]*(1-(Tableau1[[#This Row],[Remise]]/100))","v":{"$error":"#VALUE!"}}]
["938655","BAR INT 75mm x 15ml EP 0,8mm BANDE AUTO RETRACTABLE INTERIEUR","5102","BANDE D'ETANCHEITE","Rl",61.6875,"",{"$f":"IF(ISERR(U516)=TRUE,,(F516*(1-G516/100)))","v":0},"OUI",null,null,null,null,null,null,null,null,null,null,null,{"$f":"Tableau1[[#This Row],[Prix de vente\n 2019]]*(1-(Tableau1[[#This Row],[Remise]]/100))","v":{"$error":"#VALUE!"}}]
["938750","BAR EXT 50mm x15ml BANDE AUTO RETRACTABLE EXTERIEUR ALU","5102","BANDE D'ETANCHEITE","Rl",42.640500000000003,"",{"$f":"IF(ISERR(U517)=TRUE,,(F517*(1-G517/100)))","v":0},"OUI",null,null,null,null,null,null,null,null,null,null,null,{"$f":"Tableau1[[#This Row],[Prix de vente\n 2019]]*(1-(Tableau1[[#This Row],[Remise]]/100))","v":{"$error":"#VALUE!"}}]
["938752","BAR EXT 75mm x15ml BANDE AUTO RETRACTABLE EXTERIEUR ALU","5102","BANDE D'ETANCHEITE","Rl",63.966000000000001,"",{"$f":"IF(ISERR(U518)=TRUE,,(F518*(1-G518/100)))","v":0},"OUI",null,null,null,null,null,null,null,null,null,null,null,{"$f":"Tableau1[[#This Row],[Prix de vente\n 2019]]*(1-(Tableau1[[#This Row],[Remise]]/100))","v":{"$error":"#VALUE!"}}]
["941006","S17 - BANDE PERFOREE 17 x 0.6 mm RL DE 25ML","5301","ACC MONTAGE/VISSERIES-BOULONNERIES","Rl",21.608999999999998,"",{"$f":"IF(ISERR(U519)=TRUE,,(F519*(1-G519/100)))","v":0},"OUI",null,null,null,null,null,null,null,null,null,null,null,{"$f":"Tableau1[[#This Row],[Prix de vente\n 2019]]*(1-(Tableau1[[#This Row],[Remise]]/100))","v":{"$error":"#VALUE!"}}]
["941007","SP17 - BANDE PERFOREE PLASTIFIEE 17mm RL DE 20ML","5301","ACC MONTAGE/VISSERIES-BOULONNERIES","Rl",135.00900000000001,"",{"$f":"IF(ISERR(U520)=TRUE,,(F520*(1-G520/100)))","v":0},"OUI",null,null,null,null,null,null,null,null,null,null,null,{"$f":"Tableau1[[#This Row],[Prix de vente\n 2019]]*(1-(Tableau1[[#This Row],[Remise]]/100))","v":{"$error":"#VALUE!"}}]
["941010","S20 - BANDE PERFOREE 20 x 0.6 mm RL DE 25ML","5301","ACC MONTAGE/VISSERIES-BOULONNERIES","Rl",25.5045,"",{"$f":"IF(ISERR(U521)=TRUE,,(F521*(1-G521/100)))","v":0},"OUI",null,null,null,null,null,null,null,null,null,null,null,{"$f":"Tableau1[[#This Row],[Prix de vente\n 2019]]*(1-(Tableau1[[#This Row],[Remise]]/100))","v":{"$error":"#VALUE!"}}]
["941012","S25 - BANDE PERFOREE 25 x 0.75 mm RL DE 25ML","5301","ACC MONTAGE/VISSERIES-BOULONNERIES","Rl",35.920500000000004,"",{"$f":"IF(ISERR(U522)=TRUE,,(F522*(1-G522/100)))","v":0},"OUI",null,null,null,null,null,null,null,null,null,null,null,{"$f":"Tableau1[[#This Row],[Prix de vente\n 2019]]*(1-(Tableau1[[#This Row],[Remise]]/100))","v":{"$error":"#VALUE!"}}]
["941013","SP25 - BANDE PERFOREE PLASTIFIEE 25mm RL DE 10ML","5301","ACC MONTAGE/VISSERIES-BOULONNERIES","Rl",167.42249999999999,"",{"$f":"IF(ISERR(U523)=TRUE,,(F523*(1-G523/100)))","v":0},"OUI",null,null,null,null,null,null,null,null,null,null,null,{"$f":"Tableau1[[#This Row],[Prix de vente\n 2019]]*(1-(Tableau1[[#This Row],[Remise]]/100))","v":{"$error":"#VALUE!"}}]
["941014","GC25 GARNITURE CAOUTCHOUC POUR BANDE PERFOREE S25","5301","ACC MONTAGE/VISSERIES-BOULONNERIES","Rl",100.4325,"",{"$f":"IF(ISERR(U524)=TRUE,,(F524*(1-G524/100)))","v":0},"OUI",null,null,null,null,null,null,null,null,null,null,null,{"$f":"Tableau1[[#This Row],[Prix de vente\n 2019]]*(1-(Tableau1[[#This Row],[Remise]]/100))","v":{"$error":"#VALUE!"}}]
["941020","BANDE DE SUSPENSION TOILEE NEOPRENE Lg 50mm (Rl de 10ml)","5301","ACC MONTAGE/VISSERIES-BOULONNERIES","Rl",91.171500000000009,"",{"$f":"IF(ISERR(U525)=TRUE,,(F525*(1-G525/100)))","v":0},"OUI",null,null,null,null,null,null,null,null,null,null,null,{"$f":"Tableau1[[#This Row],[Prix de vente\n 2019]]*(1-(Tableau1[[#This Row],[Remise]]/100))","v":{"$error":"#VALUE!"}}]
["941201","PATTE DE SUSPENSION ''L'' NUE","5301","ACC MONTAGE/VISSERIES-BOULONNERIES","Pièce",0.82950000000000013,"",{"$f":"IF(ISERR(U526)=TRUE,,(F526*(1-G526/100)))","v":0},"OUI",null,null,null,null,null,null,null,null,null,null,null,{"$f":"Tableau1[[#This Row],[Prix de vente\n 2019]]*(1-(Tableau1[[#This Row],[Remise]]/100))","v":{"$error":"#VALUE!"}}]
["941203","PATTE DE SUSPENSION ''Z'' NUE","5301","ACC MONTAGE/VISSERIES-BOULONNERIES","Pièce",0.88200000000000001,"",{"$f":"IF(ISERR(U527)=TRUE,,(F527*(1-G527/100)))","v":0},"OUI",null,null,null,null,null,null,null,null,null,null,null,{"$f":"Tableau1[[#This Row],[Prix de vente\n 2019]]*(1-(Tableau1[[#This Row],[Remise]]/100))","v":{"$error":"#VALUE!"}}]
["941205","PATTE DE SUSPENSION ''U'' NUE","5301","ACC MONTAGE/VISSERIES-BOULONNERIES","Pièce",0.88200000000000001,"",{"$f":"IF(ISERR(U528)=TRUE,,(F528*(1-G528/100)))","v":0},"OUI",null,null,null,null,null,null,null,null,null,null,null,{"$f":"Tableau1[[#This Row],[Prix de vente\n 2019]]*(1-(Tableau1[[#This Row],[Remise]]/100))","v":{"$error":"#VALUE!"}}]
["941210","PLN CAOUTCHOUC POUR PATTE P","5301","ACC MONTAGE/VISSERIES-BOULONNERIES","Pièce",0.66150000000000009,"",{"$f":"IF(ISERR(U529)=TRUE,,(F529*(1-G529/100)))","v":0},"OUI",null,null,null,null,null,null,null,null,null,null,null,{"$f":"Tableau1[[#This Row],[Prix de vente\n 2019]]*(1-(Tableau1[[#This Row],[Remise]]/100))","v":{"$error":"#VALUE!"}}]
["941211","PLNR PLOT CAOUTCHOUC + RONDELLE 17x33 TROU D.08","5301","ACC MONTAGE/VISSERIES-BOULONNERIES","Pièce",0.81900000000000006,"",{"$f":"IF(ISERR(U530)=TRUE,,(F530*(1-G530/100)))","v":0},"OUI",null,null,null,null,null,null,null,null,null,null,null,{"$f":"Tableau1[[#This Row],[Prix de vente\n 2019]]*(1-(Tableau1[[#This Row],[Remise]]/100))","v":{"$error":"#VALUE!"}}]
["941241","\"PATTE DE SUSPENSION \"\"L\"\" + PLOT Ep:20/10\"","5301","ACC MONTAGE/VISSERIES-BOULONNERIES","Pièce",1.302,"",{"$f":"IF(ISERR(U531)=TRUE,,(F531*(1-G531/100)))","v":0},"OUI",null,null,null,null,null,null,null,null,null,null,null,{"$f":"Tableau1[[#This Row],[Prix de vente\n 2019]]*(1-(Tableau1[[#This Row],[Remise]]/100))","v":{"$error":"#VALUE!"}}]
["941243","\"PATTE DE SUSPENSION \"\"Z\"\" + PLOT Ep:20/10\"","5301","ACC MONTAGE/VISSERIES-BOULONNERIES","Pièce",1.3545,"",{"$f":"IF(ISERR(U532)=TRUE,,(F532*(1-G532/100)))","v":0},"OUI",null,null,null,null,null,null,null,null,null,null,null,{"$f":"Tableau1[[#This Row],[Prix de vente\n 2019]]*(1-(Tableau1[[#This Row],[Remise]]/100))","v":{"$error":"#VALUE!"}}]
["941245","\"PATTE DE SUSPENSION \"\"U\"\" + PLOT Ep:20/10\"","5301","ACC MONTAGE/VISSERIES-BOULONNERIES","Pièce",1.3545,"",{"$f":"IF(ISERR(U533)=TRUE,,(F533*(1-G533/100)))","v":0},"OUI",null,null,null,null,null,null,null,null,null,null,null,{"$f":"Tableau1[[#This Row],[Prix de vente\n 2019]]*(1-(Tableau1[[#This Row],[Remise]]/100))","v":{"$error":"#VALUE!"}}]
["941324","CV1L D.9 PINCE DE SUSPENSIONS CV","5301","ACC MONTAGE/VISSERIES-BOULONNERIES","Pièce",3.6645000000000003,"",{"$f":"IF(ISERR(U534)=TRUE,,(F534*(1-G534/100)))","v":0},"OUI",null,null,null,null,null,null,null,null,null,null,null,{"$f":"Tableau1[[#This Row],[Prix de vente\n 2019]]*(1-(Tableau1[[#This Row],[Remise]]/100))","v":{"$error":"#VALUE!"}}]
["941325","CV1F D.M8 PINCE DE SUSPENSIONS CV AVEC TROU FILETE","5301","ACC MONTAGE/VISSERIES-BOULONNERIES","Pièce",3.5385000000000004,"",{"$f":"IF(ISERR(U535)=TRUE,,(F535*(1-G535/100)))","v":0},"OUI",null,null,null,null,null,null,null,null,null,null,null,{"$f":"Tableau1[[#This Row],[Prix de vente\n 2019]]*(1-(Tableau1[[#This Row],[Remise]]/100))","v":{"$error":"#VALUE!"}}]
["941326","CV2L D.11 PINCE DE SUSPENSIONS CV","5301","ACC MONTAGE/VISSERIES-BOULONNERIES","Pièce",4.0110000000000001,"",{"$f":"IF(ISERR(U536)=TRUE,,(F536*(1-G536/100)))","v":0},"OUI",null,null,null,null,null,null,null,null,null,null,null,{"$f":"Tableau1[[#This Row],[Prix de vente\n 2019]]*(1-(Tableau1[[#This Row],[Remise]]/100))","v":{"$error":"#VALUE!"}}]
["941327","CV2F D.M10 PINCE DE SUSPENSIONS CV AVEC TROU FILETE","5301","ACC MONTAGE/VISSERIES-BOULONNERIES","Pièce",3.8955000000000002,"",{"$f":"IF(ISERR(U537)=TRUE,,(F537*(1-G537/100)))","v":0},"OUI",null,null,null,null,null,null,null,null,null,null,null,{"$f":"Tableau1[[#This Row],[Prix de vente\n 2019]]*(1-(Tableau1[[#This Row],[Remise]]/100))","v":{"$error":"#VALUE!"}}]
["941328","CV3L PINCE DE SUSPENSIONS CV","5301","ACC MONTAGE/VISSERIES-BOULONNERIES","Pièce",19.53,"",{"$f":"IF(ISERR(U538)=TRUE,,(F538*(1-G538/100)))","v":0},"OUI",null,null,null,null,null,null,null,null,null,null,null,{"$f":"Tableau1[[#This Row],[Prix de vente\n 2019]]*(1-(Tableau1[[#This Row],[Remise]]/100))","v":{"$error":"#VALUE!"}}]
["941632","CHAPE NUE PR 16-63","5204","SUPPORTAGE AU SOL","Pièce",2.5515000000000003,"",{"$f":"IF(ISERR(U539)=TRUE,,(F539*(1-G539/100)))","v":0},"OUI",null,null,null,null,null,null,null,null,null,null,null,{"$f":"Tableau1[[#This Row],[Prix de vente\n 2019]]*(1-(Tableau1[[#This Row],[Remise]]/100))","v":{"$error":"#VALUE!"}}]
["941633","PIED TELESCOPIQUE AVEC EMBASE 150x100","5204","SUPPORTAGE AU SOL","Pièce",10.195500000000001,{"$f":"IF(C540=\"9999\",0,IF(IF(ISERROR(VLOOKUP(C540,Grille1,3,FALSE)),VLOOKUP(C540,Grille2,3,FALSE),VLOOKUP(C540,Grille1,3,FALSE))=\"\",\"\",IF(ISERROR(VLOOKUP(C540,Grille1,3,FALSE)),VLOOKUP(C540,Grille2,3,FALSE),VLOOKUP(C540,Grille1,3,FALSE))))","v":""},{"$f":"IF(ISERR(U540)=TRUE,,(F540*(1-G540/100)))","v":0},"OUI",null,null,null,null,null,null,null,null,null,null,null,{"$f":"Tableau1[[#This Row],[Prix de vente\n 2019]]*(1-(Tableau1[[#This Row],[Remise]]/100))","v":{"$error":"#VALUE!"}}]
["941635","PIED TELESCOPIQUE AVEC EMBASE 300x300","5204","SUPPORTAGE AU SOL","Pièce",17.850000000000001,"",{"$f":"IF(ISERR(U541)=TRUE,,(F541*(1-G541/100)))","v":0},"OUI",null,null,null,null,null,null,null,null,null,null,null,{"$f":"Tableau1[[#This Row],[Prix de vente\n 2019]]*(1-(Tableau1[[#This Row],[Remise]]/100))","v":{"$error":"#VALUE!"}}]
["942114","EWM 308 VERT - ECROU DOUBLE M08x41mm POUR RAIL SERIE PS","5201","SUPPORTAGE RAIL & ACCESSOIRES","Cent",197.72550000000001,"",{"$f":"IF(ISERR(U542)=TRUE,,(F542*(1-G542/100)))","v":0},"OUI",null,null,null,null,null,null,null,null,null,null,null,{"$f":"Tableau1[[#This Row],[Prix de vente\n 2019]]*(1-(Tableau1[[#This Row],[Remise]]/100))","v":{"$error":"#VALUE!"}}]
["942115","EDM 308 - ECROU DOUBLE M08x41mm POUR RAIL SERIE PS","5201","SUPPORTAGE RAIL & ACCESSOIRES","Cent",105.5775,"",{"$f":"IF(ISERR(U543)=TRUE,,(F543*(1-G543/100)))","v":0},"OUI",null,null,null,null,null,null,null,null,null,null,null,{"$f":"Tableau1[[#This Row],[Prix de vente\n 2019]]*(1-(Tableau1[[#This Row],[Remise]]/100))","v":{"$error":"#VALUE!"}}]
["942116","EWM 310 VERT ECROU DOUBLES M10x41mm POUR RAIL SERIE PS","5201","SUPPORTAGE RAIL & ACCESSOIRES","Cent",228.28050000000002,"",{"$f":"IF(ISERR(U544)=TRUE,,(F544*(1-G544/100)))","v":0},"OUI",null,null,null,null,null,null,null,null,null,null,null,{"$f":"Tableau1[[#This Row],[Prix de vente\n 2019]]*(1-(Tableau1[[#This Row],[Remise]]/100))","v":{"$error":"#VALUE!"}}]
["942117","EDM 310 ECROU DOUBLES M10x41mm POUR RAIL SERIE PS","5201","SUPPORTAGE RAIL & ACCESSOIRES","Cent",109.28400000000001,"",{"$f":"IF(ISERR(U545)=TRUE,,(F545*(1-G545/100)))","v":0},"OUI",null,null,null,null,null,null,null,null,null,null,null,{"$f":"Tableau1[[#This Row],[Prix de vente\n 2019]]*(1-(Tableau1[[#This Row],[Remise]]/100))","v":{"$error":"#VALUE!"}}]
["942118","P 661 - SUPPORT MURAL POUR RAIL SERIE PS","5201","SUPPORTAGE RAIL & ACCESSOIRES","Pièce",13.356000000000002,"",{"$f":"IF(ISERR(U546)=TRUE,,(F546*(1-G546/100)))","v":0},"OUI",null,null,null,null,null,null,null,null,null,null,null,{"$f":"Tableau1[[#This Row],[Prix de vente\n 2019]]*(1-(Tableau1[[#This Row],[Remise]]/100))","v":{"$error":"#VALUE!"}}]
["942120","PE 21 BOUCHON POUR RAIL PS21","5201","SUPPORTAGE RAIL & ACCESSOIRES","Cent",71.778000000000006,"",{"$f":"IF(ISERR(U547)=TRUE,,(F547*(1-G547/100)))","v":0},"OUI",null,null,null,null,null,null,null,null,null,null,null,{"$f":"Tableau1[[#This Row],[Prix de vente\n 2019]]*(1-(Tableau1[[#This Row],[Remise]]/100))","v":{"$error":"#VALUE!"}}]
["942124","PE 41 BOUCHON POUR RAIL PS41","5201","SUPPORTAGE RAIL & ACCESSOIRES","Cent",86.593500000000006,"",{"$f":"IF(ISERR(U548)=TRUE,,(F548*(1-G548/100)))","v":0},"OUI",null,null,null,null,null,null,null,null,null,null,null,{"$f":"Tableau1[[#This Row],[Prix de vente\n 2019]]*(1-(Tableau1[[#This Row],[Remise]]/100))","v":{"$error":"#VALUE!"}}]
["942127","PS 41/3/2,5 - RAIL DE MONTAGE 41x41 ép:2,5 mm Lg:3ml","5201","SUPPORTAGE RAIL & ACCESSOIRES","ML",14.805,"",{"$f":"IF(ISERR(U549)=TRUE,,(F549*(1-G549/100)))","v":0},"OUI",null,null,null,null,null,null,null,null,null,null,null,{"$f":"Tableau1[[#This Row],[Prix de vente\n 2019]]*(1-(Tableau1[[#This Row],[Remise]]/100))","v":{"$error":"#VALUE!"}}]
["942128","PS 21/3 - RAIL DE MONTAGE 41x21 ép:2 mm Lg:3ml","5201","SUPPORTAGE RAIL & ACCESSOIRES","ML",7.7385000000000002,"",{"$f":"IF(ISERR(U550)=TRUE,,(F550*(1-G550/100)))","v":0},"OUI",null,null,null,null,null,null,null,null,null,null,null,{"$f":"Tableau1[[#This Row],[Prix de vente\n 2019]]*(1-(Tableau1[[#This Row],[Remise]]/100))","v":{"$error":"#VALUE!"}}]
["942129","PS 41/2 - RAIL DE MONTAGE 41x41 ép:2 mm Lg:2ml","5201","SUPPORTAGE RAIL & ACCESSOIRES","ML",10.5105,"",{"$f":"IF(ISERR(U551)=TRUE,,(F551*(1-G551/100)))","v":0},"OUI",null,null,null,null,null,null,null,null,null,null,null,{"$f":"Tableau1[[#This Row],[Prix de vente\n 2019]]*(1-(Tableau1[[#This Row],[Remise]]/100))","v":{"$error":"#VALUE!"}}]
["942130","PS 41/3 - RAIL DE MONTAGE 41x41 ép:2 mm Lg:3ml","5201","SUPPORTAGE RAIL & ACCESSOIRES","ML",10.5105,"",{"$f":"IF(ISERR(U552)=TRUE,,(F552*(1-G552/100)))","v":0},"OUI",null,null,null,null,null,null,null,null,null,null,null,{"$f":"Tableau1[[#This Row],[Prix de vente\n 2019]]*(1-(Tableau1[[#This Row],[Remise]]/100))","v":{"$error":"#VALUE!"}}]
["942132","PS 604 EQUERRE 2 TROUS 90° POUR RAIL SERIE PS","5201","SUPPORTAGE RAIL & ACCESSOIRES","Pièce",2.6670000000000003,"",{"$f":"IF(ISERR(U553)=TRUE,,(F553*(1-G553/100)))","v":0},"OUI",null,null,null,null,null,null,null,null,null,null,null,{"$f":"Tableau1[[#This Row],[Prix de vente\n 2019]]*(1-(Tableau1[[#This Row],[Remise]]/100))","v":{"$error":"#VALUE!"}}]
["942134","PS 605 EQUERRE 2 TROUS 135° POUR RAIL SERIE PS","5201","SUPPORTAGE RAIL & ACCESSOIRES","Pièce",6.3209999999999997,"",{"$f":"IF(ISERR(U554)=TRUE,,(F554*(1-G554/100)))","v":0},"OUI",null,null,null,null,null,null,null,null,null,null,null,{"$f":"Tableau1[[#This Row],[Prix de vente\n 2019]]*(1-(Tableau1[[#This Row],[Remise]]/100))","v":{"$error":"#VALUE!"}}]
["942135","PS 609 EQUERRE 4 TROUS 135° POUR RAIL SERIE PS","5201","SUPPORTAGE RAIL & ACCESSOIRES","Pièce",13.702500000000001,"",{"$f":"IF(ISERR(U555)=TRUE,,(F555*(1-G555/100)))","v":0},"OUI",null,null,null,null,null,null,null,null,null,null,null,{"$f":"Tableau1[[#This Row],[Prix de vente\n 2019]]*(1-(Tableau1[[#This Row],[Remise]]/100))","v":{"$error":"#VALUE!"}}]
["942136","PS 606 103x 42mm EQUERRE 3 TROUS 90° POUR RAIL SERIE PS","5201","SUPPORTAGE RAIL & ACCESSOIRES","Pièce",4.4834999999999994,"",{"$f":"IF(ISERR(U556)=TRUE,,(F556*(1-G556/100)))","v":0},"OUI",null,null,null,null,null,null,null,null,null,null,null,{"$f":"Tableau1[[#This Row],[Prix de vente\n 2019]]*(1-(Tableau1[[#This Row],[Remise]]/100))","v":{"$error":"#VALUE!"}}]
["942139","PS 21/3/2,5 - RAIL DE MONTAGE 41x21 ép:2,5 mm Lg:3ml","5201","SUPPORTAGE RAIL & ACCESSOIRES","ML",9.8175000000000008,"",{"$f":"IF(ISERR(U557)=TRUE,,(F557*(1-G557/100)))","v":0},"OUI",null,null,null,null,null,null,null,null,null,null,null,{"$f":"Tableau1[[#This Row],[Prix de vente\n 2019]]*(1-(Tableau1[[#This Row],[Remise]]/100))","v":{"$error":"#VALUE!"}}]
["942140","PSN 06 ECROU POUR RAIL SERIE PS","5201","SUPPORTAGE RAIL & ACCESSOIRES","Cent",50.935499999999998,"",{"$f":"IF(ISERR(U558)=TRUE,,(F558*(1-G558/100)))","v":0},"OUI",null,null,null,null,null,null,null,null,null,null,null,{"$f":"Tableau1[[#This Row],[Prix de vente\n 2019]]*(1-(Tableau1[[#This Row],[Remise]]/100))","v":{"$error":"#VALUE!"}}]
["942142","PSN 08 ECROU POUR RAIL SERIE PS","5201","SUPPORTAGE RAIL & ACCESSOIRES","Cent",75.117000000000004,"",{"$f":"IF(ISERR(U559)=TRUE,,(F559*(1-G559/100)))","v":0},"OUI",null,null,null,null,null,null,null,null,null,null,null,{"$f":"Tableau1[[#This Row],[Prix de vente\n 2019]]*(1-(Tableau1[[#This Row],[Remise]]/100))","v":{"$error":"#VALUE!"}}]
["942144","PSN 10 ECROU POUR RAIL SERIE PS","5201","SUPPORTAGE RAIL & ACCESSOIRES","Cent",95.392499999999998,"",{"$f":"IF(ISERR(U560)=TRUE,,(F560*(1-G560/100)))","v":0},"OUI",null,null,null,null,null,null,null,null,null,null,null,{"$f":"Tableau1[[#This Row],[Prix de vente\n 2019]]*(1-(Tableau1[[#This Row],[Remise]]/100))","v":{"$error":"#VALUE!"}}]
["942174","PS 646 RALLONGE MALE 4 TROUS PS41","5201","SUPPORTAGE RAIL & ACCESSOIRES","Pièce",9.7860000000000014,"",{"$f":"IF(ISERR(U561)=TRUE,,(F561*(1-G561/100)))","v":0},"OUI",null,null,null,null,null,null,null,null,null,null,null,{"$f":"Tableau1[[#This Row],[Prix de vente\n 2019]]*(1-(Tableau1[[#This Row],[Remise]]/100))","v":{"$error":"#VALUE!"}}]
["942176","PS 2652 ETRIER FIL M10 POUR RAIL PS 21/PS 41","5201","SUPPORTAGE RAIL & ACCESSOIRES","Pièce",5.5650000000000004,"",{"$f":"IF(ISERR(U562)=TRUE,,(F562*(1-G562/100)))","v":0},"OUI",null,null,null,null,null,null,null,null,null,null,null,{"$f":"Tableau1[[#This Row],[Prix de vente\n 2019]]*(1-(Tableau1[[#This Row],[Remise]]/100))","v":{"$error":"#VALUE!"}}]
["942177","PS 5292 ETRIER FIL M8 POUR RAIL PS 62/PS 82","5201","SUPPORTAGE RAIL & ACCESSOIRES","Pièce",8.3685000000000009,"",{"$f":"IF(ISERR(U563)=TRUE,,(F563*(1-G563/100)))","v":0},"OUI",null,null,null,null,null,null,null,null,null,null,null,{"$f":"Tableau1[[#This Row],[Prix de vente\n 2019]]*(1-(Tableau1[[#This Row],[Remise]]/100))","v":{"$error":"#VALUE!"}}]
["942178","P 658 SOCLE POUR RAIL PS 41","5201","SUPPORTAGE RAIL & ACCESSOIRES","Pièce",12.621,"",{"$f":"IF(ISERR(U564)=TRUE,,(F564*(1-G564/100)))","v":0},"OUI",null,null,null,null,null,null,null,null,null,null,null,{"$f":"Tableau1[[#This Row],[Prix de vente\n 2019]]*(1-(Tableau1[[#This Row],[Remise]]/100))","v":{"$error":"#VALUE!"}}]
["942202","PS 610 EQUERRE 90° 4 TROUS RENF.","5201","SUPPORTAGE RAIL & ACCESSOIRES","Pièce",15.6135,"",{"$f":"IF(ISERR(U565)=TRUE,,(F565*(1-G565/100)))","v":0},"OUI",null,null,null,null,null,null,null,null,null,null,null,{"$f":"Tableau1[[#This Row],[Prix de vente\n 2019]]*(1-(Tableau1[[#This Row],[Remise]]/100))","v":{"$error":"#VALUE!"}}]
["942316","EQUERRE 4 TROUS 90° POUR RAIL 41x41","5201","SUPPORTAGE RAIL & ACCESSOIRES","Pièce",5.6174999999999997,"",{"$f":"IF(ISERR(U566)=TRUE,,(F566*(1-G566/100)))","v":0},"OUI",null,null,null,null,null,null,null,null,null,null,null,{"$f":"Tableau1[[#This Row],[Prix de vente\n 2019]]*(1-(Tableau1[[#This Row],[Remise]]/100))","v":{"$error":"#VALUE!"}}]
["942504","BOULON 06x25","5301","ACC MONTAGE/VISSERIES-BOULONNERIES","Cent",15.718500000000001,"",{"$f":"IF(ISERR(U567)=TRUE,,(F567*(1-G567/100)))","v":0},"OUI",null,null,null,null,null,null,null,null,null,null,null,{"$f":"Tableau1[[#This Row],[Prix de vente\n 2019]]*(1-(Tableau1[[#This Row],[Remise]]/100))","v":{"$error":"#VALUE!"}}]
["942508","BOULON 08x20","5301","ACC MONTAGE/VISSERIES-BOULONNERIES","Cent",25.283999999999999,"",{"$f":"IF(ISERR(U568)=TRUE,,(F568*(1-G568/100)))","v":0},"OUI",null,null,null,null,null,null,null,null,null,null,null,{"$f":"Tableau1[[#This Row],[Prix de vente\n 2019]]*(1-(Tableau1[[#This Row],[Remise]]/100))","v":{"$error":"#VALUE!"}}]
["942510","BOULON 08x25","5301","ACC MONTAGE/VISSERIES-BOULONNERIES","Cent",29.085000000000001,"",{"$f":"IF(ISERR(U569)=TRUE,,(F569*(1-G569/100)))","v":0},"OUI",null,null,null,null,null,null,null,null,null,null,null,{"$f":"Tableau1[[#This Row],[Prix de vente\n 2019]]*(1-(Tableau1[[#This Row],[Remise]]/100))","v":{"$error":"#VALUE!"}}]
["942512","BOULON 08x30","5301","ACC MONTAGE/VISSERIES-BOULONNERIES","Cent",33.432000000000002,"",{"$f":"IF(ISERR(U570)=TRUE,,(F570*(1-G570/100)))","v":0},"OUI",null,null,null,null,null,null,null,null,null,null,null,{"$f":"Tableau1[[#This Row],[Prix de vente\n 2019]]*(1-(Tableau1[[#This Row],[Remise]]/100))","v":{"$error":"#VALUE!"}}]
["942518","BOULON 10x30","5301","ACC MONTAGE/VISSERIES-BOULONNERIES","Cent",47.564999999999998,"",{"$f":"IF(ISERR(U571)=TRUE,,(F571*(1-G571/100)))","v":0},"OUI",null,null,null,null,null,null,null,null,null,null,null,{"$f":"Tableau1[[#This Row],[Prix de vente\n 2019]]*(1-(Tableau1[[#This Row],[Remise]]/100))","v":{"$error":"#VALUE!"}}]
["942522","VIS TH AC ZI 8x60 6.8 ISO 4017","5301","ACC MONTAGE/VISSERIES-BOULONNERIES","Cent",39.301500000000004,"",{"$f":"IF(ISERR(U572)=TRUE,,(F572*(1-G572/100)))","v":0},"OUI",null,null,null,null,null,null,null,null,null,null,null,{"$f":"Tableau1[[#This Row],[Prix de vente\n 2019]]*(1-(Tableau1[[#This Row],[Remise]]/100))","v":{"$error":"#VALUE!"}}]
["942602","CAF D.08 CHEVILLE A FRAPPER (PAR 100)","5301","ACC MONTAGE/VISSERIES-BOULONNERIES","Cent",54.453000000000003,"",{"$f":"IF(ISERR(U573)=TRUE,,(F573*(1-G573/100)))","v":0},"OUI",null,null,null,null,null,null,null,null,null,null,null,{"$f":"Tableau1[[#This Row],[Prix de vente\n 2019]]*(1-(Tableau1[[#This Row],[Remise]]/100))","v":{"$error":"#VALUE!"}}]
["942604","CAF D.10 CHEVILLE A FRAPPER (PAR 50)","5301","ACC MONTAGE/VISSERIES-BOULONNERIES","Cent",135.49199999999999,"",{"$f":"IF(ISERR(U574)=TRUE,,(F574*(1-G574/100)))","v":0},"OUI",null,null,null,null,null,null,null,null,null,null,null,{"$f":"Tableau1[[#This Row],[Prix de vente\n 2019]]*(1-(Tableau1[[#This Row],[Remise]]/100))","v":{"$error":"#VALUE!"}}]
["942610","CL D.06 CHEVILLE LAITON (PAR 100)","5301","ACC MONTAGE/VISSERIES-BOULONNERIES","Cent",36.466499999999996,"",{"$f":"IF(ISERR(U575)=TRUE,,(F575*(1-G575/100)))","v":0},"OUI",null,null,null,null,null,null,null,null,null,null,null,{"$f":"Tableau1[[#This Row],[Prix de vente\n 2019]]*(1-(Tableau1[[#This Row],[Remise]]/100))","v":{"$error":"#VALUE!"}}]
["942612","CL D.08 CHEVILLE LAITON (PAR 100)","5301","ACC MONTAGE/VISSERIES-BOULONNERIES","Cent",54.789000000000001,"",{"$f":"IF(ISERR(U576)=TRUE,,(F576*(1-G576/100)))","v":0},"OUI",null,null,null,null,null,null,null,null,null,null,null,{"$f":"Tableau1[[#This Row],[Prix de vente\n 2019]]*(1-(Tableau1[[#This Row],[Remise]]/100))","v":{"$error":"#VALUE!"}}]
["942622","CHEVILLE NYLON 10x65","5301","ACC MONTAGE/VISSERIES-BOULONNERIES","Cent",46.105499999999999,"",{"$f":"IF(ISERR(U577)=TRUE,,(F577*(1-G577/100)))","v":0},"OUI",null,null,null,null,null,null,null,null,null,null,null,{"$f":"Tableau1[[#This Row],[Prix de vente\n 2019]]*(1-(Tableau1[[#This Row],[Remise]]/100))","v":{"$error":"#VALUE!"}}]
["942624","CHEVILLE NYLON 8x52","5301","ACC MONTAGE/VISSERIES-BOULONNERIES","Cent",37.6845,"",{"$f":"IF(ISERR(U578)=TRUE,,(F578*(1-G578/100)))","v":0},"OUI",null,null,null,null,null,null,null,null,null,null,null,{"$f":"Tableau1[[#This Row],[Prix de vente\n 2019]]*(1-(Tableau1[[#This Row],[Remise]]/100))","v":{"$error":"#VALUE!"}}]
["942626","CHEVILLE NYLON 6x45","5301","ACC MONTAGE/VISSERIES-BOULONNERIES","Cent",21.798000000000002,"",{"$f":"IF(ISERR(U579)=TRUE,,(F579*(1-G579/100)))","v":0},"OUI",null,null,null,null,null,null,null,null,null,null,null,{"$f":"Tableau1[[#This Row],[Prix de vente\n 2019]]*(1-(Tableau1[[#This Row],[Remise]]/100))","v":{"$error":"#VALUE!"}}]
["942632","CHEVILLE EXPANSION AC.BI. 8x50","5301","ACC MONTAGE/VISSERIES-BOULONNERIES","Cent",242.53950000000003,"",{"$f":"IF(ISERR(U580)=TRUE,,(F580*(1-G580/100)))","v":0},"OUI",null,null,null,null,null,null,null,null,null,null,null,{"$f":"Tableau1[[#This Row],[Prix de vente\n 2019]]*(1-(Tableau1[[#This Row],[Remise]]/100))","v":{"$error":"#VALUE!"}}]
["942640","PINCE A CREMAILLERE / CHEVILLE EXPANSION PAROIS CREUSES","5301","ACC MONTAGE/VISSERIES-BOULONNERIES","Pièce",75.117000000000004,"",{"$f":"IF(ISERR(U581)=TRUE,,(F581*(1-G581/100)))","v":0},"OUI",null,null,null,null,null,null,null,null,null,null,null,{"$f":"Tableau1[[#This Row],[Prix de vente\n 2019]]*(1-(Tableau1[[#This Row],[Remise]]/100))","v":{"$error":"#VALUE!"}}]
["942642","CHEVILLE EXPANSION PAROIS CREUSE AVEC VIS D.5 x 36mm","5301","ACC MONTAGE/VISSERIES-BOULONNERIES","Cent",87.517499999999998,"",{"$f":"IF(ISERR(U582)=TRUE,,(F582*(1-G582/100)))","v":0},"OUI",null,null,null,null,null,null,null,null,null,null,null,{"$f":"Tableau1[[#This Row],[Prix de vente\n 2019]]*(1-(Tableau1[[#This Row],[Remise]]/100))","v":{"$error":"#VALUE!"}}]
["942643","CHEVILLE EXPANSION PAROIS CREUSE AVEC VIS D.4 x 32mm","5301","ACC MONTAGE/VISSERIES-BOULONNERIES","Cent",80.230500000000006,"",{"$f":"IF(ISERR(U583)=TRUE,,(F583*(1-G583/100)))","v":0},"OUI",null,null,null,null,null,null,null,null,null,null,null,{"$f":"Tableau1[[#This Row],[Prix de vente\n 2019]]*(1-(Tableau1[[#This Row],[Remise]]/100))","v":{"$error":"#VALUE!"}}]
["942650","CHEVILLE PLACO AUTOPERCEUSE + VIS","5301","ACC MONTAGE/VISSERIES-BOULONNERIES","Cent",87.517499999999998,"",{"$f":"IF(ISERR(U584)=TRUE,,(F584*(1-G584/100)))","v":0},"OUI",null,null,null,null,null,null,null,null,null,null,null,{"$f":"Tableau1[[#This Row],[Prix de vente\n 2019]]*(1-(Tableau1[[#This Row],[Remise]]/100))","v":{"$error":"#VALUE!"}}]
["942660","VIS BOIS 4x40","5301","ACC MONTAGE/VISSERIES-BOULONNERIES","Cent",3.8955000000000002,"",{"$f":"IF(ISERR(U585)=TRUE,,(F585*(1-G585/100)))","v":0},"OUI",null,null,null,null,null,null,null,null,null,null,null,{"$f":"Tableau1[[#This Row],[Prix de vente\n 2019]]*(1-(Tableau1[[#This Row],[Remise]]/100))","v":{"$error":"#VALUE!"}}]
["942662","VIS BOIS 5x50","5301","ACC MONTAGE/VISSERIES-BOULONNERIES","Cent",8.0220000000000002,"",{"$f":"IF(ISERR(U586)=TRUE,,(F586*(1-G586/100)))","v":0},"OUI",null,null,null,null,null,null,null,null,null,null,null,{"$f":"Tableau1[[#This Row],[Prix de vente\n 2019]]*(1-(Tableau1[[#This Row],[Remise]]/100))","v":{"$error":"#VALUE!"}}]
["942670","VIS PLACO 3.9x35","5301","ACC MONTAGE/VISSERIES-BOULONNERIES","Cent",4.2104999999999997,"",{"$f":"IF(ISERR(U587)=TRUE,,(F587*(1-G587/100)))","v":0},"OUI",null,null,null,null,null,null,null,null,null,null,null,{"$f":"Tableau1[[#This Row],[Prix de vente\n 2019]]*(1-(Tableau1[[#This Row],[Remise]]/100))","v":{"$error":"#VALUE!"}}]
["942671","TIRE FOND 12x130+CHEVILLE (SACHET 4 Pces) MATERIAUX CREUX","5301","ACC MONTAGE/VISSERIES-BOULONNERIES","Sachet",24.548999999999999,"",{"$f":"IF(ISERR(U588)=TRUE,,(F588*(1-G588/100)))","v":0},"OUI",null,null,null,null,null,null,null,null,null,null,null,{"$f":"Tableau1[[#This Row],[Prix de vente\n 2019]]*(1-(Tableau1[[#This Row],[Remise]]/100))","v":{"$error":"#VALUE!"}}]
["942702","DISQUE A TRONCONNER MOYEU PLAT 115 x 1.6","5301","ACC MONTAGE/VISSERIES-BOULONNERIES","Pièce",10.206000000000001,{"$f":"IF(C589=\"9999\",0,IF(IF(ISERROR(VLOOKUP(C589,Grille1,3,FALSE)),VLOOKUP(C589,Grille2,3,FALSE),VLOOKUP(C589,Grille1,3,FALSE))=\"\",\"\",IF(ISERROR(VLOOKUP(C589,Grille1,3,FALSE)),VLOOKUP(C589,Grille2,3,FALSE),VLOOKUP(C589,Grille1,3,FALSE))))","v":""},{"$f":"IF(ISERR(U589)=TRUE,,(F589*(1-G589/100)))","v":0},"OUI",null,null,null,null,null,null,null,null,null,null,null,{"$f":"Tableau1[[#This Row],[Prix de vente\n 2019]]*(1-(Tableau1[[#This Row],[Remise]]/100))","v":{"$error":"#VALUE!"}}]
["942706","DISQUE A TRONCONNER MOYEU PLAT 125 x 1.6","5301","ACC MONTAGE/VISSERIES-BOULONNERIES","Pièce",10.752000000000001,"",{"$f":"IF(ISERR(U590)=TRUE,,(F590*(1-G590/100)))","v":0},"OUI",null,null,null,null,null,null,null,null,null,null,null,{"$f":"Tableau1[[#This Row],[Prix de vente\n 2019]]*(1-(Tableau1[[#This Row],[Remise]]/100))","v":{"$error":"#VALUE!"}}]
["942710","DISQUE A TRONCONNER MOYEU BOMBE 230 x 2.0","5301","ACC MONTAGE/VISSERIES-BOULONNERIES","Pièce",22.617000000000001,"",{"$f":"IF(ISERR(U591)=TRUE,,(F591*(1-G591/100)))","v":0},"OUI",null,null,null,null,null,null,null,null,null,null,null,{"$f":"Tableau1[[#This Row],[Prix de vente\n 2019]]*(1-(Tableau1[[#This Row],[Remise]]/100))","v":{"$error":"#VALUE!"}}]
["942712","DISQUE A TRONCONNER INOX AS 46 T INOX MOYEU PLAT 125 x 1.6","5301","ACC MONTAGE/VISSERIES-BOULONNERIES","Pièce",4.3049999999999997,"",{"$f":"IF(ISERR(U592)=TRUE,,(F592*(1-G592/100)))","v":0},"OUI",null,null,null,null,null,null,null,null,null,null,null,{"$f":"Tableau1[[#This Row],[Prix de vente\n 2019]]*(1-(Tableau1[[#This Row],[Remise]]/100))","v":{"$error":"#VALUE!"}}]
["942714","DISQUE A TRONCONNER INOX AS 46 T INOX MOYEU PLAT 115 x 1.6","5301","ACC MONTAGE/VISSERIES-BOULONNERIES","Pièce",4.3049999999999997,"",{"$f":"IF(ISERR(U593)=TRUE,,(F593*(1-G593/100)))","v":0},"OUI",null,null,null,null,null,null,null,null,null,null,null,{"$f":"Tableau1[[#This Row],[Prix de vente\n 2019]]*(1-(Tableau1[[#This Row],[Remise]]/100))","v":{"$error":"#VALUE!"}}]
["942716","DISQUE A TRONCONNER INOX AS 46 T INOX-BF MOYEU BOMBE 230 x 1.9","5301","ACC MONTAGE/VISSERIES-BOULONNERIES","Pièce",8.9250000000000007,"",{"$f":"IF(ISERR(U594)=TRUE,,(F594*(1-G594/100)))","v":0},"OUI",null,null,null,null,null,null,null,null,null,null,null,{"$f":"Tableau1[[#This Row],[Prix de vente\n 2019]]*(1-(Tableau1[[#This Row],[Remise]]/100))","v":{"$error":"#VALUE!"}}]
["942718","DISQUE A MEULER A30T MOYEU BOMBE 125 x 6","5301","ACC MONTAGE/VISSERIES-BOULONNERIES","Pièce",7.6965000000000003,"",{"$f":"IF(ISERR(U595)=TRUE,,(F595*(1-G595/100)))","v":0},"OUI",null,null,null,null,null,null,null,null,null,null,null,{"$f":"Tableau1[[#This Row],[Prix de vente\n 2019]]*(1-(Tableau1[[#This Row],[Remise]]/100))","v":{"$error":"#VALUE!"}}]
["942720","DISQUE ABRASIF A LAMELLES G-AZ A 40 GRAIN 40 MOYEU PLAT 125 x 22.2","5301","ACC MONTAGE/VISSERIES-BOULONNERIES","Pièce",11.266500000000001,"",{"$f":"IF(ISERR(U596)=TRUE,,(F596*(1-G596/100)))","v":0},"OUI",null,null,null,null,null,null,null,null,null,null,null,{"$f":"Tableau1[[#This Row],[Prix de vente\n 2019]]*(1-(Tableau1[[#This Row],[Remise]]/100))","v":{"$error":"#VALUE!"}}]
["942722","DISQUE ABRASIF A LAMELLES G-AZ A 60 GRAIN 60 MOYEU PLAT 125 x 22.2","5301","ACC MONTAGE/VISSERIES-BOULONNERIES","Pièce",11.266500000000001,"",{"$f":"IF(ISERR(U597)=TRUE,,(F597*(1-G597/100)))","v":0},"OUI",null,null,null,null,null,null,null,null,null,null,null,{"$f":"Tableau1[[#This Row],[Prix de vente\n 2019]]*(1-(Tableau1[[#This Row],[Remise]]/100))","v":{"$error":"#VALUE!"}}]
["942750","ECROU 06","5301","ACC MONTAGE/VISSERIES-BOULONNERIES","Cent",4.4625000000000004,"",{"$f":"IF(ISERR(U598)=TRUE,,(F598*(1-G598/100)))","v":0},"OUI",null,null,null,null,null,null,null,null,null,null,null,{"$f":"Tableau1[[#This Row],[Prix de vente\n 2019]]*(1-(Tableau1[[#This Row],[Remise]]/100))","v":{"$error":"#VALUE!"}}]
["942754","ECROU 08 (BOITE DE 200)","5301","ACC MONTAGE/VISSERIES-BOULONNERIES","Cent",5.4285000000000005,"",{"$f":"IF(ISERR(U599)=TRUE,,(F599*(1-G599/100)))","v":0},"OUI",null,null,null,null,null,null,null,null,null,null,null,{"$f":"Tableau1[[#This Row],[Prix de vente\n 2019]]*(1-(Tableau1[[#This Row],[Remise]]/100))","v":{"$error":"#VALUE!"}}]
["942756","ECROU 10 (BOITE DE 200)","5301","ACC MONTAGE/VISSERIES-BOULONNERIES","Cent",11.991,"",{"$f":"IF(ISERR(U600)=TRUE,,(F600*(1-G600/100)))","v":0},"OUI",null,null,null,null,null,null,null,null,null,null,null,{"$f":"Tableau1[[#This Row],[Prix de vente\n 2019]]*(1-(Tableau1[[#This Row],[Remise]]/100))","v":{"$error":"#VALUE!"}}]
["942802","EMBOUT DE VISSAGE TCC TYPE S2 VIS 4,2 & 4,8","5301","ACC MONTAGE/VISSERIES-BOULONNERIES","Pièce",2.9819999999999998,"",{"$f":"IF(ISERR(U601)=TRUE,,(F601*(1-G601/100)))","v":0},"OUI",null,null,null,null,null,null,null,null,null,null,null,{"$f":"Tableau1[[#This Row],[Prix de vente\n 2019]]*(1-(Tableau1[[#This Row],[Remise]]/100))","v":{"$error":"#VALUE!"}}]
["942806","EMBOUT DE VISSAGE TH D.7 VIS 4,2","5301","ACC MONTAGE/VISSERIES-BOULONNERIES","Pièce",9.0825000000000014,"",{"$f":"IF(ISERR(U602)=TRUE,,(F602*(1-G602/100)))","v":0},"OUI",null,null,null,null,null,null,null,null,null,null,null,{"$f":"Tableau1[[#This Row],[Prix de vente\n 2019]]*(1-(Tableau1[[#This Row],[Remise]]/100))","v":{"$error":"#VALUE!"}}]
["942808","EMBOUT DE VISSAGE TH D.8 VIS 4,8","5301","ACC MONTAGE/VISSERIES-BOULONNERIES","Pièce",9.0825000000000014,"",{"$f":"IF(ISERR(U603)=TRUE,,(F603*(1-G603/100)))","v":0},"OUI",null,null,null,null,null,null,null,null,null,null,null,{"$f":"Tableau1[[#This Row],[Prix de vente\n 2019]]*(1-(Tableau1[[#This Row],[Remise]]/100))","v":{"$error":"#VALUE!"}}]
["942910","PITON A BASCULE D.08 (100PCES)","5301","ACC MONTAGE/VISSERIES-BOULONNERIES","Cent",208.58250000000001,"",{"$f":"IF(ISERR(U604)=TRUE,,(F604*(1-G604/100)))","v":0},"OUI",null,null,null,null,null,null,null,null,null,null,null,{"$f":"Tableau1[[#This Row],[Prix de vente\n 2019]]*(1-(Tableau1[[#This Row],[Remise]]/100))","v":{"$error":"#VALUE!"}}]
["942912","RTF 06 RACCORD TIGE FILETEE D.06","5301","ACC MONTAGE/VISSERIES-BOULONNERIES","Pièce",0.16800000000000001,"",{"$f":"IF(ISERR(U605)=TRUE,,(F605*(1-G605/100)))","v":0},"OUI",null,null,null,null,null,null,null,null,null,null,null,{"$f":"Tableau1[[#This Row],[Prix de vente\n 2019]]*(1-(Tableau1[[#This Row],[Remise]]/100))","v":{"$error":"#VALUE!"}}]
["942918","RTF 08 RACCORD TIGE FILETEE D.08","5301","ACC MONTAGE/VISSERIES-BOULONNERIES","Pièce",0.28350000000000003,"",{"$f":"IF(ISERR(U606)=TRUE,,(F606*(1-G606/100)))","v":0},"OUI",null,null,null,null,null,null,null,null,null,null,null,{"$f":"Tableau1[[#This Row],[Prix de vente\n 2019]]*(1-(Tableau1[[#This Row],[Remise]]/100))","v":{"$error":"#VALUE!"}}]
["942920","RTF 10 RACCORD TIGE FILETEE D.10","5301","ACC MONTAGE/VISSERIES-BOULONNERIES","Pièce",0.36749999999999999,"",{"$f":"IF(ISERR(U607)=TRUE,,(F607*(1-G607/100)))","v":0},"OUI",null,null,null,null,null,null,null,null,null,null,null,{"$f":"Tableau1[[#This Row],[Prix de vente\n 2019]]*(1-(Tableau1[[#This Row],[Remise]]/100))","v":{"$error":"#VALUE!"}}]
["942932","RIVETS ALU 4 x 10 (1000 Pces)","5301","ACC MONTAGE/VISSERIES-BOULONNERIES","Cent",8.2740000000000009,"",{"$f":"IF(ISERR(U608)=TRUE,,(F608*(1-G608/100)))","v":0},"OUI",null,null,null,null,null,null,null,null,null,null,null,{"$f":"Tableau1[[#This Row],[Prix de vente\n 2019]]*(1-(Tableau1[[#This Row],[Remise]]/100))","v":{"$error":"#VALUE!"}}]
["942950","RONDELLE L06 (BOITE DE 200)","5301","ACC MONTAGE/VISSERIES-BOULONNERIES","Cent",3.8955000000000002,"",{"$f":"IF(ISERR(U609)=TRUE,,(F609*(1-G609/100)))","v":0},"OUI",null,null,null,null,null,null,null,null,null,null,null,{"$f":"Tableau1[[#This Row],[Prix de vente\n 2019]]*(1-(Tableau1[[#This Row],[Remise]]/100))","v":{"$error":"#VALUE!"}}]
["942954","RONDELLE L08 (BOITE DE 200)","5301","ACC MONTAGE/VISSERIES-BOULONNERIES","Cent",5.9219999999999997,"",{"$f":"IF(ISERR(U610)=TRUE,,(F610*(1-G610/100)))","v":0},"OUI",null,null,null,null,null,null,null,null,null,null,null,{"$f":"Tableau1[[#This Row],[Prix de vente\n 2019]]*(1-(Tableau1[[#This Row],[Remise]]/100))","v":{"$error":"#VALUE!"}}]
["942956","RONDELLE L10","5301","ACC MONTAGE/VISSERIES-BOULONNERIES","Cent",13.524000000000001,"",{"$f":"IF(ISERR(U611)=TRUE,,(F611*(1-G611/100)))","v":0},"OUI",null,null,null,null,null,null,null,null,null,null,null,{"$f":"Tableau1[[#This Row],[Prix de vente\n 2019]]*(1-(Tableau1[[#This Row],[Remise]]/100))","v":{"$error":"#VALUE!"}}]
["942962","RONDELLE LL06 (BOITE DE 200)","5301","ACC MONTAGE/VISSERIES-BOULONNERIES","Cent",6.8879999999999999,"",{"$f":"IF(ISERR(U612)=TRUE,,(F612*(1-G612/100)))","v":0},"OUI",null,null,null,null,null,null,null,null,null,null,null,{"$f":"Tableau1[[#This Row],[Prix de vente\n 2019]]*(1-(Tableau1[[#This Row],[Remise]]/100))","v":{"$error":"#VALUE!"}}]
["942966","RONDELLE LL08 (BOITE DE 200)","5301","ACC MONTAGE/VISSERIES-BOULONNERIES","Cent",10.857000000000001,"",{"$f":"IF(ISERR(U613)=TRUE,,(F613*(1-G613/100)))","v":0},"OUI",null,null,null,null,null,null,null,null,null,null,null,{"$f":"Tableau1[[#This Row],[Prix de vente\n 2019]]*(1-(Tableau1[[#This Row],[Remise]]/100))","v":{"$error":"#VALUE!"}}]
["942967","RONDELLE WSL 40-8","5301","ACC MONTAGE/VISSERIES-BOULONNERIES","Pièce",0.35700000000000004,"",{"$f":"IF(ISERR(U614)=TRUE,,(F614*(1-G614/100)))","v":0},"OUI",null,null,null,null,null,null,null,null,null,null,null,{"$f":"Tableau1[[#This Row],[Prix de vente\n 2019]]*(1-(Tableau1[[#This Row],[Remise]]/100))","v":{"$error":"#VALUE!"}}]
["942968","RONDELLE LL10","5301","ACC MONTAGE/VISSERIES-BOULONNERIES","Cent",21.4725,"",{"$f":"IF(ISERR(U615)=TRUE,,(F615*(1-G615/100)))","v":0},"OUI",null,null,null,null,null,null,null,null,null,null,null,{"$f":"Tableau1[[#This Row],[Prix de vente\n 2019]]*(1-(Tableau1[[#This Row],[Remise]]/100))","v":{"$error":"#VALUE!"}}]
["943000","TF 06 TIGE FILETEE D.06","5301","ACC MONTAGE/VISSERIES-BOULONNERIES","ML",1.4489999999999998,"",{"$f":"IF(ISERR(U616)=TRUE,,(F616*(1-G616/100)))","v":0},"OUI",null,null,null,null,null,null,null,null,null,null,null,{"$f":"Tableau1[[#This Row],[Prix de vente\n 2019]]*(1-(Tableau1[[#This Row],[Remise]]/100))","v":{"$error":"#VALUE!"}}]
["943004","TF 08 TIGE FILETEE D.08","5301","ACC MONTAGE/VISSERIES-BOULONNERIES","ML",2.121,"",{"$f":"IF(ISERR(U617)=TRUE,,(F617*(1-G617/100)))","v":0},"OUI",null,null,null,null,null,null,null,null,null,null,null,{"$f":"Tableau1[[#This Row],[Prix de vente\n 2019]]*(1-(Tableau1[[#This Row],[Remise]]/100))","v":{"$error":"#VALUE!"}}]
["943006","TF 10 TIGE FILETEE D.10","5301","ACC MONTAGE/VISSERIES-BOULONNERIES","ML",3.7484999999999999,"",{"$f":"IF(ISERR(U618)=TRUE,,(F618*(1-G618/100)))","v":0},"OUI",null,null,null,null,null,null,null,null,null,null,null,{"$f":"Tableau1[[#This Row],[Prix de vente\n 2019]]*(1-(Tableau1[[#This Row],[Remise]]/100))","v":{"$error":"#VALUE!"}}]
["943102","TCC 4.2x13 - VIS AUTOPERCEUSE (PAR 1000)","5301","ACC MONTAGE/VISSERIES-BOULONNERIES","Boite",33.725999999999999,"",{"$f":"IF(ISERR(U619)=TRUE,,(F619*(1-G619/100)))","v":0},"OUI",null,null,null,null,null,null,null,null,null,null,null,{"$f":"Tableau1[[#This Row],[Prix de vente\n 2019]]*(1-(Tableau1[[#This Row],[Remise]]/100))","v":{"$error":"#VALUE!"}}]
["943104","TCC 4.2x16 - VIS AUTOPERCEUSE (PAR 1000)","5301","ACC MONTAGE/VISSERIES-BOULONNERIES","Boite",36.54,"",{"$f":"IF(ISERR(U620)=TRUE,,(F620*(1-G620/100)))","v":0},"OUI",null,null,null,null,null,null,null,null,null,null,null,{"$f":"Tableau1[[#This Row],[Prix de vente\n 2019]]*(1-(Tableau1[[#This Row],[Remise]]/100))","v":{"$error":"#VALUE!"}}]
["943106","TCC 4.8x16 - VIS AUTOPERCEUSE (PAR 1000)","5301","ACC MONTAGE/VISSERIES-BOULONNERIES","Boite",49.171500000000002,"",{"$f":"IF(ISERR(U621)=TRUE,,(F621*(1-G621/100)))","v":0},"OUI",null,null,null,null,null,null,null,null,null,null,null,{"$f":"Tableau1[[#This Row],[Prix de vente\n 2019]]*(1-(Tableau1[[#This Row],[Remise]]/100))","v":{"$error":"#VALUE!"}}]
["943108","TCC 4.8x19-VIS AUTOPERCEUSE (PAR 1000)","5301","ACC MONTAGE/VISSERIES-BOULONNERIES","Boite",55.051500000000004,"",{"$f":"IF(ISERR(U622)=TRUE,,(F622*(1-G622/100)))","v":0},"OUI",null,null,null,null,null,null,null,null,null,null,null,{"$f":"Tableau1[[#This Row],[Prix de vente\n 2019]]*(1-(Tableau1[[#This Row],[Remise]]/100))","v":{"$error":"#VALUE!"}}]
["943110","TH 4.2x16 - VIS AUTOPERCEUSE (PAR 1000)","5301","ACC MONTAGE/VISSERIES-BOULONNERIES","Boite",46.094999999999999,"",{"$f":"IF(ISERR(U623)=TRUE,,(F623*(1-G623/100)))","v":0},"OUI",null,null,null,null,null,null,null,null,null,null,null,{"$f":"Tableau1[[#This Row],[Prix de vente\n 2019]]*(1-(Tableau1[[#This Row],[Remise]]/100))","v":{"$error":"#VALUE!"}}]
["943112","TH 4.8x16 - VIS AUTOPERCEUSE (PAR 1000)","5301","ACC MONTAGE/VISSERIES-BOULONNERIES","Boite",61.015500000000003,"",{"$f":"IF(ISERR(U624)=TRUE,,(F624*(1-G624/100)))","v":0},"OUI",null,null,null,null,null,null,null,null,null,null,null,{"$f":"Tableau1[[#This Row],[Prix de vente\n 2019]]*(1-(Tableau1[[#This Row],[Remise]]/100))","v":{"$error":"#VALUE!"}}]
["943114","TH 4.8x19 - VIS AUTOPERCEUSE (PAR 1000)","5301","ACC MONTAGE/VISSERIES-BOULONNERIES","Boite",65.467500000000001,"",{"$f":"IF(ISERR(U625)=TRUE,,(F625*(1-G625/100)))","v":0},"OUI",null,null,null,null,null,null,null,null,null,null,null,{"$f":"Tableau1[[#This Row],[Prix de vente\n 2019]]*(1-(Tableau1[[#This Row],[Remise]]/100))","v":{"$error":"#VALUE!"}}]
["943116","TH 4.2x13 - VIS AUTOPERCEUSE (PAR 1000)","5301","ACC MONTAGE/VISSERIES-BOULONNERIES","Boite",42.147000000000006,"",{"$f":"IF(ISERR(U626)=TRUE,,(F626*(1-G626/100)))","v":0},"OUI",null,null,null,null,null,null,null,null,null,null,null,{"$f":"Tableau1[[#This Row],[Prix de vente\n 2019]]*(1-(Tableau1[[#This Row],[Remise]]/100))","v":{"$error":"#VALUE!"}}]
["943126","GOUJON 8-10/76","5301","ACC MONTAGE/VISSERIES-BOULONNERIES","Cent",59.073,"",{"$f":"IF(ISERR(U627)=TRUE,,(F627*(1-G627/100)))","v":0},"OUI",null,null,null,null,null,null,null,null,null,null,null,{"$f":"Tableau1[[#This Row],[Prix de vente\n 2019]]*(1-(Tableau1[[#This Row],[Remise]]/100))","v":{"$error":"#VALUE!"}}]
["943130","GOUJON 6-10/67","5301","ACC MONTAGE/VISSERIES-BOULONNERIES","Cent",51.45,"",{"$f":"IF(ISERR(U628)=TRUE,,(F628*(1-G628/100)))","v":0},"OUI",null,null,null,null,null,null,null,null,null,null,null,{"$f":"Tableau1[[#This Row],[Prix de vente\n 2019]]*(1-(Tableau1[[#This Row],[Remise]]/100))","v":{"$error":"#VALUE!"}}]
["943134","GOUJON 10-20/95","5301","ACC MONTAGE/VISSERIES-BOULONNERIES","Cent",113.52600000000001,"",{"$f":"IF(ISERR(U629)=TRUE,,(F629*(1-G629/100)))","v":0},"OUI",null,null,null,null,null,null,null,null,null,null,null,{"$f":"Tableau1[[#This Row],[Prix de vente\n 2019]]*(1-(Tableau1[[#This Row],[Remise]]/100))","v":{"$error":"#VALUE!"}}]
["943203","MORTIER CHIMIQUE TON PIERRE 300ml","5301","ACC MONTAGE/VISSERIES-BOULONNERIES","Pièce",51.544500000000006,"",{"$f":"IF(ISERR(U630)=TRUE,,(F630*(1-G630/100)))","v":0},"OUI",null,null,null,null,null,null,null,null,null,null,null,{"$f":"Tableau1[[#This Row],[Prix de vente\n 2019]]*(1-(Tableau1[[#This Row],[Remise]]/100))","v":{"$error":"#VALUE!"}}]
["943210","PISTOLET POUR SCELLEMENT CHIMIQUE 300ml","5301","ACC MONTAGE/VISSERIES-BOULONNERIES","Pièce",59.314500000000002,"",{"$f":"IF(ISERR(U631)=TRUE,,(F631*(1-G631/100)))","v":0},"OUI",null,null,null,null,null,null,null,null,null,null,null,{"$f":"Tableau1[[#This Row],[Prix de vente\n 2019]]*(1-(Tableau1[[#This Row],[Remise]]/100))","v":{"$error":"#VALUE!"}}]
["943224","TIRE FOND 6x50","5301","ACC MONTAGE/VISSERIES-BOULONNERIES","Cent",11.3505,"",{"$f":"IF(ISERR(U632)=TRUE,,(F632*(1-G632/100)))","v":0},"OUI",null,null,null,null,null,null,null,null,null,null,null,{"$f":"Tableau1[[#This Row],[Prix de vente\n 2019]]*(1-(Tableau1[[#This Row],[Remise]]/100))","v":{"$error":"#VALUE!"}}]
["943228","TIRE FOND 8x70","5301","ACC MONTAGE/VISSERIES-BOULONNERIES","Cent",29.095500000000001,"",{"$f":"IF(ISERR(U633)=TRUE,,(F633*(1-G633/100)))","v":0},"OUI",null,null,null,null,null,null,null,null,null,null,null,{"$f":"Tableau1[[#This Row],[Prix de vente\n 2019]]*(1-(Tableau1[[#This Row],[Remise]]/100))","v":{"$error":"#VALUE!"}}]
["980166","P.A.V PATTE A VIS M8x 50mm","5301","ACC MONTAGE/VISSERIES-BOULONNERIES","Cent",18.648000000000003,"",{"$f":"IF(ISERR(U634)=TRUE,,(F634*(1-G634/100)))","v":0},"OUI",null,null,null,null,null,null,null,null,null,null,null,{"$f":"Tableau1[[#This Row],[Prix de vente\n 2019]]*(1-(Tableau1[[#This Row],[Remise]]/100))","v":{"$error":"#VALUE!"}}]
["980168","P.A.V PATTE A VIS M8x 80mm","5301","ACC MONTAGE/VISSERIES-BOULONNERIES","Cent",33.232500000000002,"",{"$f":"IF(ISERR(U635)=TRUE,,(F635*(1-G635/100)))","v":0},"OUI",null,null,null,null,null,null,null,null,null,null,null,{"$f":"Tableau1[[#This Row],[Prix de vente\n 2019]]*(1-(Tableau1[[#This Row],[Remise]]/100))","v":{"$error":"#VALUE!"}}]
["980374","TIGE FILETEE M8 x 40 mm","5301","ACC MONTAGE/VISSERIES-BOULONNERIES","Cent",27.552,"",{"$f":"IF(ISERR(U636)=TRUE,,(F636*(1-G636/100)))","v":0},"OUI",null,null,null,null,null,null,null,null,null,null,null,{"$f":"Tableau1[[#This Row],[Prix de vente\n 2019]]*(1-(Tableau1[[#This Row],[Remise]]/100))","v":{"$error":"#VALUE!"}}]
["980376","TIGE FILETEE M8 x 100 mm","5301","ACC MONTAGE/VISSERIES-BOULONNERIES","Cent",65.646000000000001,"",{"$f":"IF(ISERR(U637)=TRUE,,(F637*(1-G637/100)))","v":0},"OUI",null,null,null,null,null,null,null,null,null,null,null,{"$f":"Tableau1[[#This Row],[Prix de vente\n 2019]]*(1-(Tableau1[[#This Row],[Remise]]/100))","v":{"$error":"#VALUE!"}}]

{"sheet":"BAREME DE REMISE","index":1,"n_rows":75,"n_cols":7,"rows_kept":75,"cut":false,"hidden":false,"merged":[]}
[]
["Code Famille","Intitulé Famille","Barème Remise",null,"Code Famille","Intitulé Famille","Barème Remise"]
["1000","DIFFUSION ET REPRISE DE L'AIR",null,null,"3000","PRODUITS D'ISOLATION"]
["1021","DIFFUSEURS KH KH-FP",null,null,"3011","ISOLATION LDV / LDR"]
["1022","DIFFUSEURS KD10 à KD22 KD-FP",null,null,"3012","ISOLATION PANNEAUX POLYURETHANE ACC"]
["1023","DIFFUSEURS KC KC-FP",null,null,"3111","ISOLATION PHONIQUE ET THERMIQUE"]
["1024","DIFFUSEURS KDA KDB KDC KDE",null,null,"3121","ACCESSOIRES LDV (CLIPS,OUTILS)"]
["1025","DIFFUSEURS KRA KRA-FP SD",null,null,"3201","MANCHONS ISOLANTS"]
["1026","DIFFUSEURS KF",null,null,"3202","ACCESSOIRES POUR MANCHONS"]
["1027","DIFFUSEURS KR KRE KRE-FP",null,null,"4000","CONDUITS FLEXIBLES ET ACCESSOIRES"]
["1028","DIFFUSEURS KRB KRB-C KRB-FP",null,null,"4101","CONDUITS FLEX. FEUILLES D'ALU. NU"]
["1029","DIFFUSEURS KRC",null,null,"4102","CONDUITS FLEX. FEUILLES D'ALU. ISO"]
["1031","DIFFUSEURS KDJ KUCB",null,null,"4201","CONDUITS FLEX. SEMI RIGIDE ALU"]
["1032","DIFFUSEURS THERMOSTATIQUES",null,null,"4202","CONDUITS FLEX. SEMI RIGIDE GALVA"]
["1102","GRILLES KBL20 21 22 23 SG",null,null,"4301","CONDUITS FLEX. PLASTIQUE"]
["1103","GRILLES KBA-O KBA-VO",null,null,"4305","CONDUITS FLEX. INDUSTRIELS"]
["1105","GRILLES KGC-O KGC-VO",null,null,"4306","CONDUITS RIGIDE PVC"]
["1106","GRILLES KA-O KA-VO",null,null,"4307","CONDUITS+ACCS SEMI RIGIDE PVC(FLX)"]
["1107","GRILLES KZ-O KZ-VO",null,null,"4401","COLLIERS DE SERRAGE"]
["1108","GRILLES ET DIFF. PVC",null,null,"5000","SUPPORTAGE ET ETANCHEITE"]
["1109","GRILLES KP KP+SC KPZ",null,null,"5101","MASTIC D'ETANCHEITE"]
["1110","GRILLES KRS-GA",null,null,"5102","BANDE D'ETANCHEITE"]
["1111","GRILLES KTA20-40",null,null,"5201","SUPPORTAGE RAIL & ACCESSOIRES"]
["1112","GRILLES KTV30",null,null,"5202","CABLES DE SUSPENSION RAPIDE"]
["1114","GRILLES KM KM-FP KMD-F",null,null,"5203","SYSTEME DE SUSPENSION RAPIDE"]
["1115","GRILLES KGA KGA-FP KGAD-F",null,null,"5204","SUPPORTAGE AU SOL"]
["1116","GRILLES KQ KQ-FP KQD-F",null,null,"5301","ACC MONTAGE/VISSERIES-BOULONNERIES"]
["1117","GRILLES KGA25 KGA50 KGA75",null,null,"6000","CLIMATISATION"]
["1118","GRILLES KGZ 3 KGZ 5  KGZ 10",null,null,"6102","LIAISON FRIGO \"FAST PIPE\" & ACC"]
["1119","GRILLES KGCA-O KGCA-VO",null,null,"6111","GOULOTTE"]
["1125","GRILLES ACOUSTIQUE KGPZ",null,null,"6121","CONDENSATS ET ACC."]
["1150","FILTRES POUR GRILLES PORTE FILTRE",null,null,"6131","POMPE RELEVAGE"]
["1201","VOLETS KS5A & E KS10A & E",null,null,"6141","ACCESSOIRES CLIMATISATION"]
["1205","VOLET SURPRESSION PVC & INOX",null,null,"6201","MATERIEL ELECTRIQUE CLIMATISATION"]
["1211","VOLETS KSZ",null,null,"6211","OUTILLAGES CLIMATISATION"]
["1221","VOLETS KSA",null,null,"6221","ENTRETIEN"]
["1301","REGISTRES GAINE KVZ",null,null,"7000","SECURITE INCENDIE"]
["1302","REGISTRES GAINE KVA",null,null,"7011","CLAPETS COUPE FEU CE & NF"]
["1311","REGISTRES GRILLES  SC",null,null,"7012","BOUCHES ET TERMINAUX CF"]
["1331","PLENUMS CS3 CS4 DP1 DP2 DP4 P1 P2",null,null,"7013","CLAPETS COUPE FEU CE KLIMA-RODACLIM"]
["1351","CONTRECADRES CT & CTZ",null,null,"8000","DIVERS"]
["1352","CONTRECADRES CTP",null,null,"8011","SYSTEME DE REGULATION DE ZONE"]
["1411","GRILLES GRY",null,null,"8012","PLENUM GAINABLE "]
["1412","GRILLES BS",null,null,"8101","ASPIRATION CENTRALISEE"]
["2000","CONDUITS ET ACCESSOIRES",null,null,"8104","FILTRATION TRAITEMENT D'AIR"]
["2011","TUBE GALVA RIGIDE"]
["2021","ACCESSOIRES EMBOUTIS GAINES CIRC."]
["2031","ACCESSOIRES FACONNES GAINES CIRC."]
["2035","SORTIES DE TOITURE"]
["2049","OUTILLAGES VENTILATION"]
["2050","REGISTRES GAINES CIRC. MANUEL"]
["2051","REGULATION DE DEBIT"]
["2052","REGISTRES GAINES CIRC. MOTORISES"]
["2053","REGISTRES GAINES CIRC. ETANCHE"]
["2101","COLLIERS DE SUSPENSION"]
["2111","BOUCHES & ENTREE D'AIR PVC"]
["2112","BOUCHES METALLIQUES"]
["2121","SILENCIEUX & BAFFLES ACOUSTIQUE"]
["2122","BATTERIES TERMINALES"]
["2123","FILTRATION GAINE MOYENNE EFFICACITE"]
["2124","FILTRATION GAINE HAUTE EFFICACITEE"]
["2201","SERVOMOTEUR"]
["2251","BRIDES"]
["2261","ACCESSOIRES AVEC JOINT"]
["2271","TUBES ISOLES DOUBLE PEAU"]
["2272","ACCESOIRES ISOLES DOUBLE PEAU"]
["2281","VENTILATEURS RESIDENTIEL "]
["2282","REGULATION/ACC ELEC CAISSON VENTIL"]
["2283","CAISSONS SIMPLE FLUX TERTIAIRE"]
["2284","CAISSONS 400°C-1/2 H"]
["2285","VENTILATEURS 400°C- 2 H"]
["2286","CENTRALE DOUBLE FLUX TERTIAIRE"]
["2288","CENTRALE DOUBLE FLUX RESIDENTIELLE"]
["2289","CAISSON DE TRAITEMENT D'AIR"]
["2290","ACCESSOIRES POSE CAISSON VENTIL"]